Workbook

Sheet Instructions
A1: INSTRUCTIONS
A3: 1. The following information must be entered from the "Data" page:
C4: Teacher Name
C5: Student Name
C6: CFA points possible
C7: Level scores (should be entered as the minimum score possible for given level)
C8: Testing dates
C9: SWD designation
C10: Assessment Name
C11: Grade Level
B12: All other tabs in the workbook will automatically populate from the information entered on the Data page.
A14: 2. To designate a student as a SWD, type a double asterisk before their name (see examples). This will automatically highlight their name and allow the Grant Sheet to track them.
A15: 3. All sheets are protected so formulas are not damaged. Please do not unprotect them!
A16: 4. If a student moves, DO NOT delete their cell. Deletion of cells will cause the formulas to retrieve an error. Leave the cell blank instead.
A17: 5. If your team has fewer than 6 teachers, you can "hide" unnecessary tabs and cells. To hide a tab, right click on the tab and select "hide".
A18: 6. To protect and unprotect a sheet, go to the "review" tab at the top excel toolbar.
A19: 7. Within the Graph tab, you can compare pretest and post-test data. On the large graph, you may manipulate the data it shows to isolate certain teachers or just pretest/post-test data.
A20: To do this, click on one of the gray buttons at the bottom, left-hand side of the graph. You can then click on the information you want the graph to display. All data is automatically pulled from other tabs.
A21: When changes are made to the data, the graph must be refreshed. To do this, click the "refresh" button below the table.

Sheet CW Grant Sheet
A1: 1st CFA – Reteaching CFA (GRADE-LEVEL SUMMARY)
A2: RPDC | B2: 8-St. Louis | G2: Consultant | H2: Julie Sperry
A3: District Name | B3: Fort Zumwalt-RII | G3: Building Name | H3: Forest Park Elementary
A4: Grade-level | B4: =Data!N6 -> Grade 4 | C4: Total Grade Size | E4: 149 | F4: #SWD in Grade | H4: 26 | K4: # Teachers in Grade | M4: 6
A5: Content Area | F5: Instructional Practices
A6: Core Standard Addressed | B6: =Data!N9 -> Main Idea- R.I.4.2 | I6: Date Submitted to RPDC | L6: 2014-05-28
A8: 1st Strategies Used | G8: 2nd Strategies Used
A9: Proficient and Higher | G9: Proficient and Higher
A10: Close to Proficiency | G10: Close to Proficiency
A11: Far to Go (likely to become proficient) | G11: Far to Go (likely to become proficient)
A12: Intervention Students (not likely to become proficient) | G12: Intervention Students (not likely to become proficient)
A14: Total Possible Score for 1st CFA | B14: =Data!N10 -> 6 | C14: 1st CFA Date(s) Administered | F14: =Data!N8 -> 2/26/14 | G14: Total Possible Score for Reteaching CFA | H14: =Teacher1Post!P7 -> 6 | I14: Reteaching CFA Date(s) Administered | L14: =Data!O8 -> 3/20/14 | M14: % Change from 1st CFA to Reteaching
A15: Groups | B15: Total Possible Score for Levels | C15: # All Students | D15: # SWD | E15: % All Students | F15: % SWD | G15: Groups | H15: Total Possible Score for Levels | I15: # All Students | J15: # SWD | K15: % All Students | L15: % SWD | M15: %All Students | N15: % SWD
A16: Proficient and Higher | B16: =Data!N11 -> 5 | C16: =SummaryPretest!D10 -> 27 | D16: =COUNTIF(Teacher1Pretest!$A$8:$A$38,'CW Grant Sheet'!B16)+COUNTIF(Teacher2Pretest!$A$8:$A$38,'CW Grant Sheet'!B16)+COUNTIF(Teacher3Pretest!$A$8:$A$38,'CW Grant Sheet'!B16)+COUNTIF(Teacher4Pretest!$A$8:$A$38,'CW Grant Sheet'!B16)+COUNTIF(Teacher5Pretest!$A$8:$A$38,'CW Grant Sheet'!B16)+COUNTIF(Teacher6Pretest!$A$8:$A$38,'CW Grant Sheet'!B16) -> 5 | E16: =IFERROR(C16/$C$20,0) -> 0.2842105263 | F16: =IFERROR(D16/$D$20,0) -> 0.25 | G16: Proficient and Higher | H16: =Teacher1Post!P8 -> 5 | I16: =SummaryPost!D10 -> 55 | J16: =COUNTIF(Teacher1Post!$A$8:$A$38,'CW Grant Sheet'!H16)+COUNTIF(Teacher2Post!$A$8:$A$38,'CW Grant Sheet'!H16)+COUNTIF(Teacher3Post!$A$8:$A$38,'CW Grant Sheet'!H16)+COUNTIF(Teacher4Post!$A$8:$A$38,'CW Grant Sheet'!H16)+COUNTIF(Teacher5Post!$A$8:$A$38,'CW Grant Sheet'!H16)+COUNTIF(Teacher6Post!$A$8:$A$38,'CW Grant Sheet'!H16) -> 11 | K16: =IFERROR(I16/$I$20,0) -> 0.5789473684 | L16: =IFERROR(J16/$J$20,0) -> 0.55 | M16: =K16-E16 -> 0.2947368421 | N16: 0.3
A17: Close to Proficiency | B17: =Data!N12 -> 4 | C17: =SummaryPretest!H10 -> 17 | D17: =COUNTIF(Teacher1Pretest!$A$8:$A$38,'CW Grant Sheet'!B17)+COUNTIF(Teacher2Pretest!$A$8:$A$38,'CW Grant Sheet'!B17)+COUNTIF(Teacher3Pretest!$A$8:$A$38,'CW Grant Sheet'!B17)+COUNTIF(Teacher4Pretest!$A$8:$A$38,'CW Grant Sheet'!B17)+COUNTIF(Teacher5Pretest!$A$8:$A$38,'CW Grant Sheet'!B17)+COUNTIF(Teacher6Pretest!$A$8:$A$38,'CW Grant Sheet'!B17) -> 4 | E17: =IFERROR(C17/$C$20,0) -> 0.1789473684 | F17: =IFERROR(D17/$D$20,0) -> 0.2 | G17: Close to Proficiency | H17: =Teacher1Post!P9 -> 4 | I17: =SummaryPost!H10 -> 20 | J17: =COUNTIF(Teacher1Post!$A$8:$A$38,'CW Grant Sheet'!H17)+COUNTIF(Teacher2Post!$A$8:$A$38,'CW Grant Sheet'!H17)+COUNTIF(Teacher3Post!$A$8:$A$38,'CW Grant Sheet'!H17)+COUNTIF(Teacher4Post!$A$8:$A$38,'CW Grant Sheet'!H17)+COUNTIF(Teacher5Post!$A$8:$A$38,'CW Grant Sheet'!H17)+COUNTIF(Teacher6Post!$A$8:$A$38,'CW Grant Sheet'!H17) -> 5 | K17: =IFERROR(I17/$I$20,0) -> 0.2105263158 | L17: =IFERROR(J17/$J$20,0) -> 0.25 | M17: 0.03157894737 | N17: 0.05
A18: Far to Go (likely to become proficient) | B18: =Data!N13 -> 3 | C18: =SummaryPretest!L10 -> 17 | D18: =COUNTIF(Teacher1Pretest!$A$8:$A$38,'CW Grant Sheet'!B18)+COUNTIF(Teacher2Pretest!$A$8:$A$38,'CW Grant Sheet'!B18)+COUNTIF(Teacher3Pretest!$A$8:$A$38,'CW Grant Sheet'!B18)+COUNTIF(Teacher4Pretest!$A$8:$A$38,'CW Grant Sheet'!B18)+COUNTIF(Teacher5Pretest!$A$8:$A$38,'CW Grant Sheet'!B18)+COUNTIF(Teacher6Pretest!$A$8:$A$38,'CW Grant Sheet'!B18) -> 4 | E18: =IFERROR(C18/$C$20,0) -> 0.1789473684 | F18: =IFERROR(D18/$D$20,0) -> 0.2 | G18: Far to Go (likely to become proficient) | H18: =Teacher1Post!P10 -> 3 | I18: =SummaryPost!L10 -> 10 | J18: =COUNTIF(Teacher1Post!$A$8:$A$38,'CW Grant Sheet'!H18)+COUNTIF(Teacher2Post!$A$8:$A$38,'CW Grant Sheet'!H18)+COUNTIF(Teacher3Post!$A$8:$A$38,'CW Grant Sheet'!H18)+COUNTIF(Teacher4Post!$A$8:$A$38,'CW Grant Sheet'!H18)+COUNTIF(Teacher5Post!$A$8:$A$38,'CW Grant Sheet'!H18)+COUNTIF(Teacher6Post!$A$8:$A$38,'CW Grant Sheet'!H18) -> 2 | K18: =IFERROR(I18/$I$20,0) -> 0.1052631579 | L18: =IFERROR(J18/$J$20,0) -> 0.1 | M18: -0.07368421053 | N18: -0.1
A19: Intervention Students (not likely to become proficient) | B19: =Data!N14 -> 1 | C19: =SummaryPretest!P10 -> 34 | D19: =COUNTIF(Teacher1Pretest!$A$8:$A$38,'CW Grant Sheet'!B19)+COUNTIF(Teacher2Pretest!$A$8:$A$38,'CW Grant Sheet'!B19)+COUNTIF(Teacher3Pretest!$A$8:$A$38,'CW Grant Sheet'!B19)+COUNTIF(Teacher4Pretest!$A$8:$A$38,'CW Grant Sheet'!B19)+COUNTIF(Teacher5Pretest!$A$8:$A$38,'CW Grant Sheet'!B19)+COUNTIF(Teacher6Pretest!$A$8:$A$38,'CW Grant Sheet'!B19) -> 7 | E19: =IFERROR(C19/$C$20,0) -> 0.3578947368 | F19: =IFERROR(D19/$D$20,0) -> 0.35 | G19: Intervention Students (not likely to become proficient) | H19: =Teacher1Post!P11 -> 1 | I19: =SummaryPost!P10 -> 10 | J19: =COUNTIF(Teacher1Post!$A$8:$A$38,'CW Grant Sheet'!H19)+COUNTIF(Teacher2Post!$A$8:$A$38,'CW Grant Sheet'!H19)+COUNTIF(Teacher3Post!$A$8:$A$38,'CW Grant Sheet'!H19)+COUNTIF(Teacher4Post!$A$8:$A$38,'CW Grant Sheet'!H19)+COUNTIF(Teacher5Post!$A$8:$A$38,'CW Grant Sheet'!H19)+COUNTIF(Teacher6Post!$A$8:$A$38,'CW Grant Sheet'!H19) -> 2 | K19: =IFERROR(I19/$I$20,0) -> 0.1052631579 | L19: =IFERROR(J19/$J$20,0) -> 0.1 | M19: -0.2526315789 | N19: -0.25
A20: TOTALS | C20: =SUM(C16:C19) -> 95 | D20: =SUM(D16:D19) -> 20 | I20: =SUM(I16:I19) -> 95 | J20: =SUM(J16:J19) -> 20
A22: # SWD Not Taking CFA | C22: Reason(s) not taking CFA | G22: # SWD Not Taking CFA | I22: Reason(s) not taking CFA

Sheet Graphs
A1: Row Labels | B1: Proficient and Higher | C1: Close to Proficiency | D1: Far to Go But Likely to Become Proficient | E1: Intervention
A2: March | B2: 17 | C2: 6 | D2: 7 | E2: 8
A3: Pre Test | B3: 6 | C3: 2 | D3: 5 | E3: 6
A4: Post Test | B4: 11 | C4: 4 | D4: 2 | E4: 2
A5: Jones | B5: 18 | C5: 6 | D5: 8 | E5: 10
A6: Pre Test | B6: 7 | C6: 3 | D6: 3 | E6: 8
A7: Post Test | B7: 11 | C7: 3 | D7: 5 | E7: 2
A8: Gibson | B8: 17 | C8: 9 | D8: 4 | E8: 10
A9: Pre Test | B9: 5 | C9: 5 | D9: 2 | E9: 8
A10: Post Test | B10: 12 | C10: 4 | D10: 2 | E10: 2
A11: Smith | B11: 17 | C11: 9 | D11: 2 | E11: 10
A12: Pre Test | B12: 7 | C12: 3 | D12: 2 | E12: 7
A13: Post Test | B13: 10 | C13: 6 | D13: 0 | E13: 3
A14: Milburn | B14: 13 | C14: 7 | D14: 6 | E14: 6
A15: Pre Test | B15: 2 | C15: 4 | D15: 5 | E15: 5
A16: Post Test | B16: 11 | C16: 3 | D16: 1 | E16: 1
A17: Grand Total | B17: 82 | C17: 37 | D17: 27 | E17: 44

Sheet Data
A1: March | B1: Jones | C1: Gibson | D1: Smith | E1: Do Not Use | F1: Milburn | G1: Teacher6 | K1: Groups | L1: Toggle
A2: Judy Blome | B2: **Justin Bieber | C2: **Albert Einstein | D2: Michael Jordan | E2: Do Not Use | F2: Dave Sanders | G2: Student1 | L2: YES
A3: Lewis Carroll | B3: Taylor Swift | C3: Alfred Nobel | D3: Muhammad Ali | E3: Do Not Use | F3: Carolyn Neal | G3: Student2 | K3: Kindergarten | L3: NO
A4: Betsy Byars | B4: Beyonce Knowles | C4: Benjamin Franklin | D4: Roger Federer | E4: Do Not Use | F4: Bertha Richardson | G4: Student3 | K4: Grade 1
A5: Pam Conrad | B5: Madonna | C5: Carl Sagan* | D5: **Michael Phelps | E5: Do Not Use | F5: Bill Scheffler | G5: Student4 | K5: Grade 2 | M5: School | N5: Forest Park
A6: Jean Fritz | B6: Justin Timberlake | C6: Charles Darwin | D6: Wayne Gretzky | E6: Do Not Use | F6: Chris Montgomery | G6: Student5 | K6: Grade 3 | M6: Student group: | N6: Grade 4
A7: C.S. Lewis | B7: Bon Jovi | C7: Henry Ford | D7: **Jim Thorpe | E7: Do Not Use | F7: Darlene Jones | G7: Student6 | K7: Grade 4 | M7: =IF(N6="Other","Please enter student group:","") ->  | N7: Pretest | O7: Post-test
A8: Lois Lowry | B8: Tim McGraw | C8: **Isaac Newton | D8: Tiger Woods | E8: Do Not Use | F8: Don Rugraff | G8: Student7 | K8: Grade 5 | M8: Meeting date: | N8: 2/26/14 | O8: 3/20/14
A9: Patricia MacLachlan | B9: Elton John | C9: Ivan Pavlov | D9: Serena Williams | E9: Do Not Use | F9: Dexter Schraer | G9: Student8 | K9: Other | M9: Assessment name: | N9: Main Idea- R.I.4.2
A10: **Barbara Park | B10: **Kelly Clarkson | C10: Jane Goodall | D10: **Joe Montana | E10: Do Not Use | F10: Janice Putman | G10: Student9 | M10: Points possible: | N10: 6 | O10: 6
A11: **Gary Paulsen | B11: Aretha Franklin | C11: Jean Piaget | D11: Jeff Gordon | E11: Do Not Use | F11: Julie Sperry | G11: Student10 | K11: Dardenne | M11: Proficient: | N11: 5 | O11: 5
A12: Jack Prelutsky | B12: Lady Gaga | C12: **Jonas Salk | D12: Peyton Manning | E12: Do Not Use | F12: Jeanne Rothermel | G12: Student11 | K12: Emge | M12: Close to proficient: | N12: 4 | O12: 4
A13: Cynthia Rylant | B13: Billy Joel | C13: **Marie Curie | D13: Shaun White | E13: Do Not Use | F13: Rose Coleman | G13: Student12 | K13: Forest Park | M13: Far to go: | N13: 3 | O13: 3
A14: Louis Sachar | B14: Bruno Mars | C14: Sigmund Freud | D14: Danica Patrick | E14: Do Not Use | F14: Randy Speer | G14: Student13 | K14: Hawthorn | M14: Intervention: | N14: 1 | O14: 1
A15: Shel Silverstein | B15: Dolly Parton | C15: Stephen Hawking | D15: **Tony Hawk | E15: Do Not Use | F15: **Sam McCauley | G15: Student14 | K15: J.L. Mudd | M15: Configure SMART goal: | N15: YES
A16: Seymour Simon | B16: **Axl Rose | C16: Thomas Edison | D16: LeBron James | E16: Do Not Use | F16: Tricia Buchanan | G16: Student15 | K16: Lewis & Clark
A17: **Jerry Spinelli | B17: Tony Bennett | C17: John Dewey | D17: Gordie Howe | E17: Do Not Use | F17: **Beth Tobin | G17: Student16 | K17: Mid Rivers
A18: R.L. Stine | B18: Pat Benatar | C18: **B.F. Skinner | D18: **George Forman | E18: Do Not Use | F18: Student17 | G18: Student17 | K18: Mt. Hope
A19: Jane Yolen | B19: **Bob Dylan | C19: Howard Gardner | D19: Martina Navratilova | E19: Do Not Use | F19: Student18 | G19: Student18 | K19: Ostmann
A20: J.K. Rowling | B20: Eric Clapton | C20: Lev Vygotsky | D20: Yadier Molina | E20: Do Not Use | F20: Student19 | G20: Student19 | K20: Pheasant Point
A21: Student20 | B21: Paul McCartney | C21: Maria Montessori | D21: Student20 | E21: Do Not Use | F21: Student20 | G21: Student20 | K21: Progress South
A22: Student21 | B22: **Mick Jagger | C22: Student21 | D22: Student21 | E22: Do Not Use | F22: Student21 | G22: Student21 | K22: RockCreek
A23: Student22 | B23: Student22 | C23: Student22 | D23: Student22 | E23: Do Not Use | F23: Student22 | G23: Student22 | K23: St. Peters
A24: Student23 | B24: Student23 | C24: Student23 | D24: Student23 | E24: Do Not Use | F24: Student23 | G24: Student23 | K24: Twin Chimneys
A25: Student24 | B25: Student24 | C25: Student24 | D25: Student24 | E25: Do Not Use | F25: Student24 | G25: Student24 | K25: Westhoff
A26: Student25 | B26: Student25 | C26: Student25 | D26: Student25 | E26: Do Not Use | F26: Student25 | G26: Student25
A27: Student26 | B27: Student26 | C27: Student26 | D27: Student26 | E27: Do Not Use | F27: Student26 | G27: Student26
A28: Student27 | B28: Student27 | C28: Student27 | D28: Student27 | E28: Do Not Use | F28: Student27 | G28: Student27
A29: Student28 | B29: Student28 | C29: Student28 | D29: Student28 | E29: Do Not Use | F29: Student28 | G29: Student28
A30: Student29 | B30: Student29 | C30: Student29 | D30: Student29 | E30: Do Not Use | F30: Student29 | G30: Student29
A31: Student30 | B31: Student30 | C31: Student30 | D31: Student30 | E31: Do Not Use | F31: Student30 | G31: Student30

Sheet SummaryComparison
B1: Teacher | C1: # Students | E1: # Proficient and Higher | F1: % Proficient and Higher | G1: Proficient Students | I1: # Close to Proficiency | J1: % Close to Proficiency | K1: Students Close to Proficiency | M1: # Far to Go | N1: % Far to Go | O1: Students Far to Go But Likely to Become Proficient | Q1: # Intervention | R1: % Intervention | S1: Intervention Students
A2: Pre Test | B2: =Data!A1 -> March | C2: =SummaryPretest!B2 -> 19 | E2: =SummaryPretest!D2 -> 6 | F2: =E2/C2 -> 0.3157894737 | G2: =SummaryPretest!F2 -> Jean Fritz, Lois Lowry, Louis Sachar, Shel Silverstein, Seymour Simon, Jane Yolen | I2: =SummaryPretest!H2 -> 2 | J2: =I2/C2 -> 0.1052631579 | K2: =SummaryPretest!J2 -> Betsy Byars, **Jerry Spinelli | M2: =SummaryPretest!L2 -> 5 | N2: =M2/C2 -> 0.2631578947 | O2: =SummaryPretest!N2 -> Judy Blome, Patricia MacLachlan, **Barbara Park, Jack Prelutsky, R.L. Stine | Q2: =SummaryPretest!P2 -> 6 | R2: =Q2/C2 -> 0.3157894737 | S2: =SummaryPretest!R2 -> Lewis Carroll, Pam Conrad, C.S. Lewis, **Gary Paulsen, Cynthia Rylant, J.K. Rowling
A3: Post Test | B3: =Data!A1 -> March | C3: =SummaryPost!B2 -> 19 | E3: =SummaryPost!D2 -> 11 | F3: =E3/C3 -> 0.5789473684 | G3: =SummaryPost!F2 -> Judy Blome, Betsy Byars, Jean Fritz, Patricia MacLachlan, **Barbara Park, Jack Prelutsky, Louis Sachar, Shel Silverstein, Seymour Simon, **Jerry Spinelli, Jane Yolen | I3: =SummaryPost!H2 -> 4 | J3: =I3/C3 -> 0.2105263158 | K3: =SummaryPost!J2 -> Pam Conrad, **Gary Paulsen, Cynthia Rylant, R.L. Stine | M3: =SummaryPost!L2 -> 2 | N3: =M3/C3 -> 0.1052631579 | O3: =SummaryPost!N2 -> Lewis Carroll, Lois Lowry | Q3: =SummaryPost!P2 -> 2 | R3: =Q3/C3 -> 0.1052631579 | S3: =SummaryPost!R2 -> C.S. Lewis, J.K. Rowling
A4: Pre Test | B4: =Data!B1 -> Jones | C4: =SummaryPretest!B3 -> 21 | E4: =SummaryPretest!D3 -> 7 | F4: =E4/C4 -> 0.3333333333 | G4: =SummaryPretest!F3 -> **Justin Bieber, Taylor Swift, Beyonce Knowles, Tim McGraw, **Kelly Clarkson, Bruno Mars, **Bob Dylan | I4: =SummaryPretest!H3 -> 3 | J4: 0.1428571429 | K4: =SummaryPretest!J3 -> Madonna, Billy Joel, **Mick Jagger | M4: =SummaryPretest!L3 -> 3 | N4: 0.1428571429 | O4: =SummaryPretest!N3 -> Aretha Franklin, Dolly Parton, Eric Clapton | Q4: =SummaryPretest!P3 -> 8 | R4: =Q4/C4 -> 0.380952381 | S4: =SummaryPretest!R3 -> Justin Timberlake, Bon Jovi, Elton John, Lady Gaga, **Axl Rose, Tony Bennett, Pat Benatar, Paul McCartney
A5: Post Test | B5: =Data!B1 -> Jones | C5: =SummaryPost!B3 -> 21 | E5: =SummaryPost!D3 -> 11 | F5: 0.5238095238 | G5: =SummaryPost!F3 -> **Justin Bieber, Taylor Swift, Beyonce Knowles, Madonna, **Kelly Clarkson, Aretha Franklin, Lady Gaga, Bruno Mars, Dolly Parton, Tony Bennett, Pat Benatar | I5: =SummaryPost!H3 -> 3 | J5: 0.1428571429 | K5: =SummaryPost!J3 -> Billy Joel, **Axl Rose, Paul McCartney | M5: =SummaryPost!L3 -> 5 | N5: 0.2380952381 | O5: =SummaryPost!N3 -> Bon Jovi, Tim McGraw, **Bob Dylan, Eric Clapton, **Mick Jagger | Q5: =SummaryPost!P3 -> 2 | R5: 0.09523809524 | S5: =SummaryPost!R3 -> Justin Timberlake, Elton John
A6: Pre Test | B6: =Data!C1 -> Gibson | C6: =SummaryPretest!B4 -> 20 | E6: =SummaryPretest!D4 -> 5 | F6: 0.25 | G6: =SummaryPretest!F4 -> Carl Sagan*, **Marie Curie, Sigmund Freud, Stephen Hawking, Howard Gardner | I6: =SummaryPretest!H4 -> 5 | J6: 0.25 | K6: =SummaryPretest!J4 -> **Albert Einstein, Benjamin Franklin, John Dewey, **B.F. Skinner, Lev Vygotsky | M6: =SummaryPretest!L4 -> 2 | N6: 0.1 | O6: =SummaryPretest!N4 -> Henry Ford, Maria Montessori | Q6: =SummaryPretest!P4 -> 8 | R6: 0.4 | S6: =SummaryPretest!R4 -> Alfred Nobel, Charles Darwin, **Isaac Newton, Ivan Pavlov, Jane Goodall, Jean Piaget, **Jonas Salk, Thomas Edison
A7: Post Test | B7: =Data!C1 -> Gibson | C7: =SummaryPost!B4 -> 20 | E7: =SummaryPost!D4 -> 12 | F7: 0.6 | G7: =SummaryPost!F4 -> **Albert Einstein, Carl Sagan*, Henry Ford, Ivan Pavlov, **Jonas Salk, **Marie Curie, Sigmund Freud, Stephen Hawking, Thomas Edison, Howard Gardner, Lev Vygotsky, Maria Montessori | I7: =SummaryPost!H4 -> 4 | J7: 0.2 | K7: =SummaryPost!J4 -> Alfred Nobel, Charles Darwin, John Dewey, **B.F. Skinner | M7: =SummaryPost!L4 -> 2 | N7: 0.1 | O7: =SummaryPost!N4 -> Benjamin Franklin, Jane Goodall | Q7: =SummaryPost!P4 -> 2 | R7: 0.1 | S7: =SummaryPost!R4 -> **Isaac Newton, Jean Piaget
A8: Pre Test | B8: =Data!D1 -> Smith | C8: =SummaryPretest!B5 -> 19 | E8: =SummaryPretest!D5 -> 7 | F8: 0.3684210526 | G8: =SummaryPretest!F5 -> **Michael Phelps, Shaun White, Danica Patrick, LeBron James, Gordie Howe, Martina Navratilova, Yadier Molina | I8: =SummaryPretest!H5 -> 3 | J8: 0.1578947368 | K8: =SummaryPretest!J5 -> Michael Jordan, Muhammad Ali, Jeff Gordon | M8: =SummaryPretest!L5 -> 2 | N8: 0.1052631579 | O8: =SummaryPretest!N5 -> **Tony Hawk, **George Forman | Q8: =SummaryPretest!P5 -> 7 | R8: 0.3684210526 | S8: =SummaryPretest!R5 -> Roger Federer, Wayne Gretzky, **Jim Thorpe, Tiger Woods, Serena Williams, **Joe Montana, Peyton Manning
A9: Post Test | B9: =Data!D1 -> Smith | C9: =SummaryPost!B5 -> 19 | E9: =SummaryPost!D5 -> 10 | F9: 0.5263157895 | G9: =SummaryPost!F5 -> Michael Jordan, Muhammad Ali, Serena Williams, **Joe Montana, Shaun White, Danica Patrick, **Tony Hawk, LeBron James, **George Forman, Martina Navratilova | I9: =SummaryPost!H5 -> 6 | J9: 0.3157894737 | K9: =SummaryPost!J5 -> Roger Federer, Wayne Gretzky, **Jim Thorpe, Jeff Gordon, Peyton Manning, Yadier Molina | M9: =SummaryPost!L5 -> 0 | N9: 0 | O9: =SummaryPost!N5 ->  | Q9: =SummaryPost!P5 -> 3 | R9: 0.1578947368 | S9: =SummaryPost!R5 -> **Michael Phelps, Tiger Woods, Gordie Howe
A10: Pre Test | B10: =Data!F1 -> Milburn | C10: =SummaryPretest!B7 -> 16 | E10: =SummaryPretest!D7 -> 2 | F10: 0.125 | G10: =SummaryPretest!F7 -> Chris Montgomery, Don Rugraff | I10: =SummaryPretest!H7 -> 4 | J10: 0.25 | K10: =SummaryPretest!J7 -> Bertha Richardson, Bill Scheffler, Rose Coleman, Tricia Buchanan | M10: =SummaryPretest!L7 -> 5 | N10: 0.3125 | O10: =SummaryPretest!N7 -> Dave Sanders, Carolyn Neal, Dexter Schraer, Julie Sperry, **Sam McCauley | Q10: =SummaryPretest!P7 -> 5 | R10: 0.3125 | S10: =SummaryPretest!R7 -> Darlene Jones, Janice Putman, Jeanne Rothermel, Randy Speer, **Beth Tobin
A11: Post Test | B11: =Data!F1 -> Milburn | C11: =SummaryPost!B7 -> 16 | E11: =SummaryPost!D7 -> 11 | F11: 0.6875 | G11: =SummaryPost!F7 -> Dave Sanders, Carolyn Neal, Bertha Richardson, Chris Montgomery, Darlene Jones, Dexter Schraer, Janice Putman, Julie Sperry, Rose Coleman, **Sam McCauley, Tricia Buchanan | I11: =SummaryPost!H7 -> 3 | J11: 0.1875 | K11: =SummaryPost!J7 -> Don Rugraff, Jeanne Rothermel, **Beth Tobin | M11: =SummaryPost!L7 -> 1 | N11: 0.0625 | O11: =SummaryPost!N7 -> Randy Speer | Q11: =SummaryPost!P7 -> 1 | R11: 0.0625 | S11: =SummaryPost!R7 -> Bill Scheffler
A12: Pre Test | B12: =Data!G1 -> Teacher6 | C12: =SummaryPretest!B8 -> 0 | E12: =SummaryPretest!D8 -> 0 | F12: =E12/C12 ->  | G12: =SummaryPretest!F8 ->  | I12: =SummaryPretest!H8 -> 0 | K12: =SummaryPretest!J8 ->  | M12: =SummaryPretest!L8 -> 0 | O12: =SummaryPretest!N8 ->  | Q12: =SummaryPretest!P8 -> 0 | S12: =SummaryPretest!R8 -> 
A13: Post Test | B13: =Data!G1 -> Teacher6 | C13: =SummaryPost!B8 -> 0 | E13: =SummaryPost!D8 -> 0 | F13: =E13/C13 ->  | G13: =SummaryPost!F8 ->  | I13: =SummaryPost!H8 -> 0 | K13: =SummaryPost!J8 ->  | M13: =SummaryPost!L8 -> 0 | O13: =SummaryPost!N8 ->  | Q13: =SummaryPost!P8 -> 0 | S13: =SummaryPost!R8 -> 

Sheet Do Not Delete (hidden)
A1: Teacher | B1: Test | C1: Proficient and Higher | D1: Close to Proficiency | E1: Far to Go But Likely to Become Proficient | F1: Intervention (Far to Go and Not Likely to Become Proficient)
A2: =Data!A1 -> March | B2: Pre Test | C2: =SummaryComparison!E2 -> 6 | D2: =SummaryComparison!I2 -> 2 | E2: =SummaryComparison!M2 -> 5 | F2: =SummaryComparison!Q2 -> 6
A3: =Data!A1 -> March | B3: Post Test | C3: =SummaryComparison!E3 -> 11 | D3: =SummaryComparison!I3 -> 4 | E3: =SummaryComparison!M3 -> 2 | F3: =SummaryComparison!Q3 -> 2
A4: =Data!B1 -> Jones | B4: Pre Test | C4: =SummaryComparison!E4 -> 7 | D4: =SummaryComparison!I4 -> 3 | E4: =SummaryComparison!M4 -> 3 | F4: =SummaryComparison!Q4 -> 8
A5: =Data!B1 -> Jones | B5: Post Test | C5: =SummaryComparison!E5 -> 11 | D5: =SummaryComparison!I5 -> 3 | E5: =SummaryComparison!M5 -> 5 | F5: =SummaryComparison!Q5 -> 2
A6: =Data!C1 -> Gibson | B6: Pre Test | C6: =SummaryComparison!E6 -> 5 | D6: =SummaryComparison!I6 -> 5 | E6: =SummaryComparison!M6 -> 2 | F6: =SummaryComparison!Q6 -> 8
A7: =Data!C1 -> Gibson | B7: Post Test | C7: =SummaryComparison!E7 -> 12 | D7: =SummaryComparison!I7 -> 4 | E7: =SummaryComparison!M7 -> 2 | F7: =SummaryComparison!Q7 -> 2
A8: =Data!D1 -> Smith | B8: Pre Test | C8: =SummaryComparison!E8 -> 7 | D8: =SummaryComparison!I8 -> 3 | E8: =SummaryComparison!M8 -> 2 | F8: =SummaryComparison!Q8 -> 7
A9: =Data!D1 -> Smith | B9: Post Test | C9: =SummaryComparison!E9 -> 10 | D9: =SummaryComparison!I9 -> 6 | E9: =SummaryComparison!M9 -> 0 | F9: =SummaryComparison!Q9 -> 3
A10: =Data!F1 -> Milburn | B10: Pre Test | C10: =SummaryComparison!E10 -> 2 | D10: =SummaryComparison!I10 -> 4 | E10: =SummaryComparison!M10 -> 5 | F10: =SummaryComparison!Q10 -> 5
A11: =Data!F1 -> Milburn | B11: Post Test | C11: =SummaryComparison!E11 -> 11 | D11: =SummaryComparison!I11 -> 3 | E11: =SummaryComparison!M11 -> 1 | F11: =SummaryComparison!Q11 -> 1
A12: =Data!G1 -> Teacher6 | B12: Pre Test | C12: =SummaryComparison!E12 -> 0 | D12: =SummaryComparison!I12 -> 0 | E12: =SummaryComparison!M12 -> 0 | F12: =SummaryComparison!Q12 -> 0
A13: =Data!G1 -> Teacher6 | B13: Post Test | C13: =SummaryComparison!E13 -> 0 | D13: =SummaryComparison!I13 -> 0 | E13: =SummaryComparison!M13 -> 0 | F13: =SummaryComparison!Q13 -> 0

Sheet Teacher1Pretest
B1: =IF(Data!N6="Other",Data!N7,Data!N6) -> Grade 4 | D1: =Data!A1 -> March
B2: Meeting Date: | D2: =Data!N8 -> 2/26/14
B3: Assessment: | D3: =Data!N9 -> Main Idea- R.I.4.2
B5: Student Name | C5: Points | D5: Possible | E5: Score - %
D7: =Data!N10 -> 6 | F7: Proficient | H7: Close | J7: Far | L7: Intervention
A8: =IF(ISBLANK(C8),"FALSE",IF(LEFT(B8,2)="**",IF(C8>=$O$8,$O$8,IF(C8>=$O$9,$O$9,IF(C8>=$O$10,$O$10,$O$11))))) -> FALSE | B8: =Data!A2 -> Judy Blome | C8: 3 | D8: =IF(C8="","",$D$7) -> 6 | E8: =IF(D8="","",C8/$D$7) -> 0.5 | F8: =IF(C8>=O8,B8,"") ->  | G8: =F8 ->  | H8: =IF(C8>=O9,IF(C8<O8,B8,""),"") ->  | I8: =H8 ->  | J8: =IF(C8>=O10,IF(C8<O9,B8,""),"") -> Judy Blome | K8: =J8 -> Judy Blome | L8: =IF(C8<O10,IF(C8="","",B8),"") ->  | M8: =L8 ->  | O8: =Data!N11 -> 5 | P8: Proficient
A9: =IF(ISBLANK(C9),"FALSE",IF(LEFT(B9,2)="**",IF(C9>=$O$8,$O$8,IF(C9>=$O$9,$O$9,IF(C9>=$O$10,$O$10,$O$11))))) -> FALSE | B9: =Data!A3 -> Lewis Carroll | C9: 2 | D9: =IF(C9="","",$D$7) -> 6 | E9: =IF(D9="","",C9/$D$7) -> 0.3333333333 | F9: =IF(C9>=O8,B9,"") ->  | G9: =G8&IF(F9="","",", ")&F9 ->  | H9: =IF(C9>=O9,IF(C9<O8,B9,""),"") ->  | I9: =I8&IF(H9="","",", ")&H9 ->  | J9: =IF(C9>=O10,IF(C9<O9,B9,""),"") ->  | K9: =K8&IF(J9="","",", ")&J9 -> Judy Blome | L9: =IF(C9<O10,IF(C9="","",B9),"") -> Lewis Carroll | M9: =M8&IF(L9="","",", ")&L9 -> , Lewis Carroll | O9: =Data!N12 -> 4 | P9: Close to Proficient
A10: FALSE | B10: =Data!A4 -> Betsy Byars | C10: 4 | D10: 6 | E10: 0.6666666667 | F10: =IF(C10>=O8,B10,"") ->  | G10: =G9&IF(F10="","",", ")&F10 ->  | H10: =IF(C10>=O9,IF(C10<O8,B10,""),"") -> Betsy Byars | I10: =I9&IF(H10="","",", ")&H10 -> , Betsy Byars | J10: =IF(C10>=O10,IF(C10<O9,B10,""),"") ->  | K10: =K9&IF(J10="","",", ")&J10 -> Judy Blome | L10: =IF(C10<O10,IF(C10="","",B10),"") ->  | M10: =M9&IF(L10="","",", ")&L10 -> , Lewis Carroll | O10: =Data!N13 -> 3 | P10: Far to Go But Likely to Become Proficient
A11: FALSE | B11: =Data!A5 -> Pam Conrad | C11: 2 | D11: 6 | E11: 0.3333333333 | F11: =IF(C11>=O8,B11,"") ->  | H11: =IF(C11>=O9,IF(C11<O8,B11,""),"") ->  | I11: , Betsy Byars | J11: =IF(C11>=O10,IF(C11<O9,B11,""),"") ->  | K11: Judy Blome | L11: =IF(C11<O10,IF(C11="","",B11),"") -> Pam Conrad | M11: , Lewis Carroll, Pam Conrad | O11: =Data!N14 -> 1 | P11: Intervention (Far to Go But Not Likely to Become Proficient)
A12: FALSE | B12: =Data!A6 -> Jean Fritz | C12: 6 | D12: 6 | E12: 1 | F12: =IF(C12>=O8,B12,"") -> Jean Fritz | G12: , Jean Fritz | H12: =IF(C12>=O9,IF(C12<O8,B12,""),"") ->  | I12: , Betsy Byars | J12: =IF(C12>=O10,IF(C12<O9,B12,""),"") ->  | K12: Judy Blome | L12: =IF(C12<O10,IF(C12="","",B12),"") ->  | M12: , Lewis Carroll, Pam Conrad
A13: FALSE | B13: =Data!A7 -> C.S. Lewis | C13: 2 | D13: 6 | E13: 0.3333333333 | F13: =IF(C13>=O8,B13,"") ->  | G13: , Jean Fritz | H13: =IF(C13>=O9,IF(C13<O8,B13,""),"") ->  | I13: , Betsy Byars | J13: =IF(C13>=O10,IF(C13<O9,B13,""),"") ->  | K13: Judy Blome | L13: =IF(C13<O10,IF(C13="","",B13),"") -> C.S. Lewis | M13: , Lewis Carroll, Pam Conrad, C.S. Lewis
A14: FALSE | B14: =Data!A8 -> Lois Lowry | C14: 6 | D14: 6 | E14: 1 | F14: =IF(C14>=O8,B14,"") -> Lois Lowry | G14: , Jean Fritz, Lois Lowry | H14: =IF(C14>=O9,IF(C14<O8,B14,""),"") ->  | I14: , Betsy Byars | J14: =IF(C14>=O10,IF(C14<O9,B14,""),"") ->  | K14: Judy Blome | L14: =IF(C14<O10,IF(C14="","",B14),"") ->  | M14: , Lewis Carroll, Pam Conrad, C.S. Lewis
A15: FALSE | B15: =Data!A9 -> Patricia MacLachlan | C15: 3 | D15: 6 | E15: 0.5 | F15: =IF(C15>=O8,B15,"") ->  | G15: , Jean Fritz, Lois Lowry | H15: =IF(C15>=O9,IF(C15<O8,B15,""),"") ->  | I15: , Betsy Byars | J15: =IF(C15>=O10,IF(C15<O9,B15,""),"") -> Patricia MacLachlan | K15: Judy Blome, Patricia MacLachlan | L15: =IF(C15<O10,IF(C15="","",B15),"") ->  | M15: , Lewis Carroll, Pam Conrad, C.S. Lewis
A16: 3 | B16: =Data!A10 -> **Barbara Park | C16: 3 | D16: 6 | E16: 0.5 | F16: =IF(C16>=O8,B16,"") ->  | G16: , Jean Fritz, Lois Lowry | H16: =IF(C16>=O9,IF(C16<O8,B16,""),"") ->  | I16: , Betsy Byars | J16: =IF(C16>=O10,IF(C16<O9,B16,""),"") -> **Barbara Park | K16: Judy Blome, Patricia MacLachlan, **Barbara Park | L16: =IF(C16<O10,IF(C16="","",B16),"") ->  | M16: , Lewis Carroll, Pam Conrad, C.S. Lewis
A17: 1 | B17: =Data!A11 -> **Gary Paulsen | C17: 1 | D17: 6 | E17: 0.1666666667 | F17: =IF(C17>=O8,B17,"") ->  | G17: , Jean Fritz, Lois Lowry | H17: =IF(C17>=O9,IF(C17<O8,B17,""),"") ->  | I17: , Betsy Byars | J17: =IF(C17>=O10,IF(C17<O9,B17,""),"") ->  | K17: Judy Blome, Patricia MacLachlan, **Barbara Park | L17: =IF(C17<O10,IF(C17="","",B17),"") -> **Gary Paulsen | M17: , Lewis Carroll, Pam Conrad, C.S. Lewis, **Gary Paulsen
A18: FALSE | B18: =Data!A12 -> Jack Prelutsky | C18: 3 | D18: 6 | E18: 0.5 | F18: =IF(C18>=O8,B18,"") ->  | G18: , Jean Fritz, Lois Lowry | H18: =IF(C18>=O9,IF(C18<O8,B18,""),"") ->  | I18: , Betsy Byars | J18: =IF(C18>=O10,IF(C18<O9,B18,""),"") -> Jack Prelutsky | K18: Judy Blome, Patricia MacLachlan, **Barbara Park, Jack Prelutsky | L18: =IF(C18<O10,IF(C18="","",B18),"") ->  | M18: , Lewis Carroll, Pam Conrad, C.S. Lewis, **Gary Paulsen
A19: FALSE | B19: =Data!A13 -> Cynthia Rylant | C19: 1 | D19: 6 | E19: 0.1666666667 | F19: =IF(C19>=O8,B19,"") ->  | G19: , Jean Fritz, Lois Lowry | H19: =IF(C19>=O9,IF(C19<O8,B19,""),"") ->  | I19: , Betsy Byars | J19: =IF(C19>=O10,IF(C19<O9,B19,""),"") ->  | K19: Judy Blome, Patricia MacLachlan, **Barbara Park, Jack Prelutsky | L19: =IF(C19<O10,IF(C19="","",B19),"") -> Cynthia Rylant | M19: , Lewis Carroll, Pam Conrad, C.S. Lewis, **Gary Paulsen, Cynthia Rylant
A20: FALSE | B20: =Data!A14 -> Louis Sachar | C20: 5 | D20: 6 | E20: 0.8333333333 | F20: =IF(C20>=O8,B20,"") -> Louis Sachar | G20: , Jean Fritz, Lois Lowry, Louis Sachar | H20: =IF(C20>=O9,IF(C20<O8,B20,""),"") ->  | I20: , Betsy Byars | J20: =IF(C20>=O10,IF(C20<O9,B20,""),"") ->  | K20: Judy Blome, Patricia MacLachlan, **Barbara Park, Jack Prelutsky | L20: =IF(C20<O10,IF(C20="","",B20),"") ->  | M20: , Lewis Carroll, Pam Conrad, C.S. Lewis, **Gary Paulsen, Cynthia Rylant
A21: FALSE | B21: =Data!A15 -> Shel Silverstein | C21: 6 | D21: 6 | E21: 1 | F21: =IF(C21>=O8,B21,"") -> Shel Silverstein | G21: , Jean Fritz, Lois Lowry, Louis Sachar, Shel Silverstein | H21: =IF(C21>=O9,IF(C21<O8,B21,""),"") ->  | I21: , Betsy Byars | J21: =IF(C21>=O10,IF(C21<O9,B21,""),"") ->  | K21: Judy Blome, Patricia MacLachlan, **Barbara Park, Jack Prelutsky | L21: =IF(C21<O10,IF(C21="","",B21),"") ->  | M21: , Lewis Carroll, Pam Conrad, C.S. Lewis, **Gary Paulsen, Cynthia Rylant
A22: FALSE | B22: =Data!A16 -> Seymour Simon | C22: 5 | D22: 6 | E22: 0.8333333333 | F22: =IF(C22>=O8,B22,"") -> Seymour Simon | G22: , Jean Fritz, Lois Lowry, Louis Sachar, Shel Silverstein, Seymour Simon | H22: =IF(C22>=O9,IF(C22<O8,B22,""),"") ->  | I22: , Betsy Byars | J22: =IF(C22>=O10,IF(C22<O9,B22,""),"") ->  | K22: Judy Blome, Patricia MacLachlan, **Barbara Park, Jack Prelutsky | L22: =IF(C22<O10,IF(C22="","",B22),"") ->  | M22: , Lewis Carroll, Pam Conrad, C.S. Lewis, **Gary Paulsen, Cynthia Rylant
A23: 4 | B23: =Data!A17 -> **Jerry Spinelli | C23: 4 | D23: 6 | E23: 0.6666666667 | F23: =IF(C23>=O8,B23,"") ->  | G23: , Jean Fritz, Lois Lowry, Louis Sachar, Shel Silverstein, Seymour Simon | H23: =IF(C23>=O9,IF(C23<O8,B23,""),"") -> **Jerry Spinelli | I23: , Betsy Byars, **Jerry Spinelli | J23: =IF(C23>=O10,IF(C23<O9,B23,""),"") ->  | K23: Judy Blome, Patricia MacLachlan, **Barbara Park, Jack Prelutsky | L23: =IF(C23<O10,IF(C23="","",B23),"") ->  | M23: , Lewis Carroll, Pam Conrad, C.S. Lewis, **Gary Paulsen, Cynthia Rylant
A24: FALSE | B24: =Data!A18 -> R.L. Stine | C24: 3 | D24: 6 | E24: 0.5 | F24: =IF(C24>=O8,B24,"") ->  | G24: , Jean Fritz, Lois Lowry, Louis Sachar, Shel Silverstein, Seymour Simon | H24: =IF(C24>=O9,IF(C24<O8,B24,""),"") ->  | I24: , Betsy Byars, **Jerry Spinelli | J24: =IF(C24>=O10,IF(C24<O9,B24,""),"") -> R.L. Stine | K24: Judy Blome, Patricia MacLachlan, **Barbara Park, Jack Prelutsky, R.L. Stine | L24: =IF(C24<O10,IF(C24="","",B24),"") ->  | M24: , Lewis Carroll, Pam Conrad, C.S. Lewis, **Gary Paulsen, Cynthia Rylant
A25: FALSE | B25: =Data!A19 -> Jane Yolen | C25: 5 | D25: 6 | E25: 0.8333333333 | F25: =IF(C25>=O8,B25,"") -> Jane Yolen | G25: , Jean Fritz, Lois Lowry, Louis Sachar, Shel Silverstein, Seymour Simon, Jane Yolen | H25: =IF(C25>=O9,IF(C25<O8,B25,""),"") ->  | I25: , Betsy Byars, **Jerry Spinelli | J25: =IF(C25>=O10,IF(C25<O9,B25,""),"") ->  | K25: Judy Blome, Patricia MacLachlan, **Barbara Park, Jack Prelutsky, R.L. Stine | L25: =IF(C25<O10,IF(C25="","",B25),"") ->  | M25: , Lewis Carroll, Pam Conrad, C.S. Lewis, **Gary Paulsen, Cynthia Rylant
A26: FALSE | B26: =Data!A20 -> J.K. Rowling | C26: 1 | D26: 6 | E26: 0.1666666667 | F26: =IF(C26>=O8,B26,"") ->  | G26: , Jean Fritz, Lois Lowry, Louis Sachar, Shel Silverstein, Seymour Simon, Jane Yolen | H26: =IF(C26>=O9,IF(C26<O8,B26,""),"") ->  | I26: , Betsy Byars, **Jerry Spinelli | J26: =IF(C26>=O10,IF(C26<O9,B26,""),"") ->  | K26: Judy Blome, Patricia MacLachlan, **Barbara Park, Jack Prelutsky, R.L. Stine | L26: =IF(C26<O10,IF(C26="","",B26),"") -> J.K. Rowling | M26: , Lewis Carroll, Pam Conrad, C.S. Lewis, **Gary Paulsen, Cynthia Rylant, J.K. Rowling
A27: FALSE | B27: =Data!A21 -> Student20 | F27: =IF(C27>=O8,B27,"") ->  | G27: , Jean Fritz, Lois Lowry, Louis Sachar, Shel Silverstein, Seymour Simon, Jane Yolen | H27: =IF(C27>=O9,IF(C27<O8,B27,""),"") ->  | I27: , Betsy Byars, **Jerry Spinelli | J27: =IF(C27>=O10,IF(C27<O9,B27,""),"") ->  | K27: Judy Blome, Patricia MacLachlan, **Barbara Park, Jack Prelutsky, R.L. Stine | L27: =IF(C27<O10,IF(C27="","",B27),"") ->  | M27: , Lewis Carroll, Pam Conrad, C.S. Lewis, **Gary Paulsen, Cynthia Rylant, J.K. Rowling
A28: FALSE | B28: =Data!A22 -> Student21 | F28: =IF(C28>=O8,B28,"") ->  | G28: , Jean Fritz, Lois Lowry, Louis Sachar, Shel Silverstein, Seymour Simon, Jane Yolen | H28: =IF(C28>=O9,IF(C28<O8,B28,""),"") ->  | I28: , Betsy Byars, **Jerry Spinelli | J28: =IF(C28>=O10,IF(C28<O9,B28,""),"") ->  | K28: Judy Blome, Patricia MacLachlan, **Barbara Park, Jack Prelutsky, R.L. Stine | L28: =IF(C28<O10,IF(C28="","",B28),"") ->  | M28: , Lewis Carroll, Pam Conrad, C.S. Lewis, **Gary Paulsen, Cynthia Rylant, J.K. Rowling
A29: FALSE | B29: =Data!A23 -> Student22 | F29: =IF(C29>=O8,B29,"") ->  | G29: , Jean Fritz, Lois Lowry, Louis Sachar, Shel Silverstein, Seymour Simon, Jane Yolen | H29: =IF(C29>=O9,IF(C29<O8,B29,""),"") ->  | I29: , Betsy Byars, **Jerry Spinelli | J29: =IF(C29>=O10,IF(C29<O9,B29,""),"") ->  | K29: Judy Blome, Patricia MacLachlan, **Barbara Park, Jack Prelutsky, R.L. Stine | L29: =IF(C29<O10,IF(C29="","",B29),"") ->  | M29: , Lewis Carroll, Pam Conrad, C.S. Lewis, **Gary Paulsen, Cynthia Rylant, J.K. Rowling
A30: FALSE | B30: =Data!A24 -> Student23 | F30: =IF(C30>=O8,B30,"") ->  | G30: , Jean Fritz, Lois Lowry, Louis Sachar, Shel Silverstein, Seymour Simon, Jane Yolen | H30: =IF(C30>=O9,IF(C30<O8,B30,""),"") ->  | I30: , Betsy Byars, **Jerry Spinelli | J30: =IF(C30>=O10,IF(C30<O9,B30,""),"") ->  | K30: Judy Blome, Patricia MacLachlan, **Barbara Park, Jack Prelutsky, R.L. Stine | L30: =IF(C30<O10,IF(C30="","",B30),"") ->  | M30: , Lewis Carroll, Pam Conrad, C.S. Lewis, **Gary Paulsen, Cynthia Rylant, J.K. Rowling
A31: FALSE | B31: =Data!A25 -> Student24 | F31: =IF(C31>=O8,B31,"") ->  | G31: , Jean Fritz, Lois Lowry, Louis Sachar, Shel Silverstein, Seymour Simon, Jane Yolen | H31: =IF(C31>=O9,IF(C31<O8,B31,""),"") ->  | I31: , Betsy Byars, **Jerry Spinelli | J31: =IF(C31>=O10,IF(C31<O9,B31,""),"") ->  | K31: Judy Blome, Patricia MacLachlan, **Barbara Park, Jack Prelutsky, R.L. Stine | L31: =IF(C31<O10,IF(C31="","",B31),"") ->  | M31: , Lewis Carroll, Pam Conrad, C.S. Lewis, **Gary Paulsen, Cynthia Rylant, J.K. Rowling
A32: FALSE | B32: =Data!A26 -> Student25 | F32: =IF(C32>=O8,B32,"") ->  | G32: , Jean Fritz, Lois Lowry, Louis Sachar, Shel Silverstein, Seymour Simon, Jane Yolen | H32: =IF(C32>=O9,IF(C32<O8,B32,""),"") ->  | I32: , Betsy Byars, **Jerry Spinelli | J32: =IF(C32>=O10,IF(C32<O9,B32,""),"") ->  | K32: Judy Blome, Patricia MacLachlan, **Barbara Park, Jack Prelutsky, R.L. Stine | L32: =IF(C32<O10,IF(C32="","",B32),"") ->  | M32: , Lewis Carroll, Pam Conrad, C.S. Lewis, **Gary Paulsen, Cynthia Rylant, J.K. Rowling
A33: FALSE | B33: =Data!A27 -> Student26 | F33: =IF(C33>=O8,B33,"") ->  | G33: , Jean Fritz, Lois Lowry, Louis Sachar, Shel Silverstein, Seymour Simon, Jane Yolen | H33: =IF(C33>=O9,IF(C33<O8,B33,""),"") ->  | I33: , Betsy Byars, **Jerry Spinelli | J33: =IF(C33>=O10,IF(C33<O9,B33,""),"") ->  | K33: Judy Blome, Patricia MacLachlan, **Barbara Park, Jack Prelutsky, R.L. Stine | L33: =IF(C33<O10,IF(C33="","",B33),"") ->  | M33: , Lewis Carroll, Pam Conrad, C.S. Lewis, **Gary Paulsen, Cynthia Rylant, J.K. Rowling
A34: FALSE | B34: =Data!A28 -> Student27 | F34: =IF(C34>=O8,B34,"") ->  | G34: , Jean Fritz, Lois Lowry, Louis Sachar, Shel Silverstein, Seymour Simon, Jane Yolen | H34: =IF(C34>=O9,IF(C34<O8,B34,""),"") ->  | I34: , Betsy Byars, **Jerry Spinelli | J34: =IF(C34>=O10,IF(C34<O9,B34,""),"") ->  | K34: Judy Blome, Patricia MacLachlan, **Barbara Park, Jack Prelutsky, R.L. Stine | L34: =IF(C34<O10,IF(C34="","",B34),"") ->  | M34: , Lewis Carroll, Pam Conrad, C.S. Lewis, **Gary Paulsen, Cynthia Rylant, J.K. Rowling
A35: FALSE | B35: =Data!A29 -> Student28 | F35: =IF(C35>=O8,B35,"") ->  | G35: , Jean Fritz, Lois Lowry, Louis Sachar, Shel Silverstein, Seymour Simon, Jane Yolen | H35: =IF(C35>=O9,IF(C35<O8,B35,""),"") ->  | I35: , Betsy Byars, **Jerry Spinelli | J35: =IF(C35>=O10,IF(C35<O9,B35,""),"") ->  | K35: Judy Blome, Patricia MacLachlan, **Barbara Park, Jack Prelutsky, R.L. Stine | L35: =IF(C35<O10,IF(C35="","",B35),"") ->  | M35: , Lewis Carroll, Pam Conrad, C.S. Lewis, **Gary Paulsen, Cynthia Rylant, J.K. Rowling
A36: FALSE | B36: =Data!A30 -> Student29 | F36: =IF(C36>=O8,B36,"") ->  | G36: , Jean Fritz, Lois Lowry, Louis Sachar, Shel Silverstein, Seymour Simon, Jane Yolen | H36: =IF(C36>=O9,IF(C36<O8,B36,""),"") ->  | I36: , Betsy Byars, **Jerry Spinelli | J36: =IF(C36>=O10,IF(C36<O9,B36,""),"") ->  | K36: Judy Blome, Patricia MacLachlan, **Barbara Park, Jack Prelutsky, R.L. Stine | L36: =IF(C36<O10,IF(C36="","",B36),"") ->  | M36: , Lewis Carroll, Pam Conrad, C.S. Lewis, **Gary Paulsen, Cynthia Rylant, J.K. Rowling
A37: FALSE | B37: =Data!A31 -> Student30 | F37: =IF(C37>=O8,B37,"") ->  | G37: , Jean Fritz, Lois Lowry, Louis Sachar, Shel Silverstein, Seymour Simon, Jane Yolen | H37: =IF(C37>=O9,IF(C37<O8,B37,""),"") ->  | I37: , Betsy Byars, **Jerry Spinelli | J37: =IF(C37>=O10,IF(C37<O9,B37,""),"") ->  | K37: Judy Blome, Patricia MacLachlan, **Barbara Park, Jack Prelutsky, R.L. Stine | L37: =IF(C37<O10,IF(C37="","",B37),"") ->  | M37: , Lewis Carroll, Pam Conrad, C.S. Lewis, **Gary Paulsen, Cynthia Rylant, J.K. Rowling
A38: FALSE
B39: TOTAL | C39: =SUM(C8:C37) -> 65 | D39: =SUM(D8:D37) -> 114 | E39: =C39/D39 -> 0.5701754386

Sheet Teacher2Pretest
B1: =IF(Data!N6="Other",Data!N7,Data!N6) -> Grade 4 | D1: =Data!B1 -> Jones
B2: Meeting Date: | D2: =Data!N8 -> 2/26/14
B3: Assessment: | D3: =Teacher1Pretest!D3 -> Main Idea- R.I.4.2
B5: Student Name | C5: Points | D5: Possible | E5: Score - %
D7: =Teacher1Pretest!D7 -> 6 | F7: Proficient | H7: Close | J7: Far | L7: Intervention
A8: =IF(ISBLANK(C8),"FALSE",IF(LEFT(B8,2)="**",IF(C8>=$O$8,$O$8,IF(C8>=$O$9,$O$9,IF(C8>=$O$10,$O$10,$O$11))))) -> 5 | B8: =Data!B2 -> **Justin Bieber | C8: 5 | D8: =IF(C8="","",$D$7) -> 6 | E8: =IF(D8="","",C8/$D$7) -> 0.8333333333 | F8: =IF(C8>=O8,B8,"") -> **Justin Bieber | G8: =F8 -> **Justin Bieber | H8: =IF(C8>=O9,IF(C8<O8,B8,""),"") ->  | I8: =H8 ->  | J8: =IF(C8>=O10,IF(C8<O9,B8,""),"") ->  | K8: =J8 ->  | L8: =IF(C8<O10,IF(C8="","",B8),"") ->  | M8: =L8 ->  | O8: =Data!N11 -> 5 | P8: Proficient
A9: =IF(ISBLANK(C9),"FALSE",IF(LEFT(B9,2)="**",IF(C9>=$O$8,$O$8,IF(C9>=$O$9,$O$9,IF(C9>=$O$10,$O$10,$O$11))))) -> FALSE | B9: =Data!B3 -> Taylor Swift | C9: 5 | D9: =IF(C9="","",$D$7) -> 6 | E9: =IF(D9="","",C9/$D$7) -> 0.8333333333 | F9: =IF(C9>=O8,B9,"") -> Taylor Swift | G9: =G8&IF(F9="","",", ")&F9 -> **Justin Bieber, Taylor Swift | H9: =IF(C9>=O9,IF(C9<O8,B9,""),"") ->  | I9: =I8&IF(H9="","",", ")&H9 ->  | J9: =IF(C9>=O10,IF(C9<O9,B9,""),"") ->  | K9: =K8&IF(J9="","",", ")&J9 ->  | L9: =IF(C9<O10,IF(C9="","",B9),"") ->  | M9: =M8&IF(L9="","",", ")&L9 ->  | O9: =Data!N12 -> 4 | P9: Close to Proficient
A10: FALSE | B10: =Data!B4 -> Beyonce Knowles | C10: 5 | D10: 6 | E10: 0.8333333333 | F10: =IF(C10>=O8,B10,"") -> Beyonce Knowles | G10: =G9&IF(F10="","",", ")&F10 -> **Justin Bieber, Taylor Swift, Beyonce Knowles | H10: =IF(C10>=O9,IF(C10<O8,B10,""),"") ->  | I10: =I9&IF(H10="","",", ")&H10 ->  | J10: =IF(C10>=O10,IF(C10<O9,B10,""),"") ->  | K10: =K9&IF(J10="","",", ")&J10 ->  | L10: =IF(C10<O10,IF(C10="","",B10),"") ->  | M10: =M9&IF(L10="","",", ")&L10 ->  | O10: =Data!N13 -> 3 | P10: Far to Go But Likely to Become Proficient
A11: FALSE | B11: =Data!B5 -> Madonna | C11: 4 | D11: 6 | E11: 0.6666666667 | F11: =IF(C11>=O8,B11,"") ->  | G11: **Justin Bieber, Taylor Swift, Beyonce Knowles | H11: =IF(C11>=O9,IF(C11<O8,B11,""),"") -> Madonna | I11: , Madonna | J11: =IF(C11>=O10,IF(C11<O9,B11,""),"") ->  | L11: =IF(C11<O10,IF(C11="","",B11),"") ->  | O11: =Data!N14 -> 1 | P11: Intervention (Far to Go But Not Likely to Become Proficient)
A12: FALSE | B12: =Data!B6 -> Justin Timberlake | C12: 1 | D12: 6 | E12: 0.1666666667 | F12: =IF(C12>=O8,B12,"") ->  | G12: **Justin Bieber, Taylor Swift, Beyonce Knowles | H12: =IF(C12>=O9,IF(C12<O8,B12,""),"") ->  | I12: , Madonna | J12: =IF(C12>=O10,IF(C12<O9,B12,""),"") ->  | L12: =IF(C12<O10,IF(C12="","",B12),"") -> Justin Timberlake | M12: , Justin Timberlake
A13: FALSE | B13: =Data!B7 -> Bon Jovi | C13: 2 | D13: 6 | E13: 0.3333333333 | F13: =IF(C13>=O8,B13,"") ->  | G13: **Justin Bieber, Taylor Swift, Beyonce Knowles | H13: =IF(C13>=O9,IF(C13<O8,B13,""),"") ->  | I13: , Madonna | J13: =IF(C13>=O10,IF(C13<O9,B13,""),"") ->  | L13: =IF(C13<O10,IF(C13="","",B13),"") -> Bon Jovi | M13: , Justin Timberlake, Bon Jovi
A14: FALSE | B14: =Data!B8 -> Tim McGraw | C14: 5 | D14: 6 | E14: 0.8333333333 | F14: =IF(C14>=O8,B14,"") -> Tim McGraw | G14: **Justin Bieber, Taylor Swift, Beyonce Knowles, Tim McGraw | H14: =IF(C14>=O9,IF(C14<O8,B14,""),"") ->  | I14: , Madonna | J14: =IF(C14>=O10,IF(C14<O9,B14,""),"") ->  | L14: =IF(C14<O10,IF(C14="","",B14),"") ->  | M14: , Justin Timberlake, Bon Jovi
A15: FALSE | B15: =Data!B9 -> Elton John | C15: 1 | D15: 6 | E15: 0.1666666667 | F15: =IF(C15>=O8,B15,"") ->  | G15: **Justin Bieber, Taylor Swift, Beyonce Knowles, Tim McGraw | H15: =IF(C15>=O9,IF(C15<O8,B15,""),"") ->  | I15: , Madonna | J15: =IF(C15>=O10,IF(C15<O9,B15,""),"") ->  | L15: =IF(C15<O10,IF(C15="","",B15),"") -> Elton John | M15: , Justin Timberlake, Bon Jovi, Elton John
A16: 5 | B16: =Data!B10 -> **Kelly Clarkson | C16: 5 | D16: 6 | E16: 0.8333333333 | F16: =IF(C16>=O8,B16,"") -> **Kelly Clarkson | G16: **Justin Bieber, Taylor Swift, Beyonce Knowles, Tim McGraw, **Kelly Clarkson | H16: =IF(C16>=O9,IF(C16<O8,B16,""),"") ->  | I16: , Madonna | J16: =IF(C16>=O10,IF(C16<O9,B16,""),"") ->  | L16: =IF(C16<O10,IF(C16="","",B16),"") ->  | M16: , Justin Timberlake, Bon Jovi, Elton John
A17: FALSE | B17: =Data!B11 -> Aretha Franklin | C17: 3 | D17: 6 | E17: 0.5 | F17: =IF(C17>=O8,B17,"") ->  | G17: **Justin Bieber, Taylor Swift, Beyonce Knowles, Tim McGraw, **Kelly Clarkson | H17: =IF(C17>=O9,IF(C17<O8,B17,""),"") ->  | I17: , Madonna | J17: =IF(C17>=O10,IF(C17<O9,B17,""),"") -> Aretha Franklin | K17: , Aretha Franklin | L17: =IF(C17<O10,IF(C17="","",B17),"") ->  | M17: , Justin Timberlake, Bon Jovi, Elton John
A18: FALSE | B18: =Data!B12 -> Lady Gaga | C18: 2 | D18: 6 | E18: 0.3333333333 | F18: =IF(C18>=O8,B18,"") ->  | G18: **Justin Bieber, Taylor Swift, Beyonce Knowles, Tim McGraw, **Kelly Clarkson | H18: =IF(C18>=O9,IF(C18<O8,B18,""),"") ->  | I18: , Madonna | J18: =IF(C18>=O10,IF(C18<O9,B18,""),"") ->  | K18: , Aretha Franklin | L18: =IF(C18<O10,IF(C18="","",B18),"") -> Lady Gaga | M18: , Justin Timberlake, Bon Jovi, Elton John, Lady Gaga
A19: FALSE | B19: =Data!B13 -> Billy Joel | C19: 4 | D19: 6 | E19: 0.6666666667 | F19: =IF(C19>=O8,B19,"") ->  | G19: **Justin Bieber, Taylor Swift, Beyonce Knowles, Tim McGraw, **Kelly Clarkson | H19: =IF(C19>=O9,IF(C19<O8,B19,""),"") -> Billy Joel | I19: , Madonna, Billy Joel | J19: =IF(C19>=O10,IF(C19<O9,B19,""),"") ->  | K19: , Aretha Franklin | L19: =IF(C19<O10,IF(C19="","",B19),"") ->  | M19: , Justin Timberlake, Bon Jovi, Elton John, Lady Gaga
A20: FALSE | B20: =Data!B14 -> Bruno Mars | C20: 6 | D20: 6 | E20: 1 | F20: =IF(C20>=O8,B20,"") -> Bruno Mars | G20: **Justin Bieber, Taylor Swift, Beyonce Knowles, Tim McGraw, **Kelly Clarkson, Bruno Mars | H20: =IF(C20>=O9,IF(C20<O8,B20,""),"") ->  | I20: , Madonna, Billy Joel | J20: =IF(C20>=O10,IF(C20<O9,B20,""),"") ->  | K20: , Aretha Franklin | L20: =IF(C20<O10,IF(C20="","",B20),"") ->  | M20: , Justin Timberlake, Bon Jovi, Elton John, Lady Gaga
A21: FALSE | B21: =Data!B15 -> Dolly Parton | C21: 3 | D21: 6 | E21: 0.5 | F21: =IF(C21>=O8,B21,"") ->  | G21: **Justin Bieber, Taylor Swift, Beyonce Knowles, Tim McGraw, **Kelly Clarkson, Bruno Mars | H21: =IF(C21>=O9,IF(C21<O8,B21,""),"") ->  | I21: , Madonna, Billy Joel | J21: =IF(C21>=O10,IF(C21<O9,B21,""),"") -> Dolly Parton | K21: , Aretha Franklin, Dolly Parton | L21: =IF(C21<O10,IF(C21="","",B21),"") ->  | M21: , Justin Timberlake, Bon Jovi, Elton John, Lady Gaga
A22: 1 | B22: =Data!B16 -> **Axl Rose | C22: 2 | D22: 6 | E22: 0.3333333333 | F22: =IF(C22>=O8,B22,"") ->  | G22: **Justin Bieber, Taylor Swift, Beyonce Knowles, Tim McGraw, **Kelly Clarkson, Bruno Mars | H22: =IF(C22>=O9,IF(C22<O8,B22,""),"") ->  | I22: , Madonna, Billy Joel | J22: =IF(C22>=O10,IF(C22<O9,B22,""),"") ->  | K22: , Aretha Franklin, Dolly Parton | L22: =IF(C22<O10,IF(C22="","",B22),"") -> **Axl Rose | M22: , Justin Timberlake, Bon Jovi, Elton John, Lady Gaga, **Axl Rose
A23: FALSE | B23: =Data!B17 -> Tony Bennett | C23: 2 | D23: 6 | E23: 0.3333333333 | F23: =IF(C23>=O8,B23,"") ->  | G23: **Justin Bieber, Taylor Swift, Beyonce Knowles, Tim McGraw, **Kelly Clarkson, Bruno Mars | H23: =IF(C23>=O9,IF(C23<O8,B23,""),"") ->  | I23: , Madonna, Billy Joel | J23: =IF(C23>=O10,IF(C23<O9,B23,""),"") ->  | K23: , Aretha Franklin, Dolly Parton | L23: =IF(C23<O10,IF(C23="","",B23),"") -> Tony Bennett | M23: , Justin Timberlake, Bon Jovi, Elton John, Lady Gaga, **Axl Rose, Tony Bennett
A24: FALSE | B24: =Data!B18 -> Pat Benatar | C24: 1 | D24: 6 | E24: 0.1666666667 | F24: =IF(C24>=O8,B24,"") ->  | G24: **Justin Bieber, Taylor Swift, Beyonce Knowles, Tim McGraw, **Kelly Clarkson, Bruno Mars | H24: =IF(C24>=O9,IF(C24<O8,B24,""),"") ->  | I24: , Madonna, Billy Joel | J24: =IF(C24>=O10,IF(C24<O9,B24,""),"") ->  | K24: , Aretha Franklin, Dolly Parton | L24: =IF(C24<O10,IF(C24="","",B24),"") -> Pat Benatar | M24: , Justin Timberlake, Bon Jovi, Elton John, Lady Gaga, **Axl Rose, Tony Bennett, Pat Benatar
A25: 5 | B25: =Data!B19 -> **Bob Dylan | C25: 5 | D25: 6 | E25: 0.8333333333 | F25: =IF(C25>=O8,B25,"") -> **Bob Dylan | G25: **Justin Bieber, Taylor Swift, Beyonce Knowles, Tim McGraw, **Kelly Clarkson, Bruno Mars, **Bob Dylan | H25: =IF(C25>=O9,IF(C25<O8,B25,""),"") ->  | I25: , Madonna, Billy Joel | J25: =IF(C25>=O10,IF(C25<O9,B25,""),"") ->  | K25: , Aretha Franklin, Dolly Parton | L25: =IF(C25<O10,IF(C25="","",B25),"") ->  | M25: , Justin Timberlake, Bon Jovi, Elton John, Lady Gaga, **Axl Rose, Tony Bennett, Pat Benatar
A26: FALSE | B26: =Data!B20 -> Eric Clapton | C26: 3 | D26: 6 | E26: 0.5 | F26: =IF(C26>=O8,B26,"") ->  | G26: **Justin Bieber, Taylor Swift, Beyonce Knowles, Tim McGraw, **Kelly Clarkson, Bruno Mars, **Bob Dylan | H26: =IF(C26>=O9,IF(C26<O8,B26,""),"") ->  | I26: , Madonna, Billy Joel | J26: =IF(C26>=O10,IF(C26<O9,B26,""),"") -> Eric Clapton | K26: , Aretha Franklin, Dolly Parton, Eric Clapton | L26: =IF(C26<O10,IF(C26="","",B26),"") ->  | M26: , Justin Timberlake, Bon Jovi, Elton John, Lady Gaga, **Axl Rose, Tony Bennett, Pat Benatar
A27: FALSE | B27: =Data!B21 -> Paul McCartney | C27: 2 | D27: 6 | E27: 0.3333333333 | F27: =IF(C27>=O8,B27,"") ->  | G27: **Justin Bieber, Taylor Swift, Beyonce Knowles, Tim McGraw, **Kelly Clarkson, Bruno Mars, **Bob Dylan | H27: =IF(C27>=O9,IF(C27<O8,B27,""),"") ->  | I27: , Madonna, Billy Joel | J27: =IF(C27>=O10,IF(C27<O9,B27,""),"") ->  | K27: , Aretha Franklin, Dolly Parton, Eric Clapton | L27: =IF(C27<O10,IF(C27="","",B27),"") -> Paul McCartney | M27: , Justin Timberlake, Bon Jovi, Elton John, Lady Gaga, **Axl Rose, Tony Bennett, Pat Benatar, Paul McCartney
A28: 4 | B28: =Data!B22 -> **Mick Jagger | C28: 4 | D28: 6 | E28: 0.6666666667 | F28: =IF(C28>=O8,B28,"") ->  | G28: **Justin Bieber, Taylor Swift, Beyonce Knowles, Tim McGraw, **Kelly Clarkson, Bruno Mars, **Bob Dylan | H28: =IF(C28>=O9,IF(C28<O8,B28,""),"") -> **Mick Jagger | I28: , Madonna, Billy Joel, **Mick Jagger | J28: =IF(C28>=O10,IF(C28<O9,B28,""),"") ->  | K28: , Aretha Franklin, Dolly Parton, Eric Clapton | L28: =IF(C28<O10,IF(C28="","",B28),"") ->  | M28: , Justin Timberlake, Bon Jovi, Elton John, Lady Gaga, **Axl Rose, Tony Bennett, Pat Benatar, Paul McCartney
A29: FALSE | B29: =Data!B23 -> Student22 | F29: =IF(C29>=O8,B29,"") ->  | G29: **Justin Bieber, Taylor Swift, Beyonce Knowles, Tim McGraw, **Kelly Clarkson, Bruno Mars, **Bob Dylan | H29: =IF(C29>=O9,IF(C29<O8,B29,""),"") ->  | I29: , Madonna, Billy Joel, **Mick Jagger | J29: =IF(C29>=O10,IF(C29<O9,B29,""),"") ->  | K29: , Aretha Franklin, Dolly Parton, Eric Clapton | L29: =IF(C29<O10,IF(C29="","",B29),"") ->  | M29: , Justin Timberlake, Bon Jovi, Elton John, Lady Gaga, **Axl Rose, Tony Bennett, Pat Benatar, Paul McCartney
A30: FALSE | B30: =Data!B24 -> Student23 | F30: =IF(C30>=O8,B30,"") ->  | G30: **Justin Bieber, Taylor Swift, Beyonce Knowles, Tim McGraw, **Kelly Clarkson, Bruno Mars, **Bob Dylan | H30: =IF(C30>=O9,IF(C30<O8,B30,""),"") ->  | I30: , Madonna, Billy Joel, **Mick Jagger | J30: =IF(C30>=O10,IF(C30<O9,B30,""),"") ->  | K30: , Aretha Franklin, Dolly Parton, Eric Clapton | L30: =IF(C30<O10,IF(C30="","",B30),"") ->  | M30: , Justin Timberlake, Bon Jovi, Elton John, Lady Gaga, **Axl Rose, Tony Bennett, Pat Benatar, Paul McCartney
A31: FALSE | B31: =Data!B25 -> Student24 | F31: =IF(C31>=O8,B31,"") ->  | G31: **Justin Bieber, Taylor Swift, Beyonce Knowles, Tim McGraw, **Kelly Clarkson, Bruno Mars, **Bob Dylan | H31: =IF(C31>=O9,IF(C31<O8,B31,""),"") ->  | I31: , Madonna, Billy Joel, **Mick Jagger | J31: =IF(C31>=O10,IF(C31<O9,B31,""),"") ->  | K31: , Aretha Franklin, Dolly Parton, Eric Clapton | L31: =IF(C31<O10,IF(C31="","",B31),"") ->  | M31: , Justin Timberlake, Bon Jovi, Elton John, Lady Gaga, **Axl Rose, Tony Bennett, Pat Benatar, Paul McCartney
A32: FALSE | B32: =Data!B26 -> Student25 | F32: =IF(C32>=O8,B32,"") ->  | G32: **Justin Bieber, Taylor Swift, Beyonce Knowles, Tim McGraw, **Kelly Clarkson, Bruno Mars, **Bob Dylan | H32: =IF(C32>=O9,IF(C32<O8,B32,""),"") ->  | I32: , Madonna, Billy Joel, **Mick Jagger | J32: =IF(C32>=O10,IF(C32<O9,B32,""),"") ->  | K32: , Aretha Franklin, Dolly Parton, Eric Clapton | L32: =IF(C32<O10,IF(C32="","",B32),"") ->  | M32: , Justin Timberlake, Bon Jovi, Elton John, Lady Gaga, **Axl Rose, Tony Bennett, Pat Benatar, Paul McCartney
A33: FALSE | B33: =Data!B27 -> Student26 | F33: =IF(C33>=O8,B33,"") ->  | G33: **Justin Bieber, Taylor Swift, Beyonce Knowles, Tim McGraw, **Kelly Clarkson, Bruno Mars, **Bob Dylan | H33: =IF(C33>=O9,IF(C33<O8,B33,""),"") ->  | I33: , Madonna, Billy Joel, **Mick Jagger | J33: =IF(C33>=O10,IF(C33<O9,B33,""),"") ->  | K33: , Aretha Franklin, Dolly Parton, Eric Clapton | L33: =IF(C33<O10,IF(C33="","",B33),"") ->  | M33: , Justin Timberlake, Bon Jovi, Elton John, Lady Gaga, **Axl Rose, Tony Bennett, Pat Benatar, Paul McCartney
A34: FALSE | B34: =Data!B28 -> Student27 | F34: =IF(C34>=O8,B34,"") ->  | G34: **Justin Bieber, Taylor Swift, Beyonce Knowles, Tim McGraw, **Kelly Clarkson, Bruno Mars, **Bob Dylan | H34: =IF(C34>=O9,IF(C34<O8,B34,""),"") ->  | I34: , Madonna, Billy Joel, **Mick Jagger | J34: =IF(C34>=O10,IF(C34<O9,B34,""),"") ->  | K34: , Aretha Franklin, Dolly Parton, Eric Clapton | L34: =IF(C34<O10,IF(C34="","",B34),"") ->  | M34: , Justin Timberlake, Bon Jovi, Elton John, Lady Gaga, **Axl Rose, Tony Bennett, Pat Benatar, Paul McCartney
A35: FALSE | B35: =Data!B29 -> Student28 | F35: =IF(C35>=O8,B35,"") ->  | G35: **Justin Bieber, Taylor Swift, Beyonce Knowles, Tim McGraw, **Kelly Clarkson, Bruno Mars, **Bob Dylan | H35: =IF(C35>=O9,IF(C35<O8,B35,""),"") ->  | I35: , Madonna, Billy Joel, **Mick Jagger | J35: =IF(C35>=O10,IF(C35<O9,B35,""),"") ->  | K35: , Aretha Franklin, Dolly Parton, Eric Clapton | L35: =IF(C35<O10,IF(C35="","",B35),"") ->  | M35: , Justin Timberlake, Bon Jovi, Elton John, Lady Gaga, **Axl Rose, Tony Bennett, Pat Benatar, Paul McCartney
A36: FALSE | B36: =Data!B30 -> Student29 | F36: =IF(C36>=O8,B36,"") ->  | G36: **Justin Bieber, Taylor Swift, Beyonce Knowles, Tim McGraw, **Kelly Clarkson, Bruno Mars, **Bob Dylan | H36: =IF(C36>=O9,IF(C36<O8,B36,""),"") ->  | I36: , Madonna, Billy Joel, **Mick Jagger | J36: =IF(C36>=O10,IF(C36<O9,B36,""),"") ->  | K36: , Aretha Franklin, Dolly Parton, Eric Clapton | L36: =IF(C36<O10,IF(C36="","",B36),"") ->  | M36: , Justin Timberlake, Bon Jovi, Elton John, Lady Gaga, **Axl Rose, Tony Bennett, Pat Benatar, Paul McCartney
A37: FALSE | B37: =Data!B31 -> Student30 | F37: =IF(C37>=O8,B37,"") ->  | G37: **Justin Bieber, Taylor Swift, Beyonce Knowles, Tim McGraw, **Kelly Clarkson, Bruno Mars, **Bob Dylan | H37: =IF(C37>=O9,IF(C37<O8,B37,""),"") ->  | I37: , Madonna, Billy Joel, **Mick Jagger | J37: =IF(C37>=O10,IF(C37<O9,B37,""),"") ->  | K37: , Aretha Franklin, Dolly Parton, Eric Clapton | L37: =IF(C37<O10,IF(C37="","",B37),"") ->  | M37: , Justin Timberlake, Bon Jovi, Elton John, Lady Gaga, **Axl Rose, Tony Bennett, Pat Benatar, Paul McCartney
A38: FALSE
B39: TOTAL | C39: =SUM(C8:C37) -> 70 | D39: =SUM(D8:D37) -> 126 | E39: =C39/D39 -> 0.5555555556

Sheet Teacher3Pretest
B1: =IF(Data!N6="Other",Data!N7,Data!N6) -> Grade 4 | D1: =Data!C1 -> Gibson
B2: Meeting Date: | D2: =Data!N8 -> 2/26/14
B3: Assessment: | D3: =Teacher1Pretest!D3 -> Main Idea- R.I.4.2
B5: Student Name | C5: Points | D5: Possible | E5: Score - %
D7: =Teacher1Pretest!D7 -> 6 | F7: Proficient | H7: Close | J7: Far | L7: Intervention
A8: =IF(ISBLANK(C8),"FALSE",IF(LEFT(B8,2)="**",IF(C8>=$O$8,$O$8,IF(C8>=$O$9,$O$9,IF(C8>=$O$10,$O$10,$O$11))))) -> 4 | B8: =Data!C2 -> **Albert Einstein | C8: 4 | D8: =IF(C8="","",$D$7) -> 6 | E8: =IF(D8="","",C8/$D$7) -> 0.6666666667 | F8: =IF(C8>=O8,B8,"") ->  | G8: =F8 ->  | H8: =IF(C8>=O9,IF(C8<O8,B8,""),"") -> **Albert Einstein | I8: =H8 -> **Albert Einstein | J8: =IF(C8>=O10,IF(C8<O9,B8,""),"") ->  | K8: =J8 ->  | L8: =IF(C8<O10,IF(C8="","",B8),"") ->  | M8: =L8 ->  | O8: =Teacher1Pretest!O8 -> 5 | P8: Proficient
A9: =IF(ISBLANK(C9),"FALSE",IF(LEFT(B9,2)="**",IF(C9>=$O$8,$O$8,IF(C9>=$O$9,$O$9,IF(C9>=$O$10,$O$10,$O$11))))) -> FALSE | B9: =Data!C3 -> Alfred Nobel | C9: 1 | D9: =IF(C9="","",$D$7) -> 6 | E9: =IF(D9="","",C9/$D$7) -> 0.1666666667 | F9: =IF(C9>=O8,B9,"") ->  | G9: =G8&IF(F9="","",", ")&F9 ->  | H9: =IF(C9>=O9,IF(C9<O8,B9,""),"") ->  | I9: =I8&IF(H9="","",", ")&H9 -> **Albert Einstein | J9: =IF(C9>=O10,IF(C9<O9,B9,""),"") ->  | K9: =K8&IF(J9="","",", ")&J9 ->  | L9: =IF(C9<O10,IF(C9="","",B9),"") -> Alfred Nobel | M9: =M8&IF(L9="","",", ")&L9 -> , Alfred Nobel | O9: =Teacher1Pretest!O9 -> 4 | P9: Close to Proficient
A10: FALSE | B10: =Data!C4 -> Benjamin Franklin | C10: 4 | D10: 6 | E10: 0.6666666667 | F10: =IF(C10>=O8,B10,"") ->  | G10: =G9&IF(F10="","",", ")&F10 ->  | H10: =IF(C10>=O9,IF(C10<O8,B10,""),"") -> Benjamin Franklin | I10: =I9&IF(H10="","",", ")&H10 -> **Albert Einstein, Benjamin Franklin | J10: =IF(C10>=O10,IF(C10<O9,B10,""),"") ->  | K10: =K9&IF(J10="","",", ")&J10 ->  | L10: =IF(C10<O10,IF(C10="","",B10),"") ->  | M10: =M9&IF(L10="","",", ")&L10 -> , Alfred Nobel | O10: =Teacher1Pretest!O10 -> 3 | P10: Far to Go But Likely to Become Proficient
A11: FALSE | B11: =Data!C5 -> Carl Sagan* | C11: 5 | D11: 6 | E11: 0.8333333333 | F11: =IF(C11>=O8,B11,"") -> Carl Sagan* | G11: , Carl Sagan* | H11: =IF(C11>=O9,IF(C11<O8,B11,""),"") ->  | I11: **Albert Einstein, Benjamin Franklin | J11: =IF(C11>=O10,IF(C11<O9,B11,""),"") ->  | L11: =IF(C11<O10,IF(C11="","",B11),"") ->  | M11: , Alfred Nobel | O11: =Teacher1Pretest!O11 -> 1 | P11: Intervention (Far to Go But Not Likely to Become Proficient)
A12: FALSE | B12: =Data!C6 -> Charles Darwin | C12: 2 | D12: 6 | E12: 0.3333333333 | F12: =IF(C12>=O8,B12,"") ->  | G12: , Carl Sagan* | H12: =IF(C12>=O9,IF(C12<O8,B12,""),"") ->  | I12: **Albert Einstein, Benjamin Franklin | J12: =IF(C12>=O10,IF(C12<O9,B12,""),"") ->  | L12: =IF(C12<O10,IF(C12="","",B12),"") -> Charles Darwin | M12: , Alfred Nobel, Charles Darwin
A13: FALSE | B13: =Data!C7 -> Henry Ford | C13: 3 | D13: 6 | E13: 0.5 | F13: =IF(C13>=O8,B13,"") ->  | G13: , Carl Sagan* | H13: =IF(C13>=O9,IF(C13<O8,B13,""),"") ->  | I13: **Albert Einstein, Benjamin Franklin | J13: =IF(C13>=O10,IF(C13<O9,B13,""),"") -> Henry Ford | K13: , Henry Ford | L13: =IF(C13<O10,IF(C13="","",B13),"") ->  | M13: , Alfred Nobel, Charles Darwin
A14: 1 | B14: =Data!C8 -> **Isaac Newton | C14: 2 | D14: 6 | E14: 0.3333333333 | F14: =IF(C14>=O8,B14,"") ->  | G14: , Carl Sagan* | H14: =IF(C14>=O9,IF(C14<O8,B14,""),"") ->  | I14: **Albert Einstein, Benjamin Franklin | J14: =IF(C14>=O10,IF(C14<O9,B14,""),"") ->  | K14: , Henry Ford | L14: =IF(C14<O10,IF(C14="","",B14),"") -> **Isaac Newton | M14: , Alfred Nobel, Charles Darwin, **Isaac Newton
A15: FALSE | B15: =Data!C9 -> Ivan Pavlov | C15: 2 | D15: 6 | E15: 0.3333333333 | F15: =IF(C15>=O8,B15,"") ->  | G15: , Carl Sagan* | H15: =IF(C15>=O9,IF(C15<O8,B15,""),"") ->  | I15: **Albert Einstein, Benjamin Franklin | J15: =IF(C15>=O10,IF(C15<O9,B15,""),"") ->  | K15: , Henry Ford | L15: =IF(C15<O10,IF(C15="","",B15),"") -> Ivan Pavlov | M15: , Alfred Nobel, Charles Darwin, **Isaac Newton, Ivan Pavlov
A16: FALSE | B16: =Data!C10 -> Jane Goodall | C16: 2 | D16: 6 | E16: 0.3333333333 | F16: =IF(C16>=O8,B16,"") ->  | G16: , Carl Sagan* | H16: =IF(C16>=O9,IF(C16<O8,B16,""),"") ->  | I16: **Albert Einstein, Benjamin Franklin | J16: =IF(C16>=O10,IF(C16<O9,B16,""),"") ->  | K16: , Henry Ford | L16: =IF(C16<O10,IF(C16="","",B16),"") -> Jane Goodall | M16: , Alfred Nobel, Charles Darwin, **Isaac Newton, Ivan Pavlov, Jane Goodall
A17: FALSE | B17: =Data!C11 -> Jean Piaget | C17: 2 | D17: 6 | E17: 0.3333333333 | F17: =IF(C17>=O8,B17,"") ->  | G17: , Carl Sagan* | H17: =IF(C17>=O9,IF(C17<O8,B17,""),"") ->  | I17: **Albert Einstein, Benjamin Franklin | J17: =IF(C17>=O10,IF(C17<O9,B17,""),"") ->  | K17: , Henry Ford | L17: =IF(C17<O10,IF(C17="","",B17),"") -> Jean Piaget | M17: , Alfred Nobel, Charles Darwin, **Isaac Newton, Ivan Pavlov, Jane Goodall, Jean Piaget
A18: 1 | B18: =Data!C12 -> **Jonas Salk | C18: 1 | D18: 6 | E18: 0.1666666667 | F18: =IF(C18>=O8,B18,"") ->  | G18: , Carl Sagan* | H18: =IF(C18>=O9,IF(C18<O8,B18,""),"") ->  | I18: **Albert Einstein, Benjamin Franklin | J18: =IF(C18>=O10,IF(C18<O9,B18,""),"") ->  | K18: , Henry Ford | L18: =IF(C18<O10,IF(C18="","",B18),"") -> **Jonas Salk | M18: , Alfred Nobel, Charles Darwin, **Isaac Newton, Ivan Pavlov, Jane Goodall, Jean Piaget, **Jonas Salk
A19: 5 | B19: =Data!C13 -> **Marie Curie | C19: 5 | D19: 6 | E19: 0.8333333333 | F19: =IF(C19>=O8,B19,"") -> **Marie Curie | G19: , Carl Sagan*, **Marie Curie | H19: =IF(C19>=O9,IF(C19<O8,B19,""),"") ->  | I19: **Albert Einstein, Benjamin Franklin | J19: =IF(C19>=O10,IF(C19<O9,B19,""),"") ->  | K19: , Henry Ford | L19: =IF(C19<O10,IF(C19="","",B19),"") ->  | M19: , Alfred Nobel, Charles Darwin, **Isaac Newton, Ivan Pavlov, Jane Goodall, Jean Piaget, **Jonas Salk
A20: FALSE | B20: =Data!C14 -> Sigmund Freud | C20: 6 | D20: 6 | E20: 1 | F20: =IF(C20>=O8,B20,"") -> Sigmund Freud | G20: , Carl Sagan*, **Marie Curie, Sigmund Freud | H20: =IF(C20>=O9,IF(C20<O8,B20,""),"") ->  | I20: **Albert Einstein, Benjamin Franklin | J20: =IF(C20>=O10,IF(C20<O9,B20,""),"") ->  | K20: , Henry Ford | L20: =IF(C20<O10,IF(C20="","",B20),"") ->  | M20: , Alfred Nobel, Charles Darwin, **Isaac Newton, Ivan Pavlov, Jane Goodall, Jean Piaget, **Jonas Salk
A21: FALSE | B21: =Data!C15 -> Stephen Hawking | C21: 5 | D21: 6 | E21: 0.8333333333 | F21: =IF(C21>=O8,B21,"") -> Stephen Hawking | G21: , Carl Sagan*, **Marie Curie, Sigmund Freud, Stephen Hawking | H21: =IF(C21>=O9,IF(C21<O8,B21,""),"") ->  | I21: **Albert Einstein, Benjamin Franklin | J21: =IF(C21>=O10,IF(C21<O9,B21,""),"") ->  | K21: , Henry Ford | L21: =IF(C21<O10,IF(C21="","",B21),"") ->  | M21: , Alfred Nobel, Charles Darwin, **Isaac Newton, Ivan Pavlov, Jane Goodall, Jean Piaget, **Jonas Salk
A22: FALSE | B22: =Data!C16 -> Thomas Edison | C22: 2 | D22: 6 | E22: 0.3333333333 | F22: =IF(C22>=O8,B22,"") ->  | G22: , Carl Sagan*, **Marie Curie, Sigmund Freud, Stephen Hawking | H22: =IF(C22>=O9,IF(C22<O8,B22,""),"") ->  | I22: **Albert Einstein, Benjamin Franklin | J22: =IF(C22>=O10,IF(C22<O9,B22,""),"") ->  | K22: , Henry Ford | L22: =IF(C22<O10,IF(C22="","",B22),"") -> Thomas Edison | M22: , Alfred Nobel, Charles Darwin, **Isaac Newton, Ivan Pavlov, Jane Goodall, Jean Piaget, **Jonas Salk, Thomas Edison
A23: FALSE | B23: =Data!C17 -> John Dewey | C23: 4 | D23: 6 | E23: 0.6666666667 | F23: =IF(C23>=O8,B23,"") ->  | G23: , Carl Sagan*, **Marie Curie, Sigmund Freud, Stephen Hawking | H23: =IF(C23>=O9,IF(C23<O8,B23,""),"") -> John Dewey | I23: **Albert Einstein, Benjamin Franklin, John Dewey | J23: =IF(C23>=O10,IF(C23<O9,B23,""),"") ->  | K23: , Henry Ford | L23: =IF(C23<O10,IF(C23="","",B23),"") ->  | M23: , Alfred Nobel, Charles Darwin, **Isaac Newton, Ivan Pavlov, Jane Goodall, Jean Piaget, **Jonas Salk, Thomas Edison
A24: 4 | B24: =Data!C18 -> **B.F. Skinner | C24: 4 | D24: 6 | E24: 0.6666666667 | F24: =IF(C24>=O8,B24,"") ->  | G24: , Carl Sagan*, **Marie Curie, Sigmund Freud, Stephen Hawking | H24: =IF(C24>=O9,IF(C24<O8,B24,""),"") -> **B.F. Skinner | I24: **Albert Einstein, Benjamin Franklin, John Dewey, **B.F. Skinner | J24: =IF(C24>=O10,IF(C24<O9,B24,""),"") ->  | K24: , Henry Ford | L24: =IF(C24<O10,IF(C24="","",B24),"") ->  | M24: , Alfred Nobel, Charles Darwin, **Isaac Newton, Ivan Pavlov, Jane Goodall, Jean Piaget, **Jonas Salk, Thomas Edison
A25: FALSE | B25: =Data!C19 -> Howard Gardner | C25: 5 | D25: 6 | E25: 0.8333333333 | F25: =IF(C25>=O8,B25,"") -> Howard Gardner | G25: , Carl Sagan*, **Marie Curie, Sigmund Freud, Stephen Hawking, Howard Gardner | H25: =IF(C25>=O9,IF(C25<O8,B25,""),"") ->  | I25: **Albert Einstein, Benjamin Franklin, John Dewey, **B.F. Skinner | J25: =IF(C25>=O10,IF(C25<O9,B25,""),"") ->  | K25: , Henry Ford | L25: =IF(C25<O10,IF(C25="","",B25),"") ->  | M25: , Alfred Nobel, Charles Darwin, **Isaac Newton, Ivan Pavlov, Jane Goodall, Jean Piaget, **Jonas Salk, Thomas Edison
A26: FALSE | B26: =Data!C20 -> Lev Vygotsky | C26: 4 | D26: 6 | E26: 0.6666666667 | F26: =IF(C26>=O8,B26,"") ->  | G26: , Carl Sagan*, **Marie Curie, Sigmund Freud, Stephen Hawking, Howard Gardner | H26: =IF(C26>=O9,IF(C26<O8,B26,""),"") -> Lev Vygotsky | I26: **Albert Einstein, Benjamin Franklin, John Dewey, **B.F. Skinner, Lev Vygotsky | J26: =IF(C26>=O10,IF(C26<O9,B26,""),"") ->  | K26: , Henry Ford | L26: =IF(C26<O10,IF(C26="","",B26),"") ->  | M26: , Alfred Nobel, Charles Darwin, **Isaac Newton, Ivan Pavlov, Jane Goodall, Jean Piaget, **Jonas Salk, Thomas Edison
A27: FALSE | B27: =Data!C21 -> Maria Montessori | C27: 3 | D27: 6 | E27: 0.5 | F27: =IF(C27>=O8,B27,"") ->  | G27: , Carl Sagan*, **Marie Curie, Sigmund Freud, Stephen Hawking, Howard Gardner | H27: =IF(C27>=O9,IF(C27<O8,B27,""),"") ->  | I27: **Albert Einstein, Benjamin Franklin, John Dewey, **B.F. Skinner, Lev Vygotsky | J27: =IF(C27>=O10,IF(C27<O9,B27,""),"") -> Maria Montessori | K27: , Henry Ford, Maria Montessori | L27: =IF(C27<O10,IF(C27="","",B27),"") ->  | M27: , Alfred Nobel, Charles Darwin, **Isaac Newton, Ivan Pavlov, Jane Goodall, Jean Piaget, **Jonas Salk, Thomas Edison
A28: FALSE | B28: =Data!C22 -> Student21 | F28: =IF(C28>=O8,B28,"") ->  | G28: , Carl Sagan*, **Marie Curie, Sigmund Freud, Stephen Hawking, Howard Gardner | H28: =IF(C28>=O9,IF(C28<O8,B28,""),"") ->  | I28: **Albert Einstein, Benjamin Franklin, John Dewey, **B.F. Skinner, Lev Vygotsky | J28: =IF(C28>=O10,IF(C28<O9,B28,""),"") ->  | K28: , Henry Ford, Maria Montessori | L28: =IF(C28<O10,IF(C28="","",B28),"") ->  | M28: , Alfred Nobel, Charles Darwin, **Isaac Newton, Ivan Pavlov, Jane Goodall, Jean Piaget, **Jonas Salk, Thomas Edison
A29: FALSE | B29: =Data!C23 -> Student22 | F29: =IF(C29>=O8,B29,"") ->  | G29: , Carl Sagan*, **Marie Curie, Sigmund Freud, Stephen Hawking, Howard Gardner | H29: =IF(C29>=O9,IF(C29<O8,B29,""),"") ->  | I29: **Albert Einstein, Benjamin Franklin, John Dewey, **B.F. Skinner, Lev Vygotsky | J29: =IF(C29>=O10,IF(C29<O9,B29,""),"") ->  | K29: , Henry Ford, Maria Montessori | L29: =IF(C29<O10,IF(C29="","",B29),"") ->  | M29: , Alfred Nobel, Charles Darwin, **Isaac Newton, Ivan Pavlov, Jane Goodall, Jean Piaget, **Jonas Salk, Thomas Edison
A30: FALSE | B30: =Data!C24 -> Student23 | F30: =IF(C30>=O8,B30,"") ->  | G30: , Carl Sagan*, **Marie Curie, Sigmund Freud, Stephen Hawking, Howard Gardner | H30: =IF(C30>=O9,IF(C30<O8,B30,""),"") ->  | I30: **Albert Einstein, Benjamin Franklin, John Dewey, **B.F. Skinner, Lev Vygotsky | J30: =IF(C30>=O10,IF(C30<O9,B30,""),"") ->  | K30: , Henry Ford, Maria Montessori | L30: =IF(C30<O10,IF(C30="","",B30),"") ->  | M30: , Alfred Nobel, Charles Darwin, **Isaac Newton, Ivan Pavlov, Jane Goodall, Jean Piaget, **Jonas Salk, Thomas Edison
A31: FALSE | B31: =Data!C25 -> Student24 | F31: =IF(C31>=O8,B31,"") ->  | G31: , Carl Sagan*, **Marie Curie, Sigmund Freud, Stephen Hawking, Howard Gardner | H31: =IF(C31>=O9,IF(C31<O8,B31,""),"") ->  | I31: **Albert Einstein, Benjamin Franklin, John Dewey, **B.F. Skinner, Lev Vygotsky | J31: =IF(C31>=O10,IF(C31<O9,B31,""),"") ->  | K31: , Henry Ford, Maria Montessori | L31: =IF(C31<O10,IF(C31="","",B31),"") ->  | M31: , Alfred Nobel, Charles Darwin, **Isaac Newton, Ivan Pavlov, Jane Goodall, Jean Piaget, **Jonas Salk, Thomas Edison
A32: FALSE | B32: =Data!C26 -> Student25 | F32: =IF(C32>=O8,B32,"") ->  | G32: , Carl Sagan*, **Marie Curie, Sigmund Freud, Stephen Hawking, Howard Gardner | H32: =IF(C32>=O9,IF(C32<O8,B32,""),"") ->  | I32: **Albert Einstein, Benjamin Franklin, John Dewey, **B.F. Skinner, Lev Vygotsky | J32: =IF(C32>=O10,IF(C32<O9,B32,""),"") ->  | K32: , Henry Ford, Maria Montessori | L32: =IF(C32<O10,IF(C32="","",B32),"") ->  | M32: , Alfred Nobel, Charles Darwin, **Isaac Newton, Ivan Pavlov, Jane Goodall, Jean Piaget, **Jonas Salk, Thomas Edison
A33: FALSE | B33: =Data!C27 -> Student26 | F33: =IF(C33>=O8,B33,"") ->  | G33: , Carl Sagan*, **Marie Curie, Sigmund Freud, Stephen Hawking, Howard Gardner | H33: =IF(C33>=O9,IF(C33<O8,B33,""),"") ->  | I33: **Albert Einstein, Benjamin Franklin, John Dewey, **B.F. Skinner, Lev Vygotsky | J33: =IF(C33>=O10,IF(C33<O9,B33,""),"") ->  | K33: , Henry Ford, Maria Montessori | L33: =IF(C33<O10,IF(C33="","",B33),"") ->  | M33: , Alfred Nobel, Charles Darwin, **Isaac Newton, Ivan Pavlov, Jane Goodall, Jean Piaget, **Jonas Salk, Thomas Edison
A34: FALSE | B34: =Data!C28 -> Student27 | F34: =IF(C34>=O8,B34,"") ->  | G34: , Carl Sagan*, **Marie Curie, Sigmund Freud, Stephen Hawking, Howard Gardner | H34: =IF(C34>=O9,IF(C34<O8,B34,""),"") ->  | I34: **Albert Einstein, Benjamin Franklin, John Dewey, **B.F. Skinner, Lev Vygotsky | J34: =IF(C34>=O10,IF(C34<O9,B34,""),"") ->  | K34: , Henry Ford, Maria Montessori | L34: =IF(C34<O10,IF(C34="","",B34),"") ->  | M34: , Alfred Nobel, Charles Darwin, **Isaac Newton, Ivan Pavlov, Jane Goodall, Jean Piaget, **Jonas Salk, Thomas Edison
A35: FALSE | B35: =Data!C29 -> Student28 | F35: =IF(C35>=O8,B35,"") ->  | G35: , Carl Sagan*, **Marie Curie, Sigmund Freud, Stephen Hawking, Howard Gardner | H35: =IF(C35>=O9,IF(C35<O8,B35,""),"") ->  | I35: **Albert Einstein, Benjamin Franklin, John Dewey, **B.F. Skinner, Lev Vygotsky | J35: =IF(C35>=O10,IF(C35<O9,B35,""),"") ->  | K35: , Henry Ford, Maria Montessori | L35: =IF(C35<O10,IF(C35="","",B35),"") ->  | M35: , Alfred Nobel, Charles Darwin, **Isaac Newton, Ivan Pavlov, Jane Goodall, Jean Piaget, **Jonas Salk, Thomas Edison
A36: FALSE | B36: =Data!C30 -> Student29 | F36: =IF(C36>=O8,B36,"") ->  | G36: , Carl Sagan*, **Marie Curie, Sigmund Freud, Stephen Hawking, Howard Gardner | H36: =IF(C36>=O9,IF(C36<O8,B36,""),"") ->  | I36: **Albert Einstein, Benjamin Franklin, John Dewey, **B.F. Skinner, Lev Vygotsky | J36: =IF(C36>=O10,IF(C36<O9,B36,""),"") ->  | K36: , Henry Ford, Maria Montessori | L36: =IF(C36<O10,IF(C36="","",B36),"") ->  | M36: , Alfred Nobel, Charles Darwin, **Isaac Newton, Ivan Pavlov, Jane Goodall, Jean Piaget, **Jonas Salk, Thomas Edison
A37: FALSE | B37: =Data!C31 -> Student30 | F37: =IF(C37>=O8,B37,"") ->  | G37: , Carl Sagan*, **Marie Curie, Sigmund Freud, Stephen Hawking, Howard Gardner | H37: =IF(C37>=O9,IF(C37<O8,B37,""),"") ->  | I37: **Albert Einstein, Benjamin Franklin, John Dewey, **B.F. Skinner, Lev Vygotsky | J37: =IF(C37>=O10,IF(C37<O9,B37,""),"") ->  | K37: , Henry Ford, Maria Montessori | L37: =IF(C37<O10,IF(C37="","",B37),"") ->  | M37: , Alfred Nobel, Charles Darwin, **Isaac Newton, Ivan Pavlov, Jane Goodall, Jean Piaget, **Jonas Salk, Thomas Edison
A38: FALSE
B39: TOTAL | C39: =SUM(C8:C37) -> 66 | D39: =SUM(D8:D37) -> 120 | E39: =C39/D39 -> 0.55

Sheet Teacher4Pretest
B1: =IF(Data!N6="Other",Data!N7,Data!N6) -> Grade 4 | D1: =Data!D1 -> Smith
B2: Meeting Date: | D2: =Data!N8 -> 2/26/14
B3: Assessment: | D3: =Teacher1Pretest!D3 -> Main Idea- R.I.4.2
B5: Student Name | C5: Points | D5: Possible | E5: Score - %
D7: =Teacher1Pretest!D7 -> 6 | F7: Proficient | H7: Close | J7: Far | L7: Intervention
A8: =IF(ISBLANK(C8),"FALSE",IF(LEFT(B8,2)="**",IF(C8>=$O$8,$O$8,IF(C8>=$O$9,$O$9,IF(C8>=$O$10,$O$10,$O$11))))) -> FALSE | B8: =Data!D2 -> Michael Jordan | C8: 4 | D8: =IF(C8="","",$D$7) -> 6 | E8: =IF(D8="","",C8/$D$7) -> 0.6666666667 | F8: =IF(C8>=O8,B8,"") ->  | G8: =F8 ->  | H8: =IF(C8>=O9,IF(C8<O8,B8,""),"") -> Michael Jordan | I8: =H8 -> Michael Jordan | J8: =IF(C8>=O10,IF(C8<O9,B8,""),"") ->  | K8: =J8 ->  | L8: =IF(C8<O10,IF(C8="","",B8),"") ->  | M8: =L8 ->  | O8: =Teacher1Pretest!O8 -> 5 | P8: Proficient
A9: =IF(ISBLANK(C9),"FALSE",IF(LEFT(B9,2)="**",IF(C9>=$O$8,$O$8,IF(C9>=$O$9,$O$9,IF(C9>=$O$10,$O$10,$O$11))))) -> FALSE | B9: =Data!D3 -> Muhammad Ali | C9: 4 | D9: =IF(C9="","",$D$7) -> 6 | E9: =IF(D9="","",C9/$D$7) -> 0.6666666667 | F9: =IF(C9>=O8,B9,"") ->  | G9: =G8&IF(F9="","",", ")&F9 ->  | H9: =IF(C9>=O9,IF(C9<O8,B9,""),"") -> Muhammad Ali | I9: =I8&IF(H9="","",", ")&H9 -> Michael Jordan, Muhammad Ali | J9: =IF(C9>=O10,IF(C9<O9,B9,""),"") ->  | K9: =K8&IF(J9="","",", ")&J9 ->  | L9: =IF(C9<O10,IF(C9="","",B9),"") ->  | M9: =M8&IF(L9="","",", ")&L9 ->  | O9: =Teacher1Pretest!O9 -> 4 | P9: Close to Proficient
A10: FALSE | B10: =Data!D4 -> Roger Federer | C10: 1 | D10: 6 | E10: 0.1666666667 | F10: =IF(C10>=O8,B10,"") ->  | G10: =G9&IF(F10="","",", ")&F10 ->  | H10: =IF(C10>=O9,IF(C10<O8,B10,""),"") ->  | I10: =I9&IF(H10="","",", ")&H10 -> Michael Jordan, Muhammad Ali | J10: =IF(C10>=O10,IF(C10<O9,B10,""),"") ->  | K10: =K9&IF(J10="","",", ")&J10 ->  | L10: =IF(C10<O10,IF(C10="","",B10),"") -> Roger Federer | M10: =M9&IF(L10="","",", ")&L10 -> , Roger Federer | O10: =Teacher1Pretest!O10 -> 3 | P10: Far to Go But Likely to Become Proficient
A11: 5 | B11: =Data!D5 -> **Michael Phelps | C11: 5 | D11: 6 | E11: 0.8333333333 | F11: =IF(C11>=O8,B11,"") -> **Michael Phelps | G11: , **Michael Phelps | H11: =IF(C11>=O9,IF(C11<O8,B11,""),"") ->  | I11: Michael Jordan, Muhammad Ali | J11: =IF(C11>=O10,IF(C11<O9,B11,""),"") ->  | L11: =IF(C11<O10,IF(C11="","",B11),"") ->  | M11: , Roger Federer | O11: =Teacher1Pretest!O11 -> 1 | P11: Intervention (Far to Go But Not Likely to Become Proficient)
A12: FALSE | B12: =Data!D6 -> Wayne Gretzky | C12: 1 | D12: 6 | E12: 0.1666666667 | F12: =IF(C12>=O8,B12,"") ->  | G12: , **Michael Phelps | H12: =IF(C12>=O9,IF(C12<O8,B12,""),"") ->  | I12: Michael Jordan, Muhammad Ali | J12: =IF(C12>=O10,IF(C12<O9,B12,""),"") ->  | L12: =IF(C12<O10,IF(C12="","",B12),"") -> Wayne Gretzky | M12: , Roger Federer, Wayne Gretzky
A13: 1 | B13: =Data!D7 -> **Jim Thorpe | C13: 2 | D13: 6 | E13: 0.3333333333 | F13: =IF(C13>=O8,B13,"") ->  | G13: , **Michael Phelps | H13: =IF(C13>=O9,IF(C13<O8,B13,""),"") ->  | I13: Michael Jordan, Muhammad Ali | J13: =IF(C13>=O10,IF(C13<O9,B13,""),"") ->  | L13: =IF(C13<O10,IF(C13="","",B13),"") -> **Jim Thorpe | M13: , Roger Federer, Wayne Gretzky, **Jim Thorpe
A14: FALSE | B14: =Data!D8 -> Tiger Woods | C14: 2 | D14: 6 | E14: 0.3333333333 | F14: =IF(C14>=O8,B14,"") ->  | G14: , **Michael Phelps | H14: =IF(C14>=O9,IF(C14<O8,B14,""),"") ->  | I14: Michael Jordan, Muhammad Ali | J14: =IF(C14>=O10,IF(C14<O9,B14,""),"") ->  | L14: =IF(C14<O10,IF(C14="","",B14),"") -> Tiger Woods | M14: , Roger Federer, Wayne Gretzky, **Jim Thorpe, Tiger Woods
A15: FALSE | B15: =Data!D9 -> Serena Williams | C15: 2 | D15: 6 | E15: 0.3333333333 | F15: =IF(C15>=O8,B15,"") ->  | G15: , **Michael Phelps | H15: =IF(C15>=O9,IF(C15<O8,B15,""),"") ->  | I15: Michael Jordan, Muhammad Ali | J15: =IF(C15>=O10,IF(C15<O9,B15,""),"") ->  | L15: =IF(C15<O10,IF(C15="","",B15),"") -> Serena Williams | M15: , Roger Federer, Wayne Gretzky, **Jim Thorpe, Tiger Woods, Serena Williams
A16: 1 | B16: =Data!D10 -> **Joe Montana | C16: 1 | D16: 6 | E16: 0.1666666667 | F16: =IF(C16>=O8,B16,"") ->  | G16: , **Michael Phelps | H16: =IF(C16>=O9,IF(C16<O8,B16,""),"") ->  | I16: Michael Jordan, Muhammad Ali | J16: =IF(C16>=O10,IF(C16<O9,B16,""),"") ->  | L16: =IF(C16<O10,IF(C16="","",B16),"") -> **Joe Montana | M16: , Roger Federer, Wayne Gretzky, **Jim Thorpe, Tiger Woods, Serena Williams, **Joe Montana
A17: FALSE | B17: =Data!D11 -> Jeff Gordon | C17: 4 | D17: 6 | E17: 0.6666666667 | F17: =IF(C17>=O8,B17,"") ->  | G17: , **Michael Phelps | H17: =IF(C17>=O9,IF(C17<O8,B17,""),"") -> Jeff Gordon | I17: Michael Jordan, Muhammad Ali, Jeff Gordon | J17: =IF(C17>=O10,IF(C17<O9,B17,""),"") ->  | L17: =IF(C17<O10,IF(C17="","",B17),"") ->  | M17: , Roger Federer, Wayne Gretzky, **Jim Thorpe, Tiger Woods, Serena Williams, **Joe Montana
A18: FALSE | B18: =Data!D12 -> Peyton Manning | C18: 2 | D18: 6 | E18: 0.3333333333 | F18: =IF(C18>=O8,B18,"") ->  | G18: , **Michael Phelps | H18: =IF(C18>=O9,IF(C18<O8,B18,""),"") ->  | I18: Michael Jordan, Muhammad Ali, Jeff Gordon | J18: =IF(C18>=O10,IF(C18<O9,B18,""),"") ->  | L18: =IF(C18<O10,IF(C18="","",B18),"") -> Peyton Manning | M18: , Roger Federer, Wayne Gretzky, **Jim Thorpe, Tiger Woods, Serena Williams, **Joe Montana, Peyton Manning
A19: FALSE | B19: =Data!D13 -> Shaun White | C19: 5 | D19: 6 | E19: 0.8333333333 | F19: =IF(C19>=O8,B19,"") -> Shaun White | G19: , **Michael Phelps, Shaun White | H19: =IF(C19>=O9,IF(C19<O8,B19,""),"") ->  | I19: Michael Jordan, Muhammad Ali, Jeff Gordon | J19: =IF(C19>=O10,IF(C19<O9,B19,""),"") ->  | L19: =IF(C19<O10,IF(C19="","",B19),"") ->  | M19: , Roger Federer, Wayne Gretzky, **Jim Thorpe, Tiger Woods, Serena Williams, **Joe Montana, Peyton Manning
A20: FALSE | B20: =Data!D14 -> Danica Patrick | C20: 5 | D20: 6 | E20: 0.8333333333 | F20: =IF(C20>=O8,B20,"") -> Danica Patrick | G20: , **Michael Phelps, Shaun White, Danica Patrick | H20: =IF(C20>=O9,IF(C20<O8,B20,""),"") ->  | I20: Michael Jordan, Muhammad Ali, Jeff Gordon | J20: =IF(C20>=O10,IF(C20<O9,B20,""),"") ->  | L20: =IF(C20<O10,IF(C20="","",B20),"") ->  | M20: , Roger Federer, Wayne Gretzky, **Jim Thorpe, Tiger Woods, Serena Williams, **Joe Montana, Peyton Manning
A21: 3 | B21: =Data!D15 -> **Tony Hawk | C21: 3 | D21: 6 | E21: 0.5 | F21: =IF(C21>=O8,B21,"") ->  | G21: , **Michael Phelps, Shaun White, Danica Patrick | H21: =IF(C21>=O9,IF(C21<O8,B21,""),"") ->  | I21: Michael Jordan, Muhammad Ali, Jeff Gordon | J21: =IF(C21>=O10,IF(C21<O9,B21,""),"") -> **Tony Hawk | K21: , **Tony Hawk | L21: =IF(C21<O10,IF(C21="","",B21),"") ->  | M21: , Roger Federer, Wayne Gretzky, **Jim Thorpe, Tiger Woods, Serena Williams, **Joe Montana, Peyton Manning
A22: FALSE | B22: =Data!D16 -> LeBron James | C22: 5 | D22: 6 | E22: 0.8333333333 | F22: =IF(C22>=O8,B22,"") -> LeBron James | G22: , **Michael Phelps, Shaun White, Danica Patrick, LeBron James | H22: =IF(C22>=O9,IF(C22<O8,B22,""),"") ->  | I22: Michael Jordan, Muhammad Ali, Jeff Gordon | J22: =IF(C22>=O10,IF(C22<O9,B22,""),"") ->  | K22: , **Tony Hawk | L22: =IF(C22<O10,IF(C22="","",B22),"") ->  | M22: , Roger Federer, Wayne Gretzky, **Jim Thorpe, Tiger Woods, Serena Williams, **Joe Montana, Peyton Manning
A23: FALSE | B23: =Data!D17 -> Gordie Howe | C23: 5 | D23: 6 | E23: 0.8333333333 | F23: =IF(C23>=O8,B23,"") -> Gordie Howe | G23: , **Michael Phelps, Shaun White, Danica Patrick, LeBron James, Gordie Howe | H23: =IF(C23>=O9,IF(C23<O8,B23,""),"") ->  | I23: Michael Jordan, Muhammad Ali, Jeff Gordon | J23: =IF(C23>=O10,IF(C23<O9,B23,""),"") ->  | K23: , **Tony Hawk | L23: =IF(C23<O10,IF(C23="","",B23),"") ->  | M23: , Roger Federer, Wayne Gretzky, **Jim Thorpe, Tiger Woods, Serena Williams, **Joe Montana, Peyton Manning
A24: 3 | B24: =Data!D18 -> **George Forman | C24: 3 | D24: 6 | E24: 0.5 | F24: =IF(C24>=O8,B24,"") ->  | G24: , **Michael Phelps, Shaun White, Danica Patrick, LeBron James, Gordie Howe | H24: =IF(C24>=O9,IF(C24<O8,B24,""),"") ->  | I24: Michael Jordan, Muhammad Ali, Jeff Gordon | J24: =IF(C24>=O10,IF(C24<O9,B24,""),"") -> **George Forman | K24: , **Tony Hawk, **George Forman | L24: =IF(C24<O10,IF(C24="","",B24),"") ->  | M24: , Roger Federer, Wayne Gretzky, **Jim Thorpe, Tiger Woods, Serena Williams, **Joe Montana, Peyton Manning
A25: FALSE | B25: =Data!D19 -> Martina Navratilova | C25: 5 | D25: 6 | E25: 0.8333333333 | F25: =IF(C25>=O8,B25,"") -> Martina Navratilova | G25: , **Michael Phelps, Shaun White, Danica Patrick, LeBron James, Gordie Howe, Martina Navratilova | H25: =IF(C25>=O9,IF(C25<O8,B25,""),"") ->  | I25: Michael Jordan, Muhammad Ali, Jeff Gordon | J25: =IF(C25>=O10,IF(C25<O9,B25,""),"") ->  | K25: , **Tony Hawk, **George Forman | L25: =IF(C25<O10,IF(C25="","",B25),"") ->  | M25: , Roger Federer, Wayne Gretzky, **Jim Thorpe, Tiger Woods, Serena Williams, **Joe Montana, Peyton Manning
A26: FALSE | B26: =Data!D20 -> Yadier Molina | C26: 6 | D26: 6 | E26: 1 | F26: =IF(C26>=O8,B26,"") -> Yadier Molina | G26: , **Michael Phelps, Shaun White, Danica Patrick, LeBron James, Gordie Howe, Martina Navratilova, Yadier Molina | H26: =IF(C26>=O9,IF(C26<O8,B26,""),"") ->  | I26: Michael Jordan, Muhammad Ali, Jeff Gordon | J26: =IF(C26>=O10,IF(C26<O9,B26,""),"") ->  | K26: , **Tony Hawk, **George Forman | L26: =IF(C26<O10,IF(C26="","",B26),"") ->  | M26: , Roger Federer, Wayne Gretzky, **Jim Thorpe, Tiger Woods, Serena Williams, **Joe Montana, Peyton Manning
A27: FALSE | B27: =Data!D21 -> Student20 | F27: =IF(C27>=O8,B27,"") ->  | G27: , **Michael Phelps, Shaun White, Danica Patrick, LeBron James, Gordie Howe, Martina Navratilova, Yadier Molina | H27: =IF(C27>=O9,IF(C27<O8,B27,""),"") ->  | I27: Michael Jordan, Muhammad Ali, Jeff Gordon | J27: =IF(C27>=O10,IF(C27<O9,B27,""),"") ->  | K27: , **Tony Hawk, **George Forman | L27: =IF(C27<O10,IF(C27="","",B27),"") ->  | M27: , Roger Federer, Wayne Gretzky, **Jim Thorpe, Tiger Woods, Serena Williams, **Joe Montana, Peyton Manning
A28: FALSE | B28: =Data!D22 -> Student21 | F28: =IF(C28>=O8,B28,"") ->  | G28: , **Michael Phelps, Shaun White, Danica Patrick, LeBron James, Gordie Howe, Martina Navratilova, Yadier Molina | H28: =IF(C28>=O9,IF(C28<O8,B28,""),"") ->  | I28: Michael Jordan, Muhammad Ali, Jeff Gordon | J28: =IF(C28>=O10,IF(C28<O9,B28,""),"") ->  | K28: , **Tony Hawk, **George Forman | L28: =IF(C28<O10,IF(C28="","",B28),"") ->  | M28: , Roger Federer, Wayne Gretzky, **Jim Thorpe, Tiger Woods, Serena Williams, **Joe Montana, Peyton Manning
A29: FALSE | B29: =Data!D23 -> Student22 | F29: =IF(C29>=O8,B29,"") ->  | G29: , **Michael Phelps, Shaun White, Danica Patrick, LeBron James, Gordie Howe, Martina Navratilova, Yadier Molina | H29: =IF(C29>=O9,IF(C29<O8,B29,""),"") ->  | I29: Michael Jordan, Muhammad Ali, Jeff Gordon | J29: =IF(C29>=O10,IF(C29<O9,B29,""),"") ->  | K29: , **Tony Hawk, **George Forman | L29: =IF(C29<O10,IF(C29="","",B29),"") ->  | M29: , Roger Federer, Wayne Gretzky, **Jim Thorpe, Tiger Woods, Serena Williams, **Joe Montana, Peyton Manning
A30: FALSE | B30: =Data!D24 -> Student23 | F30: =IF(C30>=O8,B30,"") ->  | G30: , **Michael Phelps, Shaun White, Danica Patrick, LeBron James, Gordie Howe, Martina Navratilova, Yadier Molina | H30: =IF(C30>=O9,IF(C30<O8,B30,""),"") ->  | I30: Michael Jordan, Muhammad Ali, Jeff Gordon | J30: =IF(C30>=O10,IF(C30<O9,B30,""),"") ->  | K30: , **Tony Hawk, **George Forman | L30: =IF(C30<O10,IF(C30="","",B30),"") ->  | M30: , Roger Federer, Wayne Gretzky, **Jim Thorpe, Tiger Woods, Serena Williams, **Joe Montana, Peyton Manning
A31: FALSE | B31: =Data!D25 -> Student24 | F31: =IF(C31>=O8,B31,"") ->  | G31: , **Michael Phelps, Shaun White, Danica Patrick, LeBron James, Gordie Howe, Martina Navratilova, Yadier Molina | H31: =IF(C31>=O9,IF(C31<O8,B31,""),"") ->  | I31: Michael Jordan, Muhammad Ali, Jeff Gordon | J31: =IF(C31>=O10,IF(C31<O9,B31,""),"") ->  | K31: , **Tony Hawk, **George Forman | L31: =IF(C31<O10,IF(C31="","",B31),"") ->  | M31: , Roger Federer, Wayne Gretzky, **Jim Thorpe, Tiger Woods, Serena Williams, **Joe Montana, Peyton Manning
A32: FALSE | B32: =Data!D26 -> Student25 | F32: =IF(C32>=O8,B32,"") ->  | G32: , **Michael Phelps, Shaun White, Danica Patrick, LeBron James, Gordie Howe, Martina Navratilova, Yadier Molina | H32: =IF(C32>=O9,IF(C32<O8,B32,""),"") ->  | I32: Michael Jordan, Muhammad Ali, Jeff Gordon | J32: =IF(C32>=O10,IF(C32<O9,B32,""),"") ->  | K32: , **Tony Hawk, **George Forman | L32: =IF(C32<O10,IF(C32="","",B32),"") ->  | M32: , Roger Federer, Wayne Gretzky, **Jim Thorpe, Tiger Woods, Serena Williams, **Joe Montana, Peyton Manning
A33: FALSE | B33: =Data!D27 -> Student26 | F33: =IF(C33>=O8,B33,"") ->  | G33: , **Michael Phelps, Shaun White, Danica Patrick, LeBron James, Gordie Howe, Martina Navratilova, Yadier Molina | H33: =IF(C33>=O9,IF(C33<O8,B33,""),"") ->  | I33: Michael Jordan, Muhammad Ali, Jeff Gordon | J33: =IF(C33>=O10,IF(C33<O9,B33,""),"") ->  | K33: , **Tony Hawk, **George Forman | L33: =IF(C33<O10,IF(C33="","",B33),"") ->  | M33: , Roger Federer, Wayne Gretzky, **Jim Thorpe, Tiger Woods, Serena Williams, **Joe Montana, Peyton Manning
A34: FALSE | B34: =Data!D28 -> Student27 | F34: =IF(C34>=O8,B34,"") ->  | G34: , **Michael Phelps, Shaun White, Danica Patrick, LeBron James, Gordie Howe, Martina Navratilova, Yadier Molina | H34: =IF(C34>=O9,IF(C34<O8,B34,""),"") ->  | I34: Michael Jordan, Muhammad Ali, Jeff Gordon | J34: =IF(C34>=O10,IF(C34<O9,B34,""),"") ->  | K34: , **Tony Hawk, **George Forman | L34: =IF(C34<O10,IF(C34="","",B34),"") ->  | M34: , Roger Federer, Wayne Gretzky, **Jim Thorpe, Tiger Woods, Serena Williams, **Joe Montana, Peyton Manning
A35: FALSE | B35: =Data!D29 -> Student28 | F35: =IF(C35>=O8,B35,"") ->  | G35: , **Michael Phelps, Shaun White, Danica Patrick, LeBron James, Gordie Howe, Martina Navratilova, Yadier Molina | H35: =IF(C35>=O9,IF(C35<O8,B35,""),"") ->  | I35: Michael Jordan, Muhammad Ali, Jeff Gordon | J35: =IF(C35>=O10,IF(C35<O9,B35,""),"") ->  | K35: , **Tony Hawk, **George Forman | L35: =IF(C35<O10,IF(C35="","",B35),"") ->  | M35: , Roger Federer, Wayne Gretzky, **Jim Thorpe, Tiger Woods, Serena Williams, **Joe Montana, Peyton Manning
A36: FALSE | B36: =Data!D30 -> Student29 | F36: =IF(C36>=O8,B36,"") ->  | G36: , **Michael Phelps, Shaun White, Danica Patrick, LeBron James, Gordie Howe, Martina Navratilova, Yadier Molina | H36: =IF(C36>=O9,IF(C36<O8,B36,""),"") ->  | I36: Michael Jordan, Muhammad Ali, Jeff Gordon | J36: =IF(C36>=O10,IF(C36<O9,B36,""),"") ->  | K36: , **Tony Hawk, **George Forman | L36: =IF(C36<O10,IF(C36="","",B36),"") ->  | M36: , Roger Federer, Wayne Gretzky, **Jim Thorpe, Tiger Woods, Serena Williams, **Joe Montana, Peyton Manning
A37: FALSE | B37: =Data!D31 -> Student30 | F37: =IF(C37>=O8,B37,"") ->  | G37: , **Michael Phelps, Shaun White, Danica Patrick, LeBron James, Gordie Howe, Martina Navratilova, Yadier Molina | H37: =IF(C37>=O9,IF(C37<O8,B37,""),"") ->  | I37: Michael Jordan, Muhammad Ali, Jeff Gordon | J37: =IF(C37>=O10,IF(C37<O9,B37,""),"") ->  | K37: , **Tony Hawk, **George Forman | L37: =IF(C37<O10,IF(C37="","",B37),"") ->  | M37: , Roger Federer, Wayne Gretzky, **Jim Thorpe, Tiger Woods, Serena Williams, **Joe Montana, Peyton Manning
A38: FALSE
B39: TOTAL | C39: =SUM(C8:C37) -> 65 | D39: =SUM(D8:D37) -> 114 | E39: =C39/D39 -> 0.5701754386

Sheet Do Not Use (hidden)
A1: =IF(Data!N6="Other",Data!N7,Data!N6) -> Grade 4 | C1: =Data!E1 -> Do Not Use
A2: Meeting Date: | C2: =Data!N8 -> 2/26/14
A3: Assessment: | C3: =Teacher1Pretest!D3 -> Main Idea- R.I.4.2
A5: Student Name | B5: Points | C5: Possible | D5: Score - %
C7: =Teacher1Pretest!D7 -> 6 | E7: Proficient | G7: Close | I7: Far | K7: Intervention
A8: =Data!E2 -> Do Not Use | D8: =B8/C8 ->  | E8: =IF(B8>=N8,A8,"") ->  | F8: =E8 ->  | G8: =IF(B8>=N9,IF(B8<N8,A8,""),"") ->  | H8: =G8 ->  | I8: =IF(B8>=N10,IF(B8<N9,A8,""),"") ->  | J8: =I8 ->  | K8: =IF(B8<N10,IF(B8="","",A8),"") ->  | L8: =K8 ->  | N8: =Teacher1Pretest!O8 -> 5 | O8: Proficient
A9: =Data!E3 -> Do Not Use | C9: =IF(B9="","NULL",C7) -> NULL | D9: =B9/C9 ->  | E9: =IF(B9>=N8,A9,"") ->  | F9: =F8&IF(E9="","",", ")&E9 ->  | G9: =IF(B9>=N9,IF(B9<N8,A9,""),"") ->  | H9: =H8&IF(G9="","",", ")&G9 ->  | I9: =IF(B9>=N10,IF(B9<N9,A9,""),"") ->  | J9: =J8&IF(I9="","",", ")&I9 ->  | K9: =IF(B9<N10,IF(B9="","",A9),"") ->  | L9: =L8&IF(K9="","",", ")&K9 ->  | N9: =Teacher1Pretest!O9 -> 4 | O9: Close to Proficient
A10: =Data!E4 -> Do Not Use | C10: =IF(B10="","NULL",C7) -> NULL | E10: =IF(B10>=N8,A10,"") ->  | F10: =F9&IF(E10="","",", ")&E10 ->  | G10: =IF(B10>=N9,IF(B10<N8,A10,""),"") ->  | H10: =H9&IF(G10="","",", ")&G10 ->  | I10: =IF(B10>=N10,IF(B10<N9,A10,""),"") ->  | J10: =J9&IF(I10="","",", ")&I10 ->  | K10: =IF(B10<N10,IF(B10="","",A10),"") ->  | L10: =L9&IF(K10="","",", ")&K10 ->  | N10: =Teacher1Pretest!O10 -> 3 | O10: Far to Go But Likely to Become Proficient
A11: =Data!E5 -> Do Not Use | C11: =IF(B11="","NULL",C7) -> NULL | E11: =IF(B11>=N8,A11,"") ->  | G11: =IF(B11>=N9,IF(B11<N8,A11,""),"") ->  | I11: =IF(B11>=N10,IF(B11<N9,A11,""),"") ->  | K11: =IF(B11<N10,IF(B11="","",A11),"") ->  | N11: =Teacher1Pretest!O11 -> 1 | O11: Intervention (Far to Go But Not Likely to Become Proficient)
A12: =Data!E6 -> Do Not Use | C12: =IF(B12="","NULL",C7) -> NULL | E12: =IF(B12>=N8,A12,"") ->  | G12: =IF(B12>=N9,IF(B12<N8,A12,""),"") ->  | I12: =IF(B12>=N10,IF(B12<N9,A12,""),"") ->  | K12: =IF(B12<N10,IF(B12="","",A12),"") -> 
A13: =Data!E7 -> Do Not Use | C13: =IF(B13="","NULL",C7) -> NULL | E13: =IF(B13>=N8,A13,"") ->  | G13: =IF(B13>=N9,IF(B13<N8,A13,""),"") ->  | I13: =IF(B13>=N10,IF(B13<N9,A13,""),"") ->  | K13: =IF(B13<N10,IF(B13="","",A13),"") -> 
A14: =Data!E8 -> Do Not Use | C14: =IF(B14="","NULL",C7) -> NULL | E14: =IF(B14>=N8,A14,"") ->  | G14: =IF(B14>=N9,IF(B14<N8,A14,""),"") ->  | I14: =IF(B14>=N10,IF(B14<N9,A14,""),"") ->  | K14: =IF(B14<N10,IF(B14="","",A14),"") -> 
A15: =Data!E9 -> Do Not Use | C15: =IF(B15="","NULL",C7) -> NULL | E15: =IF(B15>=N8,A15,"") ->  | G15: =IF(B15>=N9,IF(B15<N8,A15,""),"") ->  | I15: =IF(B15>=N10,IF(B15<N9,A15,""),"") ->  | K15: =IF(B15<N10,IF(B15="","",A15),"") -> 
A16: =Data!E10 -> Do Not Use | C16: =IF(B16="","NULL",C7) -> NULL | E16: =IF(B16>=N8,A16,"") ->  | G16: =IF(B16>=N9,IF(B16<N8,A16,""),"") ->  | I16: =IF(B16>=N10,IF(B16<N9,A16,""),"") ->  | K16: =IF(B16<N10,IF(B16="","",A16),"") -> 
A17: =Data!E11 -> Do Not Use | C17: =IF(B17="","NULL",C7) -> NULL | E17: =IF(B17>=N8,A17,"") ->  | G17: =IF(B17>=N9,IF(B17<N8,A17,""),"") ->  | I17: =IF(B17>=N10,IF(B17<N9,A17,""),"") ->  | K17: =IF(B17<N10,IF(B17="","",A17),"") -> 
A18: =Data!E12 -> Do Not Use | C18: =IF(B18="","NULL",C7) -> NULL | E18: =IF(B18>=N8,A18,"") ->  | G18: =IF(B18>=N9,IF(B18<N8,A18,""),"") ->  | I18: =IF(B18>=N10,IF(B18<N9,A18,""),"") ->  | K18: =IF(B18<N10,IF(B18="","",A18),"") -> 
A19: =Data!E13 -> Do Not Use | C19: =IF(B19="","NULL",C7) -> NULL | E19: =IF(B19>=N8,A19,"") ->  | G19: =IF(B19>=N9,IF(B19<N8,A19,""),"") ->  | I19: =IF(B19>=N10,IF(B19<N9,A19,""),"") ->  | K19: =IF(B19<N10,IF(B19="","",A19),"") -> 
A20: =Data!E14 -> Do Not Use | C20: =IF(B20="","NULL",C7) -> NULL | E20: =IF(B20>=N8,A20,"") ->  | G20: =IF(B20>=N9,IF(B20<N8,A20,""),"") ->  | I20: =IF(B20>=N10,IF(B20<N9,A20,""),"") ->  | K20: =IF(B20<N10,IF(B20="","",A20),"") -> 
A21: =Data!E15 -> Do Not Use | C21: =IF(B21="","NULL",C7) -> NULL | E21: =IF(B21>=N8,A21,"") ->  | G21: =IF(B21>=N9,IF(B21<N8,A21,""),"") ->  | I21: =IF(B21>=N10,IF(B21<N9,A21,""),"") ->  | K21: =IF(B21<N10,IF(B21="","",A21),"") -> 
A22: =Data!E16 -> Do Not Use | C22: =IF(B22="","NULL",C7) -> NULL | E22: =IF(B22>=N8,A22,"") ->  | G22: =IF(B22>=N9,IF(B22<N8,A22,""),"") ->  | I22: =IF(B22>=N10,IF(B22<N9,A22,""),"") ->  | K22: =IF(B22<N10,IF(B22="","",A22),"") -> 
A23: =Data!E17 -> Do Not Use | C23: =IF(B23="","NULL",C7) -> NULL | E23: =IF(B23>=N8,A23,"") ->  | G23: =IF(B23>=N9,IF(B23<N8,A23,""),"") ->  | I23: =IF(B23>=N10,IF(B23<N9,A23,""),"") ->  | K23: =IF(B23<N10,IF(B23="","",A23),"") -> 
A24: =Data!E18 -> Do Not Use | C24: =IF(B24="","NULL",C7) -> NULL | E24: =IF(B24>=N8,A24,"") ->  | G24: =IF(B24>=N9,IF(B24<N8,A24,""),"") ->  | I24: =IF(B24>=N10,IF(B24<N9,A24,""),"") ->  | K24: =IF(B24<N10,IF(B24="","",A24),"") -> 
A25: =Data!E19 -> Do Not Use | C25: =IF(B25="","NULL",C7) -> NULL | E25: =IF(B25>=N8,A25,"") ->  | G25: =IF(B25>=N9,IF(B25<N8,A25,""),"") ->  | I25: =IF(B25>=N10,IF(B25<N9,A25,""),"") ->  | K25: =IF(B25<N10,IF(B25="","",A25),"") -> 
A26: =Data!E20 -> Do Not Use | C26: =IF(B26="","NULL",C7) -> NULL | E26: =IF(B26>=N8,A26,"") ->  | G26: =IF(B26>=N9,IF(B26<N8,A26,""),"") ->  | I26: =IF(B26>=N10,IF(B26<N9,A26,""),"") ->  | K26: =IF(B26<N10,IF(B26="","",A26),"") -> 
A27: =Data!E21 -> Do Not Use | C27: =IF(B27="","NULL",C7) -> NULL | E27: =IF(B27>=N8,A27,"") ->  | G27: =IF(B27>=N9,IF(B27<N8,A27,""),"") ->  | I27: =IF(B27>=N10,IF(B27<N9,A27,""),"") ->  | K27: =IF(B27<N10,IF(B27="","",A27),"") -> 
A28: =Data!E22 -> Do Not Use | C28: =IF(B28="","NULL",C7) -> NULL | E28: =IF(B28>=N8,A28,"") ->  | G28: =IF(B28>=N9,IF(B28<N8,A28,""),"") ->  | I28: =IF(B28>=N10,IF(B28<N9,A28,""),"") ->  | K28: =IF(B28<N10,IF(B28="","",A28),"") -> 
A29: =Data!E23 -> Do Not Use | C29: =IF(B29="","NULL",C7) -> NULL | E29: =IF(B29>=N8,A29,"") ->  | G29: =IF(B29>=N9,IF(B29<N8,A29,""),"") ->  | I29: =IF(B29>=N10,IF(B29<N9,A29,""),"") ->  | K29: =IF(B29<N10,IF(B29="","",A29),"") -> 
A30: =Data!E24 -> Do Not Use | C30: =IF(B30="","NULL",C7) -> NULL | E30: =IF(B30>=N8,A30,"") ->  | G30: =IF(B30>=N9,IF(B30<N8,A30,""),"") ->  | I30: =IF(B30>=N10,IF(B30<N9,A30,""),"") ->  | K30: =IF(B30<N10,IF(B30="","",A30),"") -> 
A31: =Data!E25 -> Do Not Use | C31: =IF(B31="","NULL",C7) -> NULL | E31: =IF(B31>=N8,A31,"") ->  | G31: =IF(B31>=N9,IF(B31<N8,A31,""),"") ->  | I31: =IF(B31>=N10,IF(B31<N9,A31,""),"") ->  | K31: =IF(B31<N10,IF(B31="","",A31),"") -> 
A32: =Data!E26 -> Do Not Use | C32: =IF(B32="","NULL",C7) -> NULL | E32: =IF(B32>=N8,A32,"") ->  | G32: =IF(B32>=N9,IF(B32<N8,A32,""),"") ->  | I32: =IF(B32>=N10,IF(B32<N9,A32,""),"") ->  | K32: =IF(B32<N10,IF(B32="","",A32),"") -> 
A33: =Data!E27 -> Do Not Use | C33: =IF(B33="","NULL",C7) -> NULL | E33: =IF(B33>=N8,A33,"") ->  | G33: =IF(B33>=N9,IF(B33<N8,A33,""),"") ->  | I33: =IF(B33>=N10,IF(B33<N9,A33,""),"") ->  | K33: =IF(B33<N10,IF(B33="","",A33),"") -> 
A34: =Data!E28 -> Do Not Use | C34: =IF(B34="","NULL",C7) -> NULL | E34: =IF(B34>=N8,A34,"") ->  | G34: =IF(B34>=N9,IF(B34<N8,A34,""),"") ->  | I34: =IF(B34>=N10,IF(B34<N9,A34,""),"") ->  | K34: =IF(B34<N10,IF(B34="","",A34),"") -> 
A35: =Data!E29 -> Do Not Use | C35: =IF(B35="","NULL",C7) -> NULL | E35: =IF(B35>=N8,A35,"") ->  | G35: =IF(B35>=N9,IF(B35<N8,A35,""),"") ->  | I35: =IF(B35>=N10,IF(B35<N9,A35,""),"") ->  | K35: =IF(B35<N10,IF(B35="","",A35),"") -> 
A36: =Data!E30 -> Do Not Use | C36: =IF(B36="","NULL",C7) -> NULL | E36: =IF(B36>=N8,A36,"") ->  | G36: =IF(B36>=N9,IF(B36<N8,A36,""),"") ->  | I36: =IF(B36>=N10,IF(B36<N9,A36,""),"") ->  | K36: =IF(B36<N10,IF(B36="","",A36),"") -> 
A37: =Data!E31 -> Do Not Use | C37: =IF(B37="","NULL",C7) -> NULL | E37: =IF(B37>=N8,A37,"") ->  | G37: =IF(B37>=N9,IF(B37<N8,A37,""),"") ->  | I37: =IF(B37>=N10,IF(B37<N9,A37,""),"") ->  | K37: =IF(B37<N10,IF(B37="","",A37),"") -> 
A39: TOTAL | B39: =SUM(B8:B37) -> 0 | C39: =SUM(C8:C37) -> 0 | D39: =B39/C39 -> 

Sheet Teacher5Pretest
B1: =IF(Data!N6="Other",Data!N7,Data!N6) -> Grade 4 | D1: =Data!F1 -> Milburn
B2: Meeting Date: | D2: =Data!N8 -> 2/26/14
B3: Assessment: | D3: =Teacher1Pretest!D3 -> Main Idea- R.I.4.2
B5: Student Name | C5: Points | D5: Possible | E5: Score - %
D7: =Teacher1Pretest!D7 -> 6 | F7: Proficient | H7: Close | J7: Far | L7: Intervention
A8: =IF(ISBLANK(C8),"FALSE",IF(LEFT(B8,2)="**",IF(C8>=$O$8,$O$8,IF(C8>=$O$9,$O$9,IF(C8>=$O$10,$O$10,$O$11))))) -> FALSE | B8: =Data!F2 -> Dave Sanders | C8: 3 | D8: =IF(C8="","",$D$7) -> 6 | E8: =IF(D8="","",C8/$D$7) -> 0.5 | F8: =IF(C8>=O8,B8,"") ->  | G8: =F8 ->  | H8: =IF(C8>=O9,IF(C8<O8,B8,""),"") ->  | I8: =H8 ->  | J8: =IF(C8>=O10,IF(C8<O9,B8,""),"") -> Dave Sanders | K8: =J8 -> Dave Sanders | L8: =IF(C8<O10,IF(C8="","",B8),"") ->  | M8: =L8 ->  | O8: =Teacher1Pretest!O8 -> 5 | P8: Proficient
A9: =IF(ISBLANK(C9),"FALSE",IF(LEFT(B9,2)="**",IF(C9>=$O$8,$O$8,IF(C9>=$O$9,$O$9,IF(C9>=$O$10,$O$10,$O$11))))) -> FALSE | B9: =Data!F3 -> Carolyn Neal | C9: 3 | D9: =IF(C9="","",$D$7) -> 6 | E9: =IF(D9="","",C9/$D$7) -> 0.5 | F9: =IF(C9>=O8,B9,"") ->  | G9: =G8&IF(F9="","",", ")&F9 ->  | H9: =IF(C9>=O9,IF(C9<O8,B9,""),"") ->  | I9: =I8&IF(H9="","",", ")&H9 ->  | J9: =IF(C9>=O10,IF(C9<O9,B9,""),"") -> Carolyn Neal | K9: =K8&IF(J9="","",", ")&J9 -> Dave Sanders, Carolyn Neal | L9: =IF(C9<O10,IF(C9="","",B9),"") ->  | M9: =M8&IF(L9="","",", ")&L9 ->  | O9: =Teacher1Pretest!O9 -> 4 | P9: Close to Proficient
A10: FALSE | B10: =Data!F4 -> Bertha Richardson | C10: 4 | D10: 6 | E10: 0.6666666667 | F10: =IF(C10>=O8,B10,"") ->  | G10: =G9&IF(F10="","",", ")&F10 ->  | H10: =IF(C10>=O9,IF(C10<O8,B10,""),"") -> Bertha Richardson | I10: =I9&IF(H10="","",", ")&H10 -> , Bertha Richardson | J10: =IF(C10>=O10,IF(C10<O9,B10,""),"") ->  | K10: =K9&IF(J10="","",", ")&J10 -> Dave Sanders, Carolyn Neal | L10: =IF(C10<O10,IF(C10="","",B10),"") ->  | M10: =M9&IF(L10="","",", ")&L10 ->  | O10: =Teacher1Pretest!O10 -> 3 | P10: Far to Go But Likely to Become Proficient
A11: FALSE | B11: =Data!F5 -> Bill Scheffler | C11: 4 | D11: 6 | E11: 0.6666666667 | F11: =IF(C11>=O8,B11,"") ->  | H11: =IF(C11>=O9,IF(C11<O8,B11,""),"") -> Bill Scheffler | I11: , Bertha Richardson, Bill Scheffler | J11: =IF(C11>=O10,IF(C11<O9,B11,""),"") ->  | K11: Dave Sanders, Carolyn Neal | L11: =IF(C11<O10,IF(C11="","",B11),"") ->  | O11: =Teacher1Pretest!O11 -> 1 | P11: Intervention (Far to Go But Not Likely to Become Proficient)
A12: FALSE | B12: =Data!F6 -> Chris Montgomery | C12: 5 | D12: 6 | E12: 0.8333333333 | F12: =IF(C12>=O8,B12,"") -> Chris Montgomery | G12: , Chris Montgomery | H12: =IF(C12>=O9,IF(C12<O8,B12,""),"") ->  | I12: , Bertha Richardson, Bill Scheffler | J12: =IF(C12>=O10,IF(C12<O9,B12,""),"") ->  | K12: Dave Sanders, Carolyn Neal | L12: =IF(C12<O10,IF(C12="","",B12),"") -> 
A13: FALSE | B13: =Data!F7 -> Darlene Jones | C13: 2 | D13: 6 | E13: 0.3333333333 | F13: =IF(C13>=O8,B13,"") ->  | G13: , Chris Montgomery | H13: =IF(C13>=O9,IF(C13<O8,B13,""),"") ->  | I13: , Bertha Richardson, Bill Scheffler | J13: =IF(C13>=O10,IF(C13<O9,B13,""),"") ->  | K13: Dave Sanders, Carolyn Neal | L13: =IF(C13<O10,IF(C13="","",B13),"") -> Darlene Jones | M13: , Darlene Jones
A14: FALSE | B14: =Data!F8 -> Don Rugraff | C14: 5 | D14: 6 | E14: 0.8333333333 | F14: =IF(C14>=O8,B14,"") -> Don Rugraff | G14: , Chris Montgomery, Don Rugraff | H14: =IF(C14>=O9,IF(C14<O8,B14,""),"") ->  | I14: , Bertha Richardson, Bill Scheffler | J14: =IF(C14>=O10,IF(C14<O9,B14,""),"") ->  | K14: Dave Sanders, Carolyn Neal | L14: =IF(C14<O10,IF(C14="","",B14),"") ->  | M14: , Darlene Jones
A15: FALSE | B15: =Data!F9 -> Dexter Schraer | C15: 3 | D15: 6 | E15: 0.5 | F15: =IF(C15>=O8,B15,"") ->  | G15: , Chris Montgomery, Don Rugraff | H15: =IF(C15>=O9,IF(C15<O8,B15,""),"") ->  | I15: , Bertha Richardson, Bill Scheffler | J15: =IF(C15>=O10,IF(C15<O9,B15,""),"") -> Dexter Schraer | K15: Dave Sanders, Carolyn Neal, Dexter Schraer | L15: =IF(C15<O10,IF(C15="","",B15),"") ->  | M15: , Darlene Jones
A16: FALSE | B16: =Data!F10 -> Janice Putman | C16: 1 | D16: 6 | E16: 0.1666666667 | F16: =IF(C16>=O8,B16,"") ->  | G16: , Chris Montgomery, Don Rugraff | H16: =IF(C16>=O9,IF(C16<O8,B16,""),"") ->  | I16: , Bertha Richardson, Bill Scheffler | J16: =IF(C16>=O10,IF(C16<O9,B16,""),"") ->  | K16: Dave Sanders, Carolyn Neal, Dexter Schraer | L16: =IF(C16<O10,IF(C16="","",B16),"") -> Janice Putman | M16: , Darlene Jones, Janice Putman
A17: FALSE | B17: =Data!F11 -> Julie Sperry | C17: 3 | D17: 6 | E17: 0.5 | F17: =IF(C17>=O8,B17,"") ->  | G17: , Chris Montgomery, Don Rugraff | H17: =IF(C17>=O9,IF(C17<O8,B17,""),"") ->  | I17: , Bertha Richardson, Bill Scheffler | J17: =IF(C17>=O10,IF(C17<O9,B17,""),"") -> Julie Sperry | K17: Dave Sanders, Carolyn Neal, Dexter Schraer, Julie Sperry | L17: =IF(C17<O10,IF(C17="","",B17),"") ->  | M17: , Darlene Jones, Janice Putman
A18: FALSE | B18: =Data!F12 -> Jeanne Rothermel | C18: 1 | D18: 6 | E18: 0.1666666667 | F18: =IF(C18>=O8,B18,"") ->  | G18: , Chris Montgomery, Don Rugraff | H18: =IF(C18>=O9,IF(C18<O8,B18,""),"") ->  | I18: , Bertha Richardson, Bill Scheffler | J18: =IF(C18>=O10,IF(C18<O9,B18,""),"") ->  | K18: Dave Sanders, Carolyn Neal, Dexter Schraer, Julie Sperry | L18: =IF(C18<O10,IF(C18="","",B18),"") -> Jeanne Rothermel | M18: , Darlene Jones, Janice Putman, Jeanne Rothermel
A19: FALSE | B19: =Data!F13 -> Rose Coleman | C19: 4 | D19: 6 | E19: 0.6666666667 | F19: =IF(C19>=O8,B19,"") ->  | G19: , Chris Montgomery, Don Rugraff | H19: =IF(C19>=O9,IF(C19<O8,B19,""),"") -> Rose Coleman | I19: , Bertha Richardson, Bill Scheffler, Rose Coleman | J19: =IF(C19>=O10,IF(C19<O9,B19,""),"") ->  | K19: Dave Sanders, Carolyn Neal, Dexter Schraer, Julie Sperry | L19: =IF(C19<O10,IF(C19="","",B19),"") ->  | M19: , Darlene Jones, Janice Putman, Jeanne Rothermel
A20: FALSE | B20: =Data!F14 -> Randy Speer | C20: 2 | D20: 6 | E20: 0.3333333333 | F20: =IF(C20>=O8,B20,"") ->  | G20: , Chris Montgomery, Don Rugraff | H20: =IF(C20>=O9,IF(C20<O8,B20,""),"") ->  | I20: , Bertha Richardson, Bill Scheffler, Rose Coleman | J20: =IF(C20>=O10,IF(C20<O9,B20,""),"") ->  | K20: Dave Sanders, Carolyn Neal, Dexter Schraer, Julie Sperry | L20: =IF(C20<O10,IF(C20="","",B20),"") -> Randy Speer | M20: , Darlene Jones, Janice Putman, Jeanne Rothermel, Randy Speer
A21: 3 | B21: =Data!F15 -> **Sam McCauley | C21: 3 | D21: 6 | E21: 0.5 | F21: =IF(C21>=O8,B21,"") ->  | G21: , Chris Montgomery, Don Rugraff | H21: =IF(C21>=O9,IF(C21<O8,B21,""),"") ->  | I21: , Bertha Richardson, Bill Scheffler, Rose Coleman | J21: =IF(C21>=O10,IF(C21<O9,B21,""),"") -> **Sam McCauley | K21: Dave Sanders, Carolyn Neal, Dexter Schraer, Julie Sperry, **Sam McCauley | L21: =IF(C21<O10,IF(C21="","",B21),"") ->  | M21: , Darlene Jones, Janice Putman, Jeanne Rothermel, Randy Speer
A22: FALSE | B22: =Data!F16 -> Tricia Buchanan | C22: 4 | D22: 6 | E22: 0.6666666667 | F22: =IF(C22>=O8,B22,"") ->  | G22: , Chris Montgomery, Don Rugraff | H22: =IF(C22>=O9,IF(C22<O8,B22,""),"") -> Tricia Buchanan | I22: , Bertha Richardson, Bill Scheffler, Rose Coleman, Tricia Buchanan | J22: =IF(C22>=O10,IF(C22<O9,B22,""),"") ->  | K22: Dave Sanders, Carolyn Neal, Dexter Schraer, Julie Sperry, **Sam McCauley | L22: =IF(C22<O10,IF(C22="","",B22),"") ->  | M22: , Darlene Jones, Janice Putman, Jeanne Rothermel, Randy Speer
A23: 1 | B23: =Data!F17 -> **Beth Tobin | C23: 2 | D23: 6 | E23: 0.3333333333 | F23: =IF(C23>=O8,B23,"") ->  | G23: , Chris Montgomery, Don Rugraff | H23: =IF(C23>=O9,IF(C23<O8,B23,""),"") ->  | I23: , Bertha Richardson, Bill Scheffler, Rose Coleman, Tricia Buchanan | J23: =IF(C23>=O10,IF(C23<O9,B23,""),"") ->  | K23: Dave Sanders, Carolyn Neal, Dexter Schraer, Julie Sperry, **Sam McCauley | L23: =IF(C23<O10,IF(C23="","",B23),"") -> **Beth Tobin | M23: , Darlene Jones, Janice Putman, Jeanne Rothermel, Randy Speer, **Beth Tobin
A24: FALSE | B24: =Data!F18 -> Student17 | F24: =IF(C24>=O8,B24,"") ->  | G24: , Chris Montgomery, Don Rugraff | H24: =IF(C24>=O9,IF(C24<O8,B24,""),"") ->  | I24: , Bertha Richardson, Bill Scheffler, Rose Coleman, Tricia Buchanan | J24: =IF(C24>=O10,IF(C24<O9,B24,""),"") ->  | K24: Dave Sanders, Carolyn Neal, Dexter Schraer, Julie Sperry, **Sam McCauley | L24: =IF(C24<O10,IF(C24="","",B24),"") ->  | M24: , Darlene Jones, Janice Putman, Jeanne Rothermel, Randy Speer, **Beth Tobin
A25: FALSE | B25: =Data!F19 -> Student18 | F25: =IF(C25>=O8,B25,"") ->  | G25: , Chris Montgomery, Don Rugraff | H25: =IF(C25>=O9,IF(C25<O8,B25,""),"") ->  | I25: , Bertha Richardson, Bill Scheffler, Rose Coleman, Tricia Buchanan | J25: =IF(C25>=O10,IF(C25<O9,B25,""),"") ->  | K25: Dave Sanders, Carolyn Neal, Dexter Schraer, Julie Sperry, **Sam McCauley | L25: =IF(C25<O10,IF(C25="","",B25),"") ->  | M25: , Darlene Jones, Janice Putman, Jeanne Rothermel, Randy Speer, **Beth Tobin
A26: FALSE | B26: =Data!F20 -> Student19 | F26: =IF(C26>=O8,B26,"") ->  | G26: , Chris Montgomery, Don Rugraff | H26: =IF(C26>=O9,IF(C26<O8,B26,""),"") ->  | I26: , Bertha Richardson, Bill Scheffler, Rose Coleman, Tricia Buchanan | J26: =IF(C26>=O10,IF(C26<O9,B26,""),"") ->  | K26: Dave Sanders, Carolyn Neal, Dexter Schraer, Julie Sperry, **Sam McCauley | L26: =IF(C26<O10,IF(C26="","",B26),"") ->  | M26: , Darlene Jones, Janice Putman, Jeanne Rothermel, Randy Speer, **Beth Tobin
A27: FALSE | B27: =Data!F21 -> Student20 | F27: =IF(C27>=O8,B27,"") ->  | G27: , Chris Montgomery, Don Rugraff | H27: =IF(C27>=O9,IF(C27<O8,B27,""),"") ->  | I27: , Bertha Richardson, Bill Scheffler, Rose Coleman, Tricia Buchanan | J27: =IF(C27>=O10,IF(C27<O9,B27,""),"") ->  | K27: Dave Sanders, Carolyn Neal, Dexter Schraer, Julie Sperry, **Sam McCauley | L27: =IF(C27<O10,IF(C27="","",B27),"") ->  | M27: , Darlene Jones, Janice Putman, Jeanne Rothermel, Randy Speer, **Beth Tobin
A28: FALSE | B28: =Data!F22 -> Student21 | F28: =IF(C28>=O8,B28,"") ->  | G28: , Chris Montgomery, Don Rugraff | H28: =IF(C28>=O9,IF(C28<O8,B28,""),"") ->  | I28: , Bertha Richardson, Bill Scheffler, Rose Coleman, Tricia Buchanan | J28: =IF(C28>=O10,IF(C28<O9,B28,""),"") ->  | K28: Dave Sanders, Carolyn Neal, Dexter Schraer, Julie Sperry, **Sam McCauley | L28: =IF(C28<O10,IF(C28="","",B28),"") ->  | M28: , Darlene Jones, Janice Putman, Jeanne Rothermel, Randy Speer, **Beth Tobin
A29: FALSE | B29: =Data!F23 -> Student22 | F29: =IF(C29>=O8,B29,"") ->  | G29: , Chris Montgomery, Don Rugraff | H29: =IF(C29>=O9,IF(C29<O8,B29,""),"") ->  | I29: , Bertha Richardson, Bill Scheffler, Rose Coleman, Tricia Buchanan | J29: =IF(C29>=O10,IF(C29<O9,B29,""),"") ->  | K29: Dave Sanders, Carolyn Neal, Dexter Schraer, Julie Sperry, **Sam McCauley | L29: =IF(C29<O10,IF(C29="","",B29),"") ->  | M29: , Darlene Jones, Janice Putman, Jeanne Rothermel, Randy Speer, **Beth Tobin
A30: FALSE | B30: =Data!F24 -> Student23 | F30: =IF(C30>=O8,B30,"") ->  | G30: , Chris Montgomery, Don Rugraff | H30: =IF(C30>=O9,IF(C30<O8,B30,""),"") ->  | I30: , Bertha Richardson, Bill Scheffler, Rose Coleman, Tricia Buchanan | J30: =IF(C30>=O10,IF(C30<O9,B30,""),"") ->  | K30: Dave Sanders, Carolyn Neal, Dexter Schraer, Julie Sperry, **Sam McCauley | L30: =IF(C30<O10,IF(C30="","",B30),"") ->  | M30: , Darlene Jones, Janice Putman, Jeanne Rothermel, Randy Speer, **Beth Tobin
A31: FALSE | B31: =Data!F25 -> Student24 | F31: =IF(C31>=O8,B31,"") ->  | G31: , Chris Montgomery, Don Rugraff | H31: =IF(C31>=O9,IF(C31<O8,B31,""),"") ->  | I31: , Bertha Richardson, Bill Scheffler, Rose Coleman, Tricia Buchanan | J31: =IF(C31>=O10,IF(C31<O9,B31,""),"") ->  | K31: Dave Sanders, Carolyn Neal, Dexter Schraer, Julie Sperry, **Sam McCauley | L31: =IF(C31<O10,IF(C31="","",B31),"") ->  | M31: , Darlene Jones, Janice Putman, Jeanne Rothermel, Randy Speer, **Beth Tobin
A32: FALSE | B32: =Data!F26 -> Student25 | F32: =IF(C32>=O8,B32,"") ->  | G32: , Chris Montgomery, Don Rugraff | H32: =IF(C32>=O9,IF(C32<O8,B32,""),"") ->  | I32: , Bertha Richardson, Bill Scheffler, Rose Coleman, Tricia Buchanan | J32: =IF(C32>=O10,IF(C32<O9,B32,""),"") ->  | K32: Dave Sanders, Carolyn Neal, Dexter Schraer, Julie Sperry, **Sam McCauley | L32: =IF(C32<O10,IF(C32="","",B32),"") ->  | M32: , Darlene Jones, Janice Putman, Jeanne Rothermel, Randy Speer, **Beth Tobin
A33: FALSE | B33: =Data!F27 -> Student26 | F33: =IF(C33>=O8,B33,"") ->  | G33: , Chris Montgomery, Don Rugraff | H33: =IF(C33>=O9,IF(C33<O8,B33,""),"") ->  | I33: , Bertha Richardson, Bill Scheffler, Rose Coleman, Tricia Buchanan | J33: =IF(C33>=O10,IF(C33<O9,B33,""),"") ->  | K33: Dave Sanders, Carolyn Neal, Dexter Schraer, Julie Sperry, **Sam McCauley | L33: =IF(C33<O10,IF(C33="","",B33),"") ->  | M33: , Darlene Jones, Janice Putman, Jeanne Rothermel, Randy Speer, **Beth Tobin
A34: FALSE | B34: =Data!F28 -> Student27 | F34: =IF(C34>=O8,B34,"") ->  | G34: , Chris Montgomery, Don Rugraff | H34: =IF(C34>=O9,IF(C34<O8,B34,""),"") ->  | I34: , Bertha Richardson, Bill Scheffler, Rose Coleman, Tricia Buchanan | J34: =IF(C34>=O10,IF(C34<O9,B34,""),"") ->  | K34: Dave Sanders, Carolyn Neal, Dexter Schraer, Julie Sperry, **Sam McCauley | L34: =IF(C34<O10,IF(C34="","",B34),"") ->  | M34: , Darlene Jones, Janice Putman, Jeanne Rothermel, Randy Speer, **Beth Tobin
A35: FALSE | B35: =Data!F29 -> Student28 | F35: =IF(C35>=O8,B35,"") ->  | G35: , Chris Montgomery, Don Rugraff | H35: =IF(C35>=O9,IF(C35<O8,B35,""),"") ->  | I35: , Bertha Richardson, Bill Scheffler, Rose Coleman, Tricia Buchanan | J35: =IF(C35>=O10,IF(C35<O9,B35,""),"") ->  | K35: Dave Sanders, Carolyn Neal, Dexter Schraer, Julie Sperry, **Sam McCauley | L35: =IF(C35<O10,IF(C35="","",B35),"") ->  | M35: , Darlene Jones, Janice Putman, Jeanne Rothermel, Randy Speer, **Beth Tobin
A36: FALSE | B36: =Data!F30 -> Student29 | F36: =IF(C36>=O8,B36,"") ->  | G36: , Chris Montgomery, Don Rugraff | H36: =IF(C36>=O9,IF(C36<O8,B36,""),"") ->  | I36: , Bertha Richardson, Bill Scheffler, Rose Coleman, Tricia Buchanan | J36: =IF(C36>=O10,IF(C36<O9,B36,""),"") ->  | K36: Dave Sanders, Carolyn Neal, Dexter Schraer, Julie Sperry, **Sam McCauley | L36: =IF(C36<O10,IF(C36="","",B36),"") ->  | M36: , Darlene Jones, Janice Putman, Jeanne Rothermel, Randy Speer, **Beth Tobin
A37: FALSE | B37: =Data!F31 -> Student30 | F37: =IF(C37>=O8,B37,"") ->  | G37: , Chris Montgomery, Don Rugraff | H37: =IF(C37>=O9,IF(C37<O8,B37,""),"") ->  | I37: , Bertha Richardson, Bill Scheffler, Rose Coleman, Tricia Buchanan | J37: =IF(C37>=O10,IF(C37<O9,B37,""),"") ->  | K37: Dave Sanders, Carolyn Neal, Dexter Schraer, Julie Sperry, **Sam McCauley | L37: =IF(C37<O10,IF(C37="","",B37),"") ->  | M37: , Darlene Jones, Janice Putman, Jeanne Rothermel, Randy Speer, **Beth Tobin
A38: FALSE
B39: TOTAL | C39: =SUM(C8:C37) -> 49 | D39: =SUM(D8:D37) -> 96 | E39: =C39/D39 -> 0.5104166667

Sheet Teacher6Pretest
B1: =IF(Data!N6="Other",Data!N7,Data!N6) -> Grade 4 | D1: =Data!G1 -> Teacher6
B2: Meeting Date: | D2: =Data!N8 -> 2/26/14
B3: Assessment: | D3: =Teacher1Pretest!D3 -> Main Idea- R.I.4.2
B5: Student Name | C5: Points | D5: Possible | E5: Score - %
D7: =Teacher1Pretest!D7 -> 6 | F7: Proficient | H7: Close | J7: Far | L7: Intervention
A8: =IF(ISBLANK(C8),"FALSE",IF(LEFT(B8,2)="**",IF(C8>=$O$8,$O$8,IF(C8>=$O$9,$O$9,IF(C8>=$O$10,$O$10,$O$11))))) -> FALSE | B8: =Data!G2 -> Student1 | D8: =IF(C8="","",$D$7) ->  | E8: =IF(D8="","",C8/$D$7) ->  | F8: =IF(C8>=O8,B8,"") ->  | G8: =F8 ->  | H8: =IF(C8>=O9,IF(C8<O8,B8,""),"") ->  | I8: =H8 ->  | J8: =IF(C8>=O10,IF(C8<O9,B8,""),"") ->  | K8: =J8 ->  | L8: =IF(C8<O10,IF(C8="","",B8),"") ->  | M8: =L8 ->  | O8: =Teacher1Pretest!O8 -> 5 | P8: Proficient
A9: =IF(ISBLANK(C9),"FALSE",IF(LEFT(B9,2)="**",IF(C9>=$O$8,$O$8,IF(C9>=$O$9,$O$9,IF(C9>=$O$10,$O$10,$O$11))))) -> FALSE | B9: =Data!G3 -> Student2 | D9: =IF(C9="","",$D$7) ->  | E9: =IF(D9="","",C9/$D$7) ->  | F9: =IF(C9>=O8,B9,"") ->  | G9: =G8&IF(F9="","",", ")&F9 ->  | H9: =IF(C9>=O9,IF(C9<O8,B9,""),"") ->  | I9: =I8&IF(H9="","",", ")&H9 ->  | J9: =IF(C9>=O10,IF(C9<O9,B9,""),"") ->  | K9: =K8&IF(J9="","",", ")&J9 ->  | L9: =IF(C9<O10,IF(C9="","",B9),"") ->  | M9: =M8&IF(L9="","",", ")&L9 ->  | O9: =Teacher1Pretest!O9 -> 4 | P9: Close to Proficient
A10: FALSE | B10: =Data!G4 -> Student3 | F10: =IF(C10>=O8,B10,"") ->  | G10: =G9&IF(F10="","",", ")&F10 ->  | H10: =IF(C10>=O9,IF(C10<O8,B10,""),"") ->  | I10: =I9&IF(H10="","",", ")&H10 ->  | J10: =IF(C10>=O10,IF(C10<O9,B10,""),"") ->  | K10: =K9&IF(J10="","",", ")&J10 ->  | L10: =IF(C10<O10,IF(C10="","",B10),"") ->  | M10: =M9&IF(L10="","",", ")&L10 ->  | O10: =Teacher1Pretest!O10 -> 3 | P10: Far to Go But Likely to Become Proficient
A11: FALSE | B11: =Data!G5 -> Student4 | F11: =IF(C11>=O8,B11,"") ->  | H11: =IF(C11>=O9,IF(C11<O8,B11,""),"") ->  | J11: =IF(C11>=O10,IF(C11<O9,B11,""),"") ->  | L11: =IF(C11<O10,IF(C11="","",B11),"") ->  | O11: =Teacher1Pretest!O11 -> 1 | P11: Intervention (Far to Go But Not Likely to Become Proficient)
A12: FALSE | B12: =Data!G6 -> Student5 | F12: =IF(C12>=O8,B12,"") ->  | H12: =IF(C12>=O9,IF(C12<O8,B12,""),"") ->  | J12: =IF(C12>=O10,IF(C12<O9,B12,""),"") ->  | L12: =IF(C12<O10,IF(C12="","",B12),"") -> 
A13: FALSE | B13: =Data!G7 -> Student6 | F13: =IF(C13>=O8,B13,"") ->  | H13: =IF(C13>=O9,IF(C13<O8,B13,""),"") ->  | J13: =IF(C13>=O10,IF(C13<O9,B13,""),"") ->  | L13: =IF(C13<O10,IF(C13="","",B13),"") -> 
A14: FALSE | B14: =Data!G8 -> Student7 | F14: =IF(C14>=O8,B14,"") ->  | H14: =IF(C14>=O9,IF(C14<O8,B14,""),"") ->  | J14: =IF(C14>=O10,IF(C14<O9,B14,""),"") ->  | L14: =IF(C14<O10,IF(C14="","",B14),"") -> 
A15: FALSE | B15: =Data!G9 -> Student8 | F15: =IF(C15>=O8,B15,"") ->  | H15: =IF(C15>=O9,IF(C15<O8,B15,""),"") ->  | J15: =IF(C15>=O10,IF(C15<O9,B15,""),"") ->  | L15: =IF(C15<O10,IF(C15="","",B15),"") -> 
A16: FALSE | B16: =Data!G10 -> Student9 | F16: =IF(C16>=O8,B16,"") ->  | H16: =IF(C16>=O9,IF(C16<O8,B16,""),"") ->  | J16: =IF(C16>=O10,IF(C16<O9,B16,""),"") ->  | L16: =IF(C16<O10,IF(C16="","",B16),"") -> 
A17: FALSE | B17: =Data!G11 -> Student10 | F17: =IF(C17>=O8,B17,"") ->  | H17: =IF(C17>=O9,IF(C17<O8,B17,""),"") ->  | J17: =IF(C17>=O10,IF(C17<O9,B17,""),"") ->  | L17: =IF(C17<O10,IF(C17="","",B17),"") -> 
A18: FALSE | B18: =Data!G12 -> Student11 | F18: =IF(C18>=O8,B18,"") ->  | H18: =IF(C18>=O9,IF(C18<O8,B18,""),"") ->  | J18: =IF(C18>=O10,IF(C18<O9,B18,""),"") ->  | L18: =IF(C18<O10,IF(C18="","",B18),"") -> 
A19: FALSE | B19: =Data!G13 -> Student12 | F19: =IF(C19>=O8,B19,"") ->  | H19: =IF(C19>=O9,IF(C19<O8,B19,""),"") ->  | J19: =IF(C19>=O10,IF(C19<O9,B19,""),"") ->  | L19: =IF(C19<O10,IF(C19="","",B19),"") -> 
A20: FALSE | B20: =Data!G14 -> Student13 | F20: =IF(C20>=O8,B20,"") ->  | H20: =IF(C20>=O9,IF(C20<O8,B20,""),"") ->  | J20: =IF(C20>=O10,IF(C20<O9,B20,""),"") ->  | L20: =IF(C20<O10,IF(C20="","",B20),"") -> 
A21: FALSE | B21: =Data!G15 -> Student14 | F21: =IF(C21>=O8,B21,"") ->  | H21: =IF(C21>=O9,IF(C21<O8,B21,""),"") ->  | J21: =IF(C21>=O10,IF(C21<O9,B21,""),"") ->  | L21: =IF(C21<O10,IF(C21="","",B21),"") -> 
A22: FALSE | B22: =Data!G16 -> Student15 | F22: =IF(C22>=O8,B22,"") ->  | H22: =IF(C22>=O9,IF(C22<O8,B22,""),"") ->  | J22: =IF(C22>=O10,IF(C22<O9,B22,""),"") ->  | L22: =IF(C22<O10,IF(C22="","",B22),"") -> 
A23: FALSE | B23: =Data!G17 -> Student16 | F23: =IF(C23>=O8,B23,"") ->  | H23: =IF(C23>=O9,IF(C23<O8,B23,""),"") ->  | J23: =IF(C23>=O10,IF(C23<O9,B23,""),"") ->  | L23: =IF(C23<O10,IF(C23="","",B23),"") -> 
A24: FALSE | B24: =Data!G18 -> Student17 | F24: =IF(C24>=O8,B24,"") ->  | H24: =IF(C24>=O9,IF(C24<O8,B24,""),"") ->  | J24: =IF(C24>=O10,IF(C24<O9,B24,""),"") ->  | L24: =IF(C24<O10,IF(C24="","",B24),"") -> 
A25: FALSE | B25: =Data!G19 -> Student18 | F25: =IF(C25>=O8,B25,"") ->  | H25: =IF(C25>=O9,IF(C25<O8,B25,""),"") ->  | J25: =IF(C25>=O10,IF(C25<O9,B25,""),"") ->  | L25: =IF(C25<O10,IF(C25="","",B25),"") -> 
A26: FALSE | B26: =Data!G20 -> Student19 | F26: =IF(C26>=O8,B26,"") ->  | H26: =IF(C26>=O9,IF(C26<O8,B26,""),"") ->  | J26: =IF(C26>=O10,IF(C26<O9,B26,""),"") ->  | L26: =IF(C26<O10,IF(C26="","",B26),"") -> 
A27: FALSE | B27: =Data!G21 -> Student20 | F27: =IF(C27>=O8,B27,"") ->  | H27: =IF(C27>=O9,IF(C27<O8,B27,""),"") ->  | J27: =IF(C27>=O10,IF(C27<O9,B27,""),"") ->  | L27: =IF(C27<O10,IF(C27="","",B27),"") -> 
A28: FALSE | B28: =Data!G22 -> Student21 | F28: =IF(C28>=O8,B28,"") ->  | H28: =IF(C28>=O9,IF(C28<O8,B28,""),"") ->  | J28: =IF(C28>=O10,IF(C28<O9,B28,""),"") ->  | L28: =IF(C28<O10,IF(C28="","",B28),"") -> 
A29: FALSE | B29: =Data!G23 -> Student22 | F29: =IF(C29>=O8,B29,"") ->  | H29: =IF(C29>=O9,IF(C29<O8,B29,""),"") ->  | J29: =IF(C29>=O10,IF(C29<O9,B29,""),"") ->  | L29: =IF(C29<O10,IF(C29="","",B29),"") -> 
A30: FALSE | B30: =Data!G24 -> Student23 | F30: =IF(C30>=O8,B30,"") ->  | H30: =IF(C30>=O9,IF(C30<O8,B30,""),"") ->  | J30: =IF(C30>=O10,IF(C30<O9,B30,""),"") ->  | L30: =IF(C30<O10,IF(C30="","",B30),"") -> 
A31: FALSE | B31: =Data!G25 -> Student24 | F31: =IF(C31>=O8,B31,"") ->  | H31: =IF(C31>=O9,IF(C31<O8,B31,""),"") ->  | J31: =IF(C31>=O10,IF(C31<O9,B31,""),"") ->  | L31: =IF(C31<O10,IF(C31="","",B31),"") -> 
A32: FALSE | B32: =Data!G26 -> Student25 | F32: =IF(C32>=O8,B32,"") ->  | H32: =IF(C32>=O9,IF(C32<O8,B32,""),"") ->  | J32: =IF(C32>=O10,IF(C32<O9,B32,""),"") ->  | L32: =IF(C32<O10,IF(C32="","",B32),"") -> 
A33: FALSE | B33: =Data!G27 -> Student26 | F33: =IF(C33>=O8,B33,"") ->  | H33: =IF(C33>=O9,IF(C33<O8,B33,""),"") ->  | J33: =IF(C33>=O10,IF(C33<O9,B33,""),"") ->  | L33: =IF(C33<O10,IF(C33="","",B33),"") -> 
A34: FALSE | B34: =Data!G28 -> Student27 | F34: =IF(C34>=O8,B34,"") ->  | H34: =IF(C34>=O9,IF(C34<O8,B34,""),"") ->  | J34: =IF(C34>=O10,IF(C34<O9,B34,""),"") ->  | L34: =IF(C34<O10,IF(C34="","",B34),"") -> 
A35: FALSE | B35: =Data!G29 -> Student28 | F35: =IF(C35>=O8,B35,"") ->  | H35: =IF(C35>=O9,IF(C35<O8,B35,""),"") ->  | J35: =IF(C35>=O10,IF(C35<O9,B35,""),"") ->  | L35: =IF(C35<O10,IF(C35="","",B35),"") -> 
A36: FALSE | B36: =Data!G30 -> Student29 | F36: =IF(C36>=O8,B36,"") ->  | H36: =IF(C36>=O9,IF(C36<O8,B36,""),"") ->  | J36: =IF(C36>=O10,IF(C36<O9,B36,""),"") ->  | L36: =IF(C36<O10,IF(C36="","",B36),"") -> 
A37: FALSE | B37: =Data!G31 -> Student30 | F37: =IF(C37>=O8,B37,"") ->  | H37: =IF(C37>=O9,IF(C37<O8,B37,""),"") ->  | J37: =IF(C37>=O10,IF(C37<O9,B37,""),"") ->  | L37: =IF(C37<O10,IF(C37="","",B37),"") -> 
A38: FALSE
B39: TOTAL | C39: =SUM(C8:C37) -> 0 | D39: =SUM(D8:D37) -> 0 | E39: =C39/D39 -> 

Sheet SummaryPretest
A1: Teacher | B1: # Students | D1: # Proficient | E1: % Proficient | F1: Proficient Students | H1: # Close to | I1: % Close to | J1: Students Close to Proficiency | L1: # Far to Go | M1: % Far to Go | N1: Students Far to Go But Likely to Become Proficient | P1: # Intervention | Q1: % Intervention | R1: Intervention Students (Far to Go and Not Likely to Become Proficient)
A2: =Data!A1 -> March | B2: =COUNT(Teacher1Pretest!C8:C37) -> 19 | D2: =COUNTIF(Teacher1Pretest!C8:C37,">="&Teacher1Pretest!O8) -> 6 | E2: =D2/B2 -> 0.3157894737 | F2: =IF(Data!N10="","",IF(Data!N11="","",IF(LEFT(Teacher1Pretest!G37,1)=",",RIGHT(Teacher1Pretest!G37,LEN(Teacher1Pretest!G37)-1),Teacher1Pretest!G37))) -> Jean Fritz, Lois Lowry, Louis Sachar, Shel Silverstein, Seymour Simon, Jane Yolen | H2: =COUNTIF(Teacher1Pretest!C8:C37,">="&Teacher1Pretest!O9)-COUNTIF(Teacher1Pretest!C8:C37,">="&Teacher1Pretest!O8) -> 2 | I2: =H2/B2 -> 0.1052631579 | J2: =IF(Data!N10="","",IF(Data!N11="","",IF(Data!N12="","",IF(LEFT(Teacher1Pretest!I37,1)=",",RIGHT(Teacher1Pretest!I37, LEN(Teacher1Pretest!I37)-1),Teacher1Pretest!I37)))) -> Betsy Byars, **Jerry Spinelli | L2: =COUNTIF(Teacher1Pretest!C8:C37,">="&Teacher1Pretest!O10)-COUNTIF(Teacher1Pretest!C8:C37,">="&Teacher1Pretest!O9) -> 5 | M2: =L2/B2 -> 0.2631578947 | N2: =IF(Data!N10="","",IF(Data!N11="","",IF(Data!N12="","",IF(Data!N13="","",IF(LEFT(Teacher1Pretest!K37,1)=",",RIGHT(Teacher1Pretest!K37, LEN(Teacher1Pretest!K37)-1),Teacher1Pretest!K37))))) -> Judy Blome, Patricia MacLachlan, **Barbara Park, Jack Prelutsky, R.L. Stine | P2: =COUNTIF(Teacher1Pretest!C8:C37,"<"&Teacher1Pretest!O10) -> 6 | Q2: =P2/B2 -> 0.3157894737 | R2: =IF(LEFT(Teacher1Pretest!M37,1)=",",RIGHT(Teacher1Pretest!M37, LEN(Teacher1Pretest!M37)-1),Teacher1Pretest!M37) -> Lewis Carroll, Pam Conrad, C.S. Lewis, **Gary Paulsen, Cynthia Rylant, J.K. Rowling
A3: =Data!B1 -> Jones | B3: =COUNT(Teacher2Pretest!C8:C37) -> 21 | D3: =COUNTIF(Teacher2Pretest!C8:C37,">="&Teacher2Pretest!O8) -> 7 | E3: 0.3333333333 | F3: =IF(Data!N10="","",IF(Data!N11="","",IF(LEFT(Teacher2Pretest!G37,1)=",",RIGHT(Teacher2Pretest!G37, LEN(Teacher2Pretest!G37)-1),Teacher2Pretest!G37))) -> **Justin Bieber, Taylor Swift, Beyonce Knowles, Tim McGraw, **Kelly Clarkson, Bruno Mars, **Bob Dylan | H3: =COUNTIF(Teacher2Pretest!C8:C37,">="&Teacher2Pretest!O9)-COUNTIF(Teacher2Pretest!C8:C37,">="&Teacher2Pretest!O8) -> 3 | I3: 0.1428571429 | J3: =IF(Data!N10="","",IF(Data!N11="","",IF(Data!N12="","",IF(LEFT(Teacher2Pretest!I37,1)=",",RIGHT(Teacher2Pretest!I37, LEN(Teacher2Pretest!I37)-1),Teacher2Pretest!I37)))) -> Madonna, Billy Joel, **Mick Jagger | L3: =COUNTIF(Teacher2Pretest!C8:C37,">="&Teacher2Pretest!O10)-COUNTIF(Teacher2Pretest!C8:C37,">="&Teacher2Pretest!O9) -> 3 | M3: 0.1428571429 | N3: =IF(Data!N10="","",IF(Data!N11="","",IF(Data!N12="","",IF(Data!N13="","",IF(LEFT(Teacher2Pretest!K37,1)=",",RIGHT(Teacher2Pretest!K37, LEN(Teacher2Pretest!K37)-1),Teacher2Pretest!K37))))) -> Aretha Franklin, Dolly Parton, Eric Clapton | P3: =COUNTIF(Teacher2Pretest!C8:C37,"<"&Teacher2Pretest!O10) -> 8 | Q3: 0.380952381 | R3: =IF(LEFT(Teacher2Pretest!M37,1)=",",RIGHT(Teacher2Pretest!M37, LEN(Teacher2Pretest!M37)-1),Teacher2Pretest!M37) -> Justin Timberlake, Bon Jovi, Elton John, Lady Gaga, **Axl Rose, Tony Bennett, Pat Benatar, Paul McCartney
A4: =Data!C1 -> Gibson | B4: =COUNT(Teacher3Pretest!C8:C37) -> 20 | D4: =COUNTIF(Teacher3Pretest!C8:C37,">="&Teacher3Pretest!O8) -> 5 | E4: 0.25 | F4: =IF(Data!N10="","",IF(Data!N11="","",IF(LEFT(Teacher3Pretest!G37,1)=",",RIGHT(Teacher3Pretest!G37, LEN(Teacher3Pretest!G37)-1),Teacher3Pretest!G37))) -> Carl Sagan*, **Marie Curie, Sigmund Freud, Stephen Hawking, Howard Gardner | H4: =COUNTIF(Teacher3Pretest!C8:C37,">="&Teacher3Pretest!O9)-COUNTIF(Teacher3Pretest!C8:C37,">="&Teacher3Pretest!O8) -> 5 | I4: 0.25 | J4: =IF(Data!N10="","",IF(Data!N11="","",IF(Data!N12="","",IF(LEFT(Teacher3Pretest!I37,1)=",",RIGHT(Teacher3Pretest!I37, LEN(Teacher3Pretest!I37)-1),Teacher3Pretest!I37)))) -> **Albert Einstein, Benjamin Franklin, John Dewey, **B.F. Skinner, Lev Vygotsky | L4: =COUNTIF(Teacher3Pretest!C8:C37,">="&Teacher3Pretest!O10)-COUNTIF(Teacher3Pretest!C8:C37,">="&Teacher3Pretest!O9) -> 2 | M4: 0.1 | N4: =IF(Data!N10="","",IF(Data!N11="","",IF(Data!N12="","",IF(Data!N13="","",IF(LEFT(Teacher3Pretest!K37,1)=",",RIGHT(Teacher3Pretest!K37, LEN(Teacher3Pretest!K37)-1),Teacher3Pretest!K37))))) -> Henry Ford, Maria Montessori | P4: =COUNTIF(Teacher3Pretest!C8:C37,"<"&Teacher3Pretest!O10) -> 8 | Q4: 0.4 | R4: =IF(LEFT(Teacher3Pretest!M37,1)=",",RIGHT(Teacher3Pretest!M37, LEN(Teacher3Pretest!M37)-1),Teacher3Pretest!M37) -> Alfred Nobel, Charles Darwin, **Isaac Newton, Ivan Pavlov, Jane Goodall, Jean Piaget, **Jonas Salk, Thomas Edison
A5: =Data!D1 -> Smith | B5: =COUNT(Teacher4Pretest!C8:C37) -> 19 | D5: =COUNTIF(Teacher4Pretest!C8:C37,">="&Teacher4Pretest!O8) -> 7 | E5: 0.3684210526 | F5: =IF(Data!N10="","",IF(Data!N11="","",IF(LEFT(Teacher4Pretest!G37,1)=",",RIGHT(Teacher4Pretest!G37, LEN(Teacher4Pretest!G37)-1),Teacher4Pretest!G37))) -> **Michael Phelps, Shaun White, Danica Patrick, LeBron James, Gordie Howe, Martina Navratilova, Yadier Molina | H5: =COUNTIF(Teacher4Pretest!C8:C37,">="&Teacher4Pretest!O9)-COUNTIF(Teacher4Pretest!C8:C37,">="&Teacher4Pretest!O8) -> 3 | I5: 0.1578947368 | J5: =IF(Data!N10="","",IF(Data!N11="","",IF(Data!N12="","",IF(LEFT(Teacher4Pretest!I37,1)=",",RIGHT(Teacher4Pretest!I37, LEN(Teacher4Pretest!I37)-1),Teacher4Pretest!I37)))) -> Michael Jordan, Muhammad Ali, Jeff Gordon | L5: =COUNTIF(Teacher4Pretest!C8:C37,">="&Teacher4Pretest!O10)-COUNTIF(Teacher4Pretest!C8:C37,">="&Teacher4Pretest!O9) -> 2 | M5: 0.1052631579 | N5: =IF(Data!N10="","",IF(Data!N11="","",IF(Data!N12="","",IF(Data!N13="","",IF(LEFT(Teacher4Pretest!K37,1)=",",RIGHT(Teacher4Pretest!K37, LEN(Teacher4Pretest!K37)-1),Teacher4Pretest!K37))))) -> **Tony Hawk, **George Forman | P5: =COUNTIF(Teacher4Pretest!C8:C37,"<"&Teacher4Pretest!O10) -> 7 | Q5: 0.3684210526 | R5: =IF(LEFT(Teacher4Pretest!M37,1)=",",RIGHT(Teacher4Pretest!M37, LEN(Teacher4Pretest!M37)-1),Teacher4Pretest!M37) -> Roger Federer, Wayne Gretzky, **Jim Thorpe, Tiger Woods, Serena Williams, **Joe Montana, Peyton Manning
A6: =Data!E1 -> Do Not Use | B6: =COUNT('Do Not Use'!B8:B37) -> 0 | D6: =COUNTIF('Do Not Use'!B8:B37,">="&'Do Not Use'!N8) -> 0 | F6: =IF(Data!N10="","",IF(Data!N11="","",IF(LEFT('Do Not Use'!F37,1)=",",RIGHT('Do Not Use'!F37, LEN('Do Not Use'!F37)-1),'Do Not Use'!F37))) ->  | H6: =COUNTIF('Do Not Use'!B8:B37,">="&'Do Not Use'!N9)-COUNTIF('Do Not Use'!B8:B37,">="&'Do Not Use'!N8) -> 0 | J6: =IF(Data!N10="","",IF(Data!N11="","",IF(Data!N12="","",IF(LEFT('Do Not Use'!H37,1)=",",RIGHT('Do Not Use'!H37, LEN('Do Not Use'!H37)-1),'Do Not Use'!H37)))) ->  | L6: =COUNTIF('Do Not Use'!B8:B37,">="&'Do Not Use'!N10)-COUNTIF('Do Not Use'!B8:B37,">="&'Do Not Use'!N9) -> 0 | N6: =IF(Data!N10="","",IF(Data!N11="","",IF(Data!N12="","",IF(Data!N13="","",IF(LEFT('Do Not Use'!J37,1)=",",RIGHT('Do Not Use'!J37, LEN('Do Not Use'!J37)-1),'Do Not Use'!J37))))) ->  | P6: =COUNTIF('Do Not Use'!B8:B37,"<"&'Do Not Use'!N10) -> 0 | R6: =IF(LEFT('Do Not Use'!L37,1)=",",RIGHT('Do Not Use'!L37, LEN('Do Not Use'!L37)-1),'Do Not Use'!L37) -> 
A7: =Data!F1 -> Milburn | B7: =COUNT(Teacher5Pretest!C8:C37) -> 16 | D7: =COUNTIF(Teacher5Pretest!C8:C37,">="&Teacher5Pretest!O8) -> 2 | E7: 0.125 | F7: =IF(Data!N10="","",IF(Data!N11="","",IF(LEFT(Teacher5Pretest!G37,1)=",",RIGHT(Teacher5Pretest!G37, LEN(Teacher5Pretest!G37)-1),Teacher5Pretest!G37))) -> Chris Montgomery, Don Rugraff | H7: =COUNTIF(Teacher5Pretest!C8:C37,">="&Teacher5Pretest!O9)-COUNTIF(Teacher5Pretest!C8:C37,">="&Teacher5Pretest!O8) -> 4 | I7: 0.25 | J7: =IF(Data!N10="","",IF(Data!N11="","",IF(Data!N12="","",IF(LEFT(Teacher5Pretest!I37,1)=",",RIGHT(Teacher5Pretest!I37, LEN(Teacher5Pretest!I37)-1),Teacher5Pretest!I37)))) -> Bertha Richardson, Bill Scheffler, Rose Coleman, Tricia Buchanan | L7: =COUNTIF(Teacher5Pretest!C8:C37,">="&Teacher5Pretest!O10)-COUNTIF(Teacher5Pretest!C8:C37,">="&Teacher5Pretest!O9) -> 5 | M7: 0.3125 | N7: =IF(Data!N10="","",IF(Data!N11="","",IF(Data!N12="","",IF(Data!N13="","",IF(LEFT(Teacher5Pretest!K37,1)=",",RIGHT(Teacher5Pretest!K37, LEN(Teacher5Pretest!K37)-1),Teacher5Pretest!K37))))) -> Dave Sanders, Carolyn Neal, Dexter Schraer, Julie Sperry, **Sam McCauley | P7: =COUNTIF(Teacher5Pretest!C8:C37,"<"&Teacher5Pretest!O10) -> 5 | Q7: 0.3125 | R7: =IF(LEFT(Teacher5Pretest!M37,1)=",",RIGHT(Teacher5Pretest!M37, LEN(Teacher5Pretest!M37)-1),Teacher5Pretest!M37) -> Darlene Jones, Janice Putman, Jeanne Rothermel, Randy Speer, **Beth Tobin
A8: =Data!G1 -> Teacher6 | B8: =COUNT(Teacher6Pretest!C8:C37) -> 0 | D8: =COUNTIF(Teacher6Pretest!C8:C37,">="&Teacher6Pretest!O8) -> 0 | F8: =IF(Data!N10="","",IF(Data!N11="","",IF(LEFT(Teacher6Pretest!G37,1)=",",RIGHT(Teacher6Pretest!G37, LEN(Teacher6Pretest!G37)-1),Teacher6Pretest!G37))) ->  | H8: =COUNTIF(Teacher6Pretest!C8:C37,">="&Teacher6Pretest!O9)-COUNTIF(Teacher6Pretest!C8:C37,">="&Teacher6Pretest!O8) -> 0 | J8: =IF(Data!N10="","",IF(Data!N11="","",IF(Data!N12="","",IF(LEFT(Teacher6Pretest!I37,1)=",",RIGHT(Teacher6Pretest!I37, LEN(Teacher6Pretest!I37)-1),Teacher6Pretest!I37)))) ->  | L8: =COUNTIF(Teacher6Pretest!C8:C37,">="&Teacher6Pretest!O10)-COUNTIF(Teacher6Pretest!C8:C37,">="&Teacher6Pretest!O9) -> 0 | N8: =IF(Data!N10="","",IF(Data!N11="","",IF(Data!N12="","",IF(Data!N13="","",IF(LEFT(Teacher6Pretest!K37,1)=",",RIGHT(Teacher6Pretest!K37, LEN(Teacher6Pretest!K37)-1),Teacher6Pretest!K37))))) ->  | P8: =COUNTIF(Teacher6Pretest!C8:C37,"<"&Teacher6Pretest!O10) -> 0 | R8: =IF(LEFT(Teacher6Pretest!M37,1)=",",RIGHT(Teacher6Pretest!M37, LEN(Teacher6Pretest!M37)-1),Teacher6Pretest!M37) -> 
A10: TOTAL | B10: =SUM(B2:B8) -> 95 | D10: =SUM(D2:D8) -> 27 | E10: =D10/B10 -> 0.2842105263 | H10: =SUM(H2:H8) -> 17 | I10: =H10/B10 -> 0.1789473684 | L10: =SUM(L2:L8) -> 17 | M10: =L10/B10 -> 0.1789473684 | P10: =SUM(P2:P8) -> 34 | Q10: =P10/B10 -> 0.3578947368
A12: =IF(Data!N15="YES","SMART Goal","") -> SMART Goal | C12: =IF(Data!N15="YES",(D10+H10+L10)/B10,"") -> 0.6421052632

Sheet SG statement
A1: SMART goal statement:
A3: The percentage of | C3: =IF(Data!N6="Other",Data!N7,Data!N6) -> Grade 4 | E3: students scoring proficient
A4: or higher in | C4: =Data!N9 -> Main Idea- R.I.4.2 | G4: will
A5: increase from | C5: =SummaryPretest!E10 -> 0.2842105263 | D5: to | E5: =SummaryPretest!C12 -> 0.6421052632 | F5: by the end of the
A6: learning cycle as measured by the CFA administered on | G6: =Data!O8 -> 3/20/14

Sheet Teacher1Post
B1: =IF(Data!N6="Other",Data!N7,Data!N6) -> Grade 4 | E1: =Data!A1 -> March
B2: Meeting Date: | E2: =Data!O8 -> 3/20/14
B3: Assessment: | E3: =Data!N9 -> Main Idea- R.I.4.2
B5: Student Name | C5: Pretest % | D5: Post-test Points | E5: Possible | F5: Score - %
E7: =P7 -> 6 | G7: Proficient | I7: Close | K7: Far | M7: Intervention | P7: =Data!O10 -> 6 | Q7: Points Possible on Post-Test
A8: =IF(ISBLANK(D8),"FALSE",IF(LEFT(B8,2)="**",IF(D8>=$P$8,$P$8,IF(D8>=$P$9,$P$9,IF(D8>=$P$10,$P$10,$P$11))))) -> FALSE | B8: =Data!A2 -> Judy Blome | C8: =IF(Teacher1Pretest!C8="", "", Teacher1Pretest!E8) -> 0.5 | D8: 5 | E8: =IF(D8="","",$E$7) -> 6 | F8: =IF(E8="","",D8/$E$7) -> 0.8333333333 | G8: =IF(D8>=P8,B8,"") -> Judy Blome | H8: =G8 -> Judy Blome | I8: =IF(D8>=P9,IF(D8<P8,B8,""),"") ->  | J8: =I8 ->  | K8: =IF(D8>=P10,IF(D8<P9,B8,""),"") ->  | L8: =K8 ->  | M8: =IF(D8<P10,IF(D8="","",B8),"") ->  | N8: =M8 ->  | P8: =Data!O11 -> 5 | Q8: Proficient
A9: =IF(ISBLANK(D9),"FALSE",IF(LEFT(B9,2)="**",IF(D9>=$P$8,$P$8,IF(D9>=$P$9,$P$9,IF(D9>=$P$10,$P$10,$P$11))))) -> FALSE | B9: =Data!A3 -> Lewis Carroll | C9: =IF(Teacher1Pretest!C9="", "", Teacher1Pretest!E9) -> 0.3333333333 | D9: 3 | E9: =IF(D9="","",$E$7) -> 6 | F9: =IF(E9="","",D9/$E$7) -> 0.5 | G9: =IF(D9>=P8,B9,"") ->  | H9: =H8&IF(G9="","",", ")&G9 -> Judy Blome | I9: =IF(D9>=P9,IF(D9<P8,B9,""),"") ->  | J9: =J8&IF(I9="","",", ")&I9 ->  | K9: =IF(D9>=P10,IF(D9<P9,B9,""),"") -> Lewis Carroll | L9: =L8&IF(K9="","",", ")&K9 -> , Lewis Carroll | M9: =IF(D9<P10,IF(D9="","",B9),"") ->  | N9: =N8&IF(M9="","",", ")&M9 ->  | P9: =Data!O12 -> 4 | Q9: Close to Proficient
A10: FALSE | B10: =Data!A4 -> Betsy Byars | C10: =IF(Teacher1Pretest!C10="", "", Teacher1Pretest!E10) -> 0.6666666667 | D10: 6 | E10: 6 | F10: 1 | G10: =IF(D10>=P8,B10,"") -> Betsy Byars | H10: =H9&IF(G10="","",", ")&G10 -> Judy Blome, Betsy Byars | I10: =IF(D10>=P9,IF(D10<P8,B10,""),"") ->  | J10: =J9&IF(I10="","",", ")&I10 ->  | K10: =IF(D10>=P10,IF(D10<P9,B10,""),"") ->  | L10: =L9&IF(K10="","",", ")&K10 -> , Lewis Carroll | M10: =IF(D10<P10,IF(D10="","",B10),"") ->  | N10: =N9&IF(M10="","",", ")&M10 ->  | P10: =Data!O13 -> 3 | Q10: Far to Go But Likely to Become Proficient
A11: FALSE | B11: =Data!A5 -> Pam Conrad | C11: =IF(Teacher1Pretest!C11="", "", Teacher1Pretest!E11) -> 0.3333333333 | D11: 4 | E11: 6 | F11: 0.6666666667 | G11: =IF(D11>=P8,B11,"") ->  | H11: Judy Blome, Betsy Byars | I11: =IF(D11>=P9,IF(D11<P8,B11,""),"") -> Pam Conrad | J11: , Pam Conrad | K11: =IF(D11>=P10,IF(D11<P9,B11,""),"") ->  | L11: , Lewis Carroll | M11: =IF(D11<P10,IF(D11="","",B11),"") ->  | P11: =Data!O14 -> 1 | Q11: Intervention (Far to Go But Not Likely to Become Proficient)
A12: FALSE | B12: =Data!A6 -> Jean Fritz | C12: =IF(Teacher1Pretest!C12="", "", Teacher1Pretest!E12) -> 1 | D12: 6 | E12: 6 | F12: 1 | G12: =IF(D12>=P8,B12,"") -> Jean Fritz | H12: Judy Blome, Betsy Byars, Jean Fritz | I12: =IF(D12>=P9,IF(D12<P8,B12,""),"") ->  | J12: , Pam Conrad | K12: =IF(D12>=P10,IF(D12<P9,B12,""),"") ->  | L12: , Lewis Carroll | M12: =IF(D12<P10,IF(D12="","",B12),"") -> 
A13: FALSE | B13: =Data!A7 -> C.S. Lewis | C13: =IF(Teacher1Pretest!C13="", "", Teacher1Pretest!E13) -> 0.3333333333 | D13: 1 | E13: 6 | F13: 0.1666666667 | G13: =IF(D13>=P8,B13,"") ->  | H13: Judy Blome, Betsy Byars, Jean Fritz | I13: =IF(D13>=P9,IF(D13<P8,B13,""),"") ->  | J13: , Pam Conrad | K13: =IF(D13>=P10,IF(D13<P9,B13,""),"") ->  | L13: , Lewis Carroll | M13: =IF(D13<P10,IF(D13="","",B13),"") -> C.S. Lewis | N13: , C.S. Lewis
A14: FALSE | B14: =Data!A8 -> Lois Lowry | C14: =IF(Teacher1Pretest!C14="", "", Teacher1Pretest!E14) -> 1 | D14: 3 | E14: 6 | F14: 0.5 | G14: =IF(D14>=P8,B14,"") ->  | H14: Judy Blome, Betsy Byars, Jean Fritz | I14: =IF(D14>=P9,IF(D14<P8,B14,""),"") ->  | J14: , Pam Conrad | K14: =IF(D14>=P10,IF(D14<P9,B14,""),"") -> Lois Lowry | L14: , Lewis Carroll, Lois Lowry | M14: =IF(D14<P10,IF(D14="","",B14),"") ->  | N14: , C.S. Lewis
A15: FALSE | B15: =Data!A9 -> Patricia MacLachlan | C15: =IF(Teacher1Pretest!C15="", "", Teacher1Pretest!E15) -> 0.5 | D15: 5 | E15: 6 | F15: 0.8333333333 | G15: =IF(D15>=P8,B15,"") -> Patricia MacLachlan | H15: Judy Blome, Betsy Byars, Jean Fritz, Patricia MacLachlan | I15: =IF(D15>=P9,IF(D15<P8,B15,""),"") ->  | J15: , Pam Conrad | K15: =IF(D15>=P10,IF(D15<P9,B15,""),"") ->  | L15: , Lewis Carroll, Lois Lowry | M15: =IF(D15<P10,IF(D15="","",B15),"") ->  | N15: , C.S. Lewis
A16: 5 | B16: =Data!A10 -> **Barbara Park | C16: =IF(Teacher1Pretest!C16="", "", Teacher1Pretest!E16) -> 0.5 | D16: 6 | E16: 6 | F16: 1 | G16: =IF(D16>=P8,B16,"") -> **Barbara Park | H16: Judy Blome, Betsy Byars, Jean Fritz, Patricia MacLachlan, **Barbara Park | I16: =IF(D16>=P9,IF(D16<P8,B16,""),"") ->  | J16: , Pam Conrad | K16: =IF(D16>=P10,IF(D16<P9,B16,""),"") ->  | L16: , Lewis Carroll, Lois Lowry | M16: =IF(D16<P10,IF(D16="","",B16),"") ->  | N16: , C.S. Lewis
A17: 4 | B17: =Data!A11 -> **Gary Paulsen | C17: =IF(Teacher1Pretest!C17="", "", Teacher1Pretest!E17) -> 0.1666666667 | D17: 4 | E17: 6 | F17: 0.6666666667 | G17: =IF(D17>=P8,B17,"") ->  | H17: Judy Blome, Betsy Byars, Jean Fritz, Patricia MacLachlan, **Barbara Park | I17: =IF(D17>=P9,IF(D17<P8,B17,""),"") -> **Gary Paulsen | J17: , Pam Conrad, **Gary Paulsen | K17: =IF(D17>=P10,IF(D17<P9,B17,""),"") ->  | L17: , Lewis Carroll, Lois Lowry | M17: =IF(D17<P10,IF(D17="","",B17),"") ->  | N17: , C.S. Lewis
A18: FALSE | B18: =Data!A12 -> Jack Prelutsky | C18: =IF(Teacher1Pretest!C18="", "", Teacher1Pretest!E18) -> 0.5 | D18: 6 | E18: 6 | F18: 1 | G18: =IF(D18>=P8,B18,"") -> Jack Prelutsky | H18: Judy Blome, Betsy Byars, Jean Fritz, Patricia MacLachlan, **Barbara Park, Jack Prelutsky | I18: =IF(D18>=P9,IF(D18<P8,B18,""),"") ->  | J18: , Pam Conrad, **Gary Paulsen | K18: =IF(D18>=P10,IF(D18<P9,B18,""),"") ->  | L18: , Lewis Carroll, Lois Lowry | M18: =IF(D18<P10,IF(D18="","",B18),"") ->  | N18: , C.S. Lewis
A19: FALSE | B19: =Data!A13 -> Cynthia Rylant | C19: =IF(Teacher1Pretest!C19="", "", Teacher1Pretest!E19) -> 0.1666666667 | D19: 4 | E19: 6 | F19: 0.6666666667 | G19: =IF(D19>=P8,B19,"") ->  | H19: Judy Blome, Betsy Byars, Jean Fritz, Patricia MacLachlan, **Barbara Park, Jack Prelutsky | I19: =IF(D19>=P9,IF(D19<P8,B19,""),"") -> Cynthia Rylant | J19: , Pam Conrad, **Gary Paulsen, Cynthia Rylant | K19: =IF(D19>=P10,IF(D19<P9,B19,""),"") ->  | L19: , Lewis Carroll, Lois Lowry | M19: =IF(D19<P10,IF(D19="","",B19),"") ->  | N19: , C.S. Lewis
A20: FALSE | B20: =Data!A14 -> Louis Sachar | C20: =IF(Teacher1Pretest!C20="", "", Teacher1Pretest!E20) -> 0.8333333333 | D20: 5 | E20: 6 | F20: 0.8333333333 | G20: =IF(D20>=P8,B20,"") -> Louis Sachar | H20: Judy Blome, Betsy Byars, Jean Fritz, Patricia MacLachlan, **Barbara Park, Jack Prelutsky, Louis Sachar | I20: =IF(D20>=P9,IF(D20<P8,B20,""),"") ->  | J20: , Pam Conrad, **Gary Paulsen, Cynthia Rylant | K20: =IF(D20>=P10,IF(D20<P9,B20,""),"") ->  | L20: , Lewis Carroll, Lois Lowry | M20: =IF(D20<P10,IF(D20="","",B20),"") ->  | N20: , C.S. Lewis
A21: FALSE | B21: =Data!A15 -> Shel Silverstein | C21: =IF(Teacher1Pretest!C21="", "", Teacher1Pretest!E21) -> 1 | D21: 6 | E21: 6 | F21: 1 | G21: =IF(D21>=P8,B21,"") -> Shel Silverstein | H21: Judy Blome, Betsy Byars, Jean Fritz, Patricia MacLachlan, **Barbara Park, Jack Prelutsky, Louis Sachar, Shel Silverstein | I21: =IF(D21>=P9,IF(D21<P8,B21,""),"") ->  | J21: , Pam Conrad, **Gary Paulsen, Cynthia Rylant | K21: =IF(D21>=P10,IF(D21<P9,B21,""),"") ->  | L21: , Lewis Carroll, Lois Lowry | M21: =IF(D21<P10,IF(D21="","",B21),"") ->  | N21: , C.S. Lewis
A22: FALSE | B22: =Data!A16 -> Seymour Simon | C22: =IF(Teacher1Pretest!C22="", "", Teacher1Pretest!E22) -> 0.8333333333 | D22: 5 | E22: 6 | F22: 0.8333333333 | G22: =IF(D22>=P8,B22,"") -> Seymour Simon | H22: Judy Blome, Betsy Byars, Jean Fritz, Patricia MacLachlan, **Barbara Park, Jack Prelutsky, Louis Sachar, Shel Silverstein, Seymour Simon | I22: =IF(D22>=P9,IF(D22<P8,B22,""),"") ->  | J22: , Pam Conrad, **Gary Paulsen, Cynthia Rylant | K22: =IF(D22>=P10,IF(D22<P9,B22,""),"") ->  | L22: , Lewis Carroll, Lois Lowry | M22: =IF(D22<P10,IF(D22="","",B22),"") ->  | N22: , C.S. Lewis
A23: 5 | B23: =Data!A17 -> **Jerry Spinelli | C23: =IF(Teacher1Pretest!C23="", "", Teacher1Pretest!E23) -> 0.6666666667 | D23: 5 | E23: 6 | F23: 0.8333333333 | G23: =IF(D23>=P8,B23,"") -> **Jerry Spinelli | H23: Judy Blome, Betsy Byars, Jean Fritz, Patricia MacLachlan, **Barbara Park, Jack Prelutsky, Louis Sachar, Shel Silverstein, Seymour Simon, **Jerry Spinelli | I23: =IF(D23>=P9,IF(D23<P8,B23,""),"") ->  | J23: , Pam Conrad, **Gary Paulsen, Cynthia Rylant | K23: =IF(D23>=P10,IF(D23<P9,B23,""),"") ->  | L23: , Lewis Carroll, Lois Lowry | M23: =IF(D23<P10,IF(D23="","",B23),"") ->  | N23: , C.S. Lewis
A24: FALSE | B24: =Data!A18 -> R.L. Stine | C24: =IF(Teacher1Pretest!C24="", "", Teacher1Pretest!E24) -> 0.5 | D24: 4 | E24: 6 | F24: 0.6666666667 | G24: =IF(D24>=P8,B24,"") ->  | H24: Judy Blome, Betsy Byars, Jean Fritz, Patricia MacLachlan, **Barbara Park, Jack Prelutsky, Louis Sachar, Shel Silverstein, Seymour Simon, **Jerry Spinelli | I24: =IF(D24>=P9,IF(D24<P8,B24,""),"") -> R.L. Stine | J24: , Pam Conrad, **Gary Paulsen, Cynthia Rylant, R.L. Stine | K24: =IF(D24>=P10,IF(D24<P9,B24,""),"") ->  | L24: , Lewis Carroll, Lois Lowry | M24: =IF(D24<P10,IF(D24="","",B24),"") ->  | N24: , C.S. Lewis
A25: FALSE | B25: =Data!A19 -> Jane Yolen | C25: =IF(Teacher1Pretest!C25="", "", Teacher1Pretest!E25) -> 0.8333333333 | D25: 6 | E25: 6 | F25: 1 | G25: =IF(D25>=P8,B25,"") -> Jane Yolen | H25: Judy Blome, Betsy Byars, Jean Fritz, Patricia MacLachlan, **Barbara Park, Jack Prelutsky, Louis Sachar, Shel Silverstein, Seymour Simon, **Jerry Spinelli, Jane Yolen | I25: =IF(D25>=P9,IF(D25<P8,B25,""),"") ->  | J25: , Pam Conrad, **Gary Paulsen, Cynthia Rylant, R.L. Stine | K25: =IF(D25>=P10,IF(D25<P9,B25,""),"") ->  | L25: , Lewis Carroll, Lois Lowry | M25: =IF(D25<P10,IF(D25="","",B25),"") ->  | N25: , C.S. Lewis
A26: FALSE | B26: =Data!A20 -> J.K. Rowling | C26: =IF(Teacher1Pretest!C26="", "", Teacher1Pretest!E26) -> 0.1666666667 | D26: 1 | E26: 6 | F26: 0.1666666667 | G26: =IF(D26>=P8,B26,"") ->  | H26: Judy Blome, Betsy Byars, Jean Fritz, Patricia MacLachlan, **Barbara Park, Jack Prelutsky, Louis Sachar, Shel Silverstein, Seymour Simon, **Jerry Spinelli, Jane Yolen | I26: =IF(D26>=P9,IF(D26<P8,B26,""),"") ->  | J26: , Pam Conrad, **Gary Paulsen, Cynthia Rylant, R.L. Stine | K26: =IF(D26>=P10,IF(D26<P9,B26,""),"") ->  | L26: , Lewis Carroll, Lois Lowry | M26: =IF(D26<P10,IF(D26="","",B26),"") -> J.K. Rowling | N26: , C.S. Lewis, J.K. Rowling
A27: FALSE | B27: =Data!A21 -> Student20 | C27: =IF(Teacher1Pretest!C27="", "", Teacher1Pretest!E27) ->  | G27: =IF(D27>=P8,B27,"") ->  | H27: Judy Blome, Betsy Byars, Jean Fritz, Patricia MacLachlan, **Barbara Park, Jack Prelutsky, Louis Sachar, Shel Silverstein, Seymour Simon, **Jerry Spinelli, Jane Yolen | I27: =IF(D27>=P9,IF(D27<P8,B27,""),"") ->  | J27: , Pam Conrad, **Gary Paulsen, Cynthia Rylant, R.L. Stine | K27: =IF(D27>=P10,IF(D27<P9,B27,""),"") ->  | L27: , Lewis Carroll, Lois Lowry | M27: =IF(D27<P10,IF(D27="","",B27),"") ->  | N27: , C.S. Lewis, J.K. Rowling
A28: FALSE | B28: =Data!A22 -> Student21 | C28: =IF(Teacher1Pretest!C28="", "", Teacher1Pretest!E28) ->  | G28: =IF(D28>=P8,B28,"") ->  | H28: Judy Blome, Betsy Byars, Jean Fritz, Patricia MacLachlan, **Barbara Park, Jack Prelutsky, Louis Sachar, Shel Silverstein, Seymour Simon, **Jerry Spinelli, Jane Yolen | I28: =IF(D28>=P9,IF(D28<P8,B28,""),"") ->  | J28: , Pam Conrad, **Gary Paulsen, Cynthia Rylant, R.L. Stine | K28: =IF(D28>=P10,IF(D28<P9,B28,""),"") ->  | L28: , Lewis Carroll, Lois Lowry | M28: =IF(D28<P10,IF(D28="","",B28),"") ->  | N28: , C.S. Lewis, J.K. Rowling
A29: FALSE | B29: =Data!A23 -> Student22 | C29: =IF(Teacher1Pretest!C29="", "", Teacher1Pretest!E29) ->  | G29: =IF(D29>=P8,B29,"") ->  | H29: Judy Blome, Betsy Byars, Jean Fritz, Patricia MacLachlan, **Barbara Park, Jack Prelutsky, Louis Sachar, Shel Silverstein, Seymour Simon, **Jerry Spinelli, Jane Yolen | I29: =IF(D29>=P9,IF(D29<P8,B29,""),"") ->  | J29: , Pam Conrad, **Gary Paulsen, Cynthia Rylant, R.L. Stine | K29: =IF(D29>=P10,IF(D29<P9,B29,""),"") ->  | L29: , Lewis Carroll, Lois Lowry | M29: =IF(D29<P10,IF(D29="","",B29),"") ->  | N29: , C.S. Lewis, J.K. Rowling
A30: FALSE | B30: =Data!A24 -> Student23 | C30: =IF(Teacher1Pretest!C30="", "", Teacher1Pretest!E30) ->  | G30: =IF(D30>=P8,B30,"") ->  | H30: Judy Blome, Betsy Byars, Jean Fritz, Patricia MacLachlan, **Barbara Park, Jack Prelutsky, Louis Sachar, Shel Silverstein, Seymour Simon, **Jerry Spinelli, Jane Yolen | I30: =IF(D30>=P9,IF(D30<P8,B30,""),"") ->  | J30: , Pam Conrad, **Gary Paulsen, Cynthia Rylant, R.L. Stine | K30: =IF(D30>=P10,IF(D30<P9,B30,""),"") ->  | L30: , Lewis Carroll, Lois Lowry | M30: =IF(D30<P10,IF(D30="","",B30),"") ->  | N30: , C.S. Lewis, J.K. Rowling
A31: FALSE | B31: =Data!A25 -> Student24 | C31: =IF(Teacher1Pretest!C31="", "", Teacher1Pretest!E31) ->  | G31: =IF(D31>=P8,B31,"") ->  | H31: Judy Blome, Betsy Byars, Jean Fritz, Patricia MacLachlan, **Barbara Park, Jack Prelutsky, Louis Sachar, Shel Silverstein, Seymour Simon, **Jerry Spinelli, Jane Yolen | I31: =IF(D31>=P9,IF(D31<P8,B31,""),"") ->  | J31: , Pam Conrad, **Gary Paulsen, Cynthia Rylant, R.L. Stine | K31: =IF(D31>=P10,IF(D31<P9,B31,""),"") ->  | L31: , Lewis Carroll, Lois Lowry | M31: =IF(D31<P10,IF(D31="","",B31),"") ->  | N31: , C.S. Lewis, J.K. Rowling
A32: FALSE | B32: =Data!A26 -> Student25 | C32: =IF(Teacher1Pretest!C32="", "", Teacher1Pretest!E32) ->  | G32: =IF(D32>=P8,B32,"") ->  | H32: Judy Blome, Betsy Byars, Jean Fritz, Patricia MacLachlan, **Barbara Park, Jack Prelutsky, Louis Sachar, Shel Silverstein, Seymour Simon, **Jerry Spinelli, Jane Yolen | I32: =IF(D32>=P9,IF(D32<P8,B32,""),"") ->  | J32: , Pam Conrad, **Gary Paulsen, Cynthia Rylant, R.L. Stine | K32: =IF(D32>=P10,IF(D32<P9,B32,""),"") ->  | L32: , Lewis Carroll, Lois Lowry | M32: =IF(D32<P10,IF(D32="","",B32),"") ->  | N32: , C.S. Lewis, J.K. Rowling
A33: FALSE | B33: =Data!A27 -> Student26 | C33: =IF(Teacher1Pretest!C33="", "", Teacher1Pretest!E33) ->  | G33: =IF(D33>=P8,B33,"") ->  | H33: Judy Blome, Betsy Byars, Jean Fritz, Patricia MacLachlan, **Barbara Park, Jack Prelutsky, Louis Sachar, Shel Silverstein, Seymour Simon, **Jerry Spinelli, Jane Yolen | I33: =IF(D33>=P9,IF(D33<P8,B33,""),"") ->  | J33: , Pam Conrad, **Gary Paulsen, Cynthia Rylant, R.L. Stine | K33: =IF(D33>=P10,IF(D33<P9,B33,""),"") ->  | L33: , Lewis Carroll, Lois Lowry | M33: =IF(D33<P10,IF(D33="","",B33),"") ->  | N33: , C.S. Lewis, J.K. Rowling
A34: FALSE | B34: =Data!A28 -> Student27 | C34: =IF(Teacher1Pretest!C34="", "", Teacher1Pretest!E34) ->  | G34: =IF(D34>=P8,B34,"") ->  | H34: Judy Blome, Betsy Byars, Jean Fritz, Patricia MacLachlan, **Barbara Park, Jack Prelutsky, Louis Sachar, Shel Silverstein, Seymour Simon, **Jerry Spinelli, Jane Yolen | I34: =IF(D34>=P9,IF(D34<P8,B34,""),"") ->  | J34: , Pam Conrad, **Gary Paulsen, Cynthia Rylant, R.L. Stine | K34: =IF(D34>=P10,IF(D34<P9,B34,""),"") ->  | L34: , Lewis Carroll, Lois Lowry | M34: =IF(D34<P10,IF(D34="","",B34),"") ->  | N34: , C.S. Lewis, J.K. Rowling
A35: FALSE | B35: =Data!A29 -> Student28 | C35: =IF(Teacher1Pretest!C35="", "", Teacher1Pretest!E35) ->  | G35: =IF(D35>=P8,B35,"") ->  | H35: Judy Blome, Betsy Byars, Jean Fritz, Patricia MacLachlan, **Barbara Park, Jack Prelutsky, Louis Sachar, Shel Silverstein, Seymour Simon, **Jerry Spinelli, Jane Yolen | I35: =IF(D35>=P9,IF(D35<P8,B35,""),"") ->  | J35: , Pam Conrad, **Gary Paulsen, Cynthia Rylant, R.L. Stine | K35: =IF(D35>=P10,IF(D35<P9,B35,""),"") ->  | L35: , Lewis Carroll, Lois Lowry | M35: =IF(D35<P10,IF(D35="","",B35),"") ->  | N35: , C.S. Lewis, J.K. Rowling
A36: FALSE | B36: =Data!A30 -> Student29 | C36: =IF(Teacher1Pretest!C36="", "", Teacher1Pretest!E36) ->  | G36: =IF(D36>=P8,B36,"") ->  | H36: Judy Blome, Betsy Byars, Jean Fritz, Patricia MacLachlan, **Barbara Park, Jack Prelutsky, Louis Sachar, Shel Silverstein, Seymour Simon, **Jerry Spinelli, Jane Yolen | I36: =IF(D36>=P9,IF(D36<P8,B36,""),"") ->  | J36: , Pam Conrad, **Gary Paulsen, Cynthia Rylant, R.L. Stine | K36: =IF(D36>=P10,IF(D36<P9,B36,""),"") ->  | L36: , Lewis Carroll, Lois Lowry | M36: =IF(D36<P10,IF(D36="","",B36),"") ->  | N36: , C.S. Lewis, J.K. Rowling
A37: FALSE | B37: =Data!A31 -> Student30 | C37: =IF(Teacher1Pretest!C37="", "", Teacher1Pretest!E37) ->  | G37: =IF(D37>=P8,B37,"") ->  | H37: Judy Blome, Betsy Byars, Jean Fritz, Patricia MacLachlan, **Barbara Park, Jack Prelutsky, Louis Sachar, Shel Silverstein, Seymour Simon, **Jerry Spinelli, Jane Yolen | I37: =IF(D37>=P9,IF(D37<P8,B37,""),"") ->  | J37: , Pam Conrad, **Gary Paulsen, Cynthia Rylant, R.L. Stine | K37: =IF(D37>=P10,IF(D37<P9,B37,""),"") ->  | L37: , Lewis Carroll, Lois Lowry | M37: =IF(D37<P10,IF(D37="","",B37),"") ->  | N37: , C.S. Lewis, J.K. Rowling
A38: FALSE
B39: TOTAL | D39: =SUM(D8:D37) -> 85 | E39: =SUM(E8:E37) -> 114 | F39: =D39/E39 -> 0.7456140351

Sheet Teacher2Post
B1: =IF(Data!N6="Other",Data!N7,Data!N6) -> Grade 4 | E1: =Data!B1 -> Jones
B2: Meeting Date: | E2: =Data!O8 -> 3/20/14
B3: Assessment: | E3: =Teacher1Pretest!D3 -> Main Idea- R.I.4.2
B5: Student Name | C5: Pretest % | D5: Post-test Points | E5: Possible | F5: Score - %
C6: Pretest Points
E7: =Teacher1Post!P7 -> 6 | G7: Proficient | I7: Close | K7: Far | M7: Intervention | P7: =Data!O10 -> 6 | Q7: Points Possible on Post-Test
A8: =IF(ISBLANK(D8),"FALSE",IF(LEFT(B8,2)="**",IF(D8>=$P$8,$P$8,IF(D8>=$P$9,$P$9,IF(D8>=$P$10,$P$10,$P$11))))) -> 5 | B8: =Data!B2 -> **Justin Bieber | C8: =IF(Teacher2Pretest!C8="","",Teacher2Pretest!E8) -> 0.8333333333 | D8: 5 | E8: =IF(D8="","",$E$7) -> 6 | F8: =IF(E8="","",D8/$E$7) -> 0.8333333333 | G8: =IF(D8>=P8,B8,"") -> **Justin Bieber | H8: =G8 -> **Justin Bieber | I8: =IF(D8>=P9,IF(D8<P8,B8,""),"") ->  | J8: =I8 ->  | K8: =IF(D8>=P10,IF(D8<P9,B8,""),"") ->  | L8: =K8 ->  | M8: =IF(D8<P10,IF(D8="","",B8),"") ->  | N8: =M8 ->  | P8: =Data!O11 -> 5 | Q8: Proficient
A9: =IF(ISBLANK(D9),"FALSE",IF(LEFT(B9,2)="**",IF(D9>=$P$8,$P$8,IF(D9>=$P$9,$P$9,IF(D9>=$P$10,$P$10,$P$11))))) -> FALSE | B9: =Data!B3 -> Taylor Swift | C9: =IF(Teacher2Pretest!C9="","",Teacher2Pretest!E9) -> 0.8333333333 | D9: 5 | E9: =IF(D9="","",$E$7) -> 6 | F9: =IF(E9="","",D9/$E$7) -> 0.8333333333 | G9: =IF(D9>=P8,B9,"") -> Taylor Swift | H9: =H8&IF(G9="","",", ")&G9 -> **Justin Bieber, Taylor Swift | I9: =IF(D9>=P9,IF(D9<P8,B9,""),"") ->  | J9: =J8&IF(I9="","",", ")&I9 ->  | K9: =IF(D9>=P10,IF(D9<P9,B9,""),"") ->  | L9: =L8&IF(K9="","",", ")&K9 ->  | M9: =IF(D9<P10,IF(D9="","",B9),"") ->  | N9: =N8&IF(M9="","",", ")&M9 ->  | P9: =Data!O12 -> 4 | Q9: Close to Proficient
A10: FALSE | B10: =Data!B4 -> Beyonce Knowles | C10: =IF(Teacher2Pretest!C10="","",Teacher2Pretest!E10) -> 0.8333333333 | D10: 5 | E10: 6 | F10: 0.8333333333 | G10: =IF(D10>=P8,B10,"") -> Beyonce Knowles | H10: =H9&IF(G10="","",", ")&G10 -> **Justin Bieber, Taylor Swift, Beyonce Knowles | I10: =IF(D10>=P9,IF(D10<P8,B10,""),"") ->  | J10: =J9&IF(I10="","",", ")&I10 ->  | K10: =IF(D10>=P10,IF(D10<P9,B10,""),"") ->  | L10: =L9&IF(K10="","",", ")&K10 ->  | M10: =IF(D10<P10,IF(D10="","",B10),"") ->  | N10: =N9&IF(M10="","",", ")&M10 ->  | P10: =Data!O13 -> 3 | Q10: Far to Go But Likely to Become Proficient
A11: FALSE | B11: =Data!B5 -> Madonna | C11: =IF(Teacher2Pretest!C11="","",Teacher2Pretest!E11) -> 0.6666666667 | D11: 5 | E11: 6 | F11: 0.8333333333 | G11: =IF(D11>=P8,B11,"") -> Madonna | H11: **Justin Bieber, Taylor Swift, Beyonce Knowles, Madonna | I11: =IF(D11>=P9,IF(D11<P8,B11,""),"") ->  | K11: =IF(D11>=P10,IF(D11<P9,B11,""),"") ->  | M11: =IF(D11<P10,IF(D11="","",B11),"") ->  | P11: =Data!O14 -> 1 | Q11: Intervention (Far to Go But Not Likely to Become Proficient)
A12: FALSE | B12: =Data!B6 -> Justin Timberlake | C12: =IF(Teacher2Pretest!C12="","",Teacher2Pretest!E12) -> 0.1666666667 | D12: 2 | E12: 6 | F12: 0.3333333333 | G12: =IF(D12>=P8,B12,"") ->  | H12: **Justin Bieber, Taylor Swift, Beyonce Knowles, Madonna | I12: =IF(D12>=P9,IF(D12<P8,B12,""),"") ->  | K12: =IF(D12>=P10,IF(D12<P9,B12,""),"") ->  | M12: =IF(D12<P10,IF(D12="","",B12),"") -> Justin Timberlake | N12: , Justin Timberlake
A13: FALSE | B13: =Data!B7 -> Bon Jovi | C13: =IF(Teacher2Pretest!C13="","",Teacher2Pretest!E13) -> 0.3333333333 | D13: 3 | E13: 6 | F13: 0.5 | G13: =IF(D13>=P8,B13,"") ->  | H13: **Justin Bieber, Taylor Swift, Beyonce Knowles, Madonna | I13: =IF(D13>=P9,IF(D13<P8,B13,""),"") ->  | K13: =IF(D13>=P10,IF(D13<P9,B13,""),"") -> Bon Jovi | L13: , Bon Jovi | M13: =IF(D13<P10,IF(D13="","",B13),"") ->  | N13: , Justin Timberlake
A14: FALSE | B14: =Data!B8 -> Tim McGraw | C14: =IF(Teacher2Pretest!C14="","",Teacher2Pretest!E14) -> 0.8333333333 | D14: 3 | E14: 6 | F14: 0.5 | G14: =IF(D14>=P8,B14,"") ->  | H14: **Justin Bieber, Taylor Swift, Beyonce Knowles, Madonna | I14: =IF(D14>=P9,IF(D14<P8,B14,""),"") ->  | K14: =IF(D14>=P10,IF(D14<P9,B14,""),"") -> Tim McGraw | L14: , Bon Jovi, Tim McGraw | M14: =IF(D14<P10,IF(D14="","",B14),"") ->  | N14: , Justin Timberlake
A15: FALSE | B15: =Data!B9 -> Elton John | C15: =IF(Teacher2Pretest!C15="","",Teacher2Pretest!E15) -> 0.1666666667 | D15: 0 | E15: 6 | F15: 0 | G15: =IF(D15>=P8,B15,"") ->  | H15: **Justin Bieber, Taylor Swift, Beyonce Knowles, Madonna | I15: =IF(D15>=P9,IF(D15<P8,B15,""),"") ->  | K15: =IF(D15>=P10,IF(D15<P9,B15,""),"") ->  | L15: , Bon Jovi, Tim McGraw | M15: =IF(D15<P10,IF(D15="","",B15),"") -> Elton John | N15: , Justin Timberlake, Elton John
A16: 5 | B16: =Data!B10 -> **Kelly Clarkson | C16: =IF(Teacher2Pretest!C16="","",Teacher2Pretest!E16) -> 0.8333333333 | D16: 6 | E16: 6 | F16: 1 | G16: =IF(D16>=P8,B16,"") -> **Kelly Clarkson | H16: **Justin Bieber, Taylor Swift, Beyonce Knowles, Madonna, **Kelly Clarkson | I16: =IF(D16>=P9,IF(D16<P8,B16,""),"") ->  | K16: =IF(D16>=P10,IF(D16<P9,B16,""),"") ->  | L16: , Bon Jovi, Tim McGraw | M16: =IF(D16<P10,IF(D16="","",B16),"") ->  | N16: , Justin Timberlake, Elton John
A17: FALSE | B17: =Data!B11 -> Aretha Franklin | C17: =IF(Teacher2Pretest!C17="","",Teacher2Pretest!E17) -> 0.5 | D17: 5 | E17: 6 | F17: 0.8333333333 | G17: =IF(D17>=P8,B17,"") -> Aretha Franklin | H17: **Justin Bieber, Taylor Swift, Beyonce Knowles, Madonna, **Kelly Clarkson, Aretha Franklin | I17: =IF(D17>=P9,IF(D17<P8,B17,""),"") ->  | K17: =IF(D17>=P10,IF(D17<P9,B17,""),"") ->  | L17: , Bon Jovi, Tim McGraw | M17: =IF(D17<P10,IF(D17="","",B17),"") ->  | N17: , Justin Timberlake, Elton John
A18: FALSE | B18: =Data!B12 -> Lady Gaga | C18: =IF(Teacher2Pretest!C18="","",Teacher2Pretest!E18) -> 0.3333333333 | D18: 5 | E18: 6 | F18: 0.8333333333 | G18: =IF(D18>=P8,B18,"") -> Lady Gaga | H18: **Justin Bieber, Taylor Swift, Beyonce Knowles, Madonna, **Kelly Clarkson, Aretha Franklin, Lady Gaga | I18: =IF(D18>=P9,IF(D18<P8,B18,""),"") ->  | K18: =IF(D18>=P10,IF(D18<P9,B18,""),"") ->  | L18: , Bon Jovi, Tim McGraw | M18: =IF(D18<P10,IF(D18="","",B18),"") ->  | N18: , Justin Timberlake, Elton John
A19: FALSE | B19: =Data!B13 -> Billy Joel | C19: =IF(Teacher2Pretest!C19="","",Teacher2Pretest!E19) -> 0.6666666667 | D19: 4 | E19: 6 | F19: 0.6666666667 | G19: =IF(D19>=P8,B19,"") ->  | H19: **Justin Bieber, Taylor Swift, Beyonce Knowles, Madonna, **Kelly Clarkson, Aretha Franklin, Lady Gaga | I19: =IF(D19>=P9,IF(D19<P8,B19,""),"") -> Billy Joel | J19: , Billy Joel | K19: =IF(D19>=P10,IF(D19<P9,B19,""),"") ->  | L19: , Bon Jovi, Tim McGraw | M19: =IF(D19<P10,IF(D19="","",B19),"") ->  | N19: , Justin Timberlake, Elton John
A20: FALSE | B20: =Data!B14 -> Bruno Mars | C20: =IF(Teacher2Pretest!C20="","",Teacher2Pretest!E20) -> 1 | D20: 5 | E20: 6 | F20: 0.8333333333 | G20: =IF(D20>=P8,B20,"") -> Bruno Mars | H20: **Justin Bieber, Taylor Swift, Beyonce Knowles, Madonna, **Kelly Clarkson, Aretha Franklin, Lady Gaga, Bruno Mars | I20: =IF(D20>=P9,IF(D20<P8,B20,""),"") ->  | J20: , Billy Joel | K20: =IF(D20>=P10,IF(D20<P9,B20,""),"") ->  | L20: , Bon Jovi, Tim McGraw | M20: =IF(D20<P10,IF(D20="","",B20),"") ->  | N20: , Justin Timberlake, Elton John
A21: FALSE | B21: =Data!B15 -> Dolly Parton | C21: =IF(Teacher2Pretest!C21="","",Teacher2Pretest!E21) -> 0.5 | D21: 5 | E21: 6 | F21: 0.8333333333 | G21: =IF(D21>=P8,B21,"") -> Dolly Parton | H21: **Justin Bieber, Taylor Swift, Beyonce Knowles, Madonna, **Kelly Clarkson, Aretha Franklin, Lady Gaga, Bruno Mars, Dolly Parton | I21: =IF(D21>=P9,IF(D21<P8,B21,""),"") ->  | J21: , Billy Joel | K21: =IF(D21>=P10,IF(D21<P9,B21,""),"") ->  | L21: , Bon Jovi, Tim McGraw | M21: =IF(D21<P10,IF(D21="","",B21),"") ->  | N21: , Justin Timberlake, Elton John
A22: 4 | B22: =Data!B16 -> **Axl Rose | C22: =IF(Teacher2Pretest!C22="","",Teacher2Pretest!E22) -> 0.3333333333 | D22: 4 | E22: 6 | F22: 0.6666666667 | G22: =IF(D22>=P8,B22,"") ->  | H22: **Justin Bieber, Taylor Swift, Beyonce Knowles, Madonna, **Kelly Clarkson, Aretha Franklin, Lady Gaga, Bruno Mars, Dolly Parton | I22: =IF(D22>=P9,IF(D22<P8,B22,""),"") -> **Axl Rose | J22: , Billy Joel, **Axl Rose | K22: =IF(D22>=P10,IF(D22<P9,B22,""),"") ->  | L22: , Bon Jovi, Tim McGraw | M22: =IF(D22<P10,IF(D22="","",B22),"") ->  | N22: , Justin Timberlake, Elton John
A23: FALSE | B23: =Data!B17 -> Tony Bennett | C23: =IF(Teacher2Pretest!C23="","",Teacher2Pretest!E23) -> 0.3333333333 | D23: 5 | E23: 6 | F23: 0.8333333333 | G23: =IF(D23>=P8,B23,"") -> Tony Bennett | H23: **Justin Bieber, Taylor Swift, Beyonce Knowles, Madonna, **Kelly Clarkson, Aretha Franklin, Lady Gaga, Bruno Mars, Dolly Parton, Tony Bennett | I23: =IF(D23>=P9,IF(D23<P8,B23,""),"") ->  | J23: , Billy Joel, **Axl Rose | K23: =IF(D23>=P10,IF(D23<P9,B23,""),"") ->  | L23: , Bon Jovi, Tim McGraw | M23: =IF(D23<P10,IF(D23="","",B23),"") ->  | N23: , Justin Timberlake, Elton John
A24: FALSE | B24: =Data!B18 -> Pat Benatar | C24: =IF(Teacher2Pretest!C24="","",Teacher2Pretest!E24) -> 0.1666666667 | D24: 5 | E24: 6 | F24: 0.8333333333 | G24: =IF(D24>=P8,B24,"") -> Pat Benatar | H24: **Justin Bieber, Taylor Swift, Beyonce Knowles, Madonna, **Kelly Clarkson, Aretha Franklin, Lady Gaga, Bruno Mars, Dolly Parton, Tony Bennett, Pat Benatar | I24: =IF(D24>=P9,IF(D24<P8,B24,""),"") ->  | J24: , Billy Joel, **Axl Rose | K24: =IF(D24>=P10,IF(D24<P9,B24,""),"") ->  | L24: , Bon Jovi, Tim McGraw | M24: =IF(D24<P10,IF(D24="","",B24),"") ->  | N24: , Justin Timberlake, Elton John
A25: 3 | B25: =Data!B19 -> **Bob Dylan | C25: =IF(Teacher2Pretest!C25="","",Teacher2Pretest!E25) -> 0.8333333333 | D25: 3 | E25: 6 | F25: 0.5 | G25: =IF(D25>=P8,B25,"") ->  | H25: **Justin Bieber, Taylor Swift, Beyonce Knowles, Madonna, **Kelly Clarkson, Aretha Franklin, Lady Gaga, Bruno Mars, Dolly Parton, Tony Bennett, Pat Benatar | I25: =IF(D25>=P9,IF(D25<P8,B25,""),"") ->  | J25: , Billy Joel, **Axl Rose | K25: =IF(D25>=P10,IF(D25<P9,B25,""),"") -> **Bob Dylan | L25: , Bon Jovi, Tim McGraw, **Bob Dylan | M25: =IF(D25<P10,IF(D25="","",B25),"") ->  | N25: , Justin Timberlake, Elton John
A26: FALSE | B26: =Data!B20 -> Eric Clapton | C26: =IF(Teacher2Pretest!C26="","",Teacher2Pretest!E26) -> 0.5 | D26: 3 | E26: 6 | F26: 0.5 | G26: =IF(D26>=P8,B26,"") ->  | H26: **Justin Bieber, Taylor Swift, Beyonce Knowles, Madonna, **Kelly Clarkson, Aretha Franklin, Lady Gaga, Bruno Mars, Dolly Parton, Tony Bennett, Pat Benatar | I26: =IF(D26>=P9,IF(D26<P8,B26,""),"") ->  | J26: , Billy Joel, **Axl Rose | K26: =IF(D26>=P10,IF(D26<P9,B26,""),"") -> Eric Clapton | L26: , Bon Jovi, Tim McGraw, **Bob Dylan, Eric Clapton | M26: =IF(D26<P10,IF(D26="","",B26),"") ->  | N26: , Justin Timberlake, Elton John
A27: FALSE | B27: =Data!B21 -> Paul McCartney | C27: =IF(Teacher2Pretest!C27="","",Teacher2Pretest!E27) -> 0.3333333333 | D27: 4 | E27: 6 | F27: 0.6666666667 | G27: =IF(D27>=P8,B27,"") ->  | H27: **Justin Bieber, Taylor Swift, Beyonce Knowles, Madonna, **Kelly Clarkson, Aretha Franklin, Lady Gaga, Bruno Mars, Dolly Parton, Tony Bennett, Pat Benatar | I27: =IF(D27>=P9,IF(D27<P8,B27,""),"") -> Paul McCartney | J27: , Billy Joel, **Axl Rose, Paul McCartney | K27: =IF(D27>=P10,IF(D27<P9,B27,""),"") ->  | L27: , Bon Jovi, Tim McGraw, **Bob Dylan, Eric Clapton | M27: =IF(D27<P10,IF(D27="","",B27),"") ->  | N27: , Justin Timberlake, Elton John
A28: 3 | B28: =Data!B22 -> **Mick Jagger | C28: =IF(Teacher2Pretest!C28="","",Teacher2Pretest!E28) -> 0.6666666667 | D28: 3 | E28: 6 | F28: 0.5 | G28: =IF(D28>=P8,B28,"") ->  | H28: **Justin Bieber, Taylor Swift, Beyonce Knowles, Madonna, **Kelly Clarkson, Aretha Franklin, Lady Gaga, Bruno Mars, Dolly Parton, Tony Bennett, Pat Benatar | I28: =IF(D28>=P9,IF(D28<P8,B28,""),"") ->  | J28: , Billy Joel, **Axl Rose, Paul McCartney | K28: =IF(D28>=P10,IF(D28<P9,B28,""),"") -> **Mick Jagger | L28: , Bon Jovi, Tim McGraw, **Bob Dylan, Eric Clapton, **Mick Jagger | M28: =IF(D28<P10,IF(D28="","",B28),"") ->  | N28: , Justin Timberlake, Elton John
A29: FALSE | B29: =Data!B23 -> Student22 | C29: =IF(Teacher2Pretest!C29="","",Teacher2Pretest!E29) ->  | G29: =IF(D29>=P8,B29,"") ->  | H29: **Justin Bieber, Taylor Swift, Beyonce Knowles, Madonna, **Kelly Clarkson, Aretha Franklin, Lady Gaga, Bruno Mars, Dolly Parton, Tony Bennett, Pat Benatar | I29: =IF(D29>=P9,IF(D29<P8,B29,""),"") ->  | J29: , Billy Joel, **Axl Rose, Paul McCartney | K29: =IF(D29>=P10,IF(D29<P9,B29,""),"") ->  | L29: , Bon Jovi, Tim McGraw, **Bob Dylan, Eric Clapton, **Mick Jagger | M29: =IF(D29<P10,IF(D29="","",B29),"") ->  | N29: , Justin Timberlake, Elton John
A30: FALSE | B30: =Data!B24 -> Student23 | C30: =IF(Teacher2Pretest!C30="","",Teacher2Pretest!E30) ->  | G30: =IF(D30>=P8,B30,"") ->  | H30: **Justin Bieber, Taylor Swift, Beyonce Knowles, Madonna, **Kelly Clarkson, Aretha Franklin, Lady Gaga, Bruno Mars, Dolly Parton, Tony Bennett, Pat Benatar | I30: =IF(D30>=P9,IF(D30<P8,B30,""),"") ->  | J30: , Billy Joel, **Axl Rose, Paul McCartney | K30: =IF(D30>=P10,IF(D30<P9,B30,""),"") ->  | L30: , Bon Jovi, Tim McGraw, **Bob Dylan, Eric Clapton, **Mick Jagger | M30: =IF(D30<P10,IF(D30="","",B30),"") ->  | N30: , Justin Timberlake, Elton John
A31: FALSE | B31: =Data!B25 -> Student24 | C31: =IF(Teacher2Pretest!C31="","",Teacher2Pretest!E31) ->  | G31: =IF(D31>=P8,B31,"") ->  | H31: **Justin Bieber, Taylor Swift, Beyonce Knowles, Madonna, **Kelly Clarkson, Aretha Franklin, Lady Gaga, Bruno Mars, Dolly Parton, Tony Bennett, Pat Benatar | I31: =IF(D31>=P9,IF(D31<P8,B31,""),"") ->  | J31: , Billy Joel, **Axl Rose, Paul McCartney | K31: =IF(D31>=P10,IF(D31<P9,B31,""),"") ->  | L31: , Bon Jovi, Tim McGraw, **Bob Dylan, Eric Clapton, **Mick Jagger | M31: =IF(D31<P10,IF(D31="","",B31),"") ->  | N31: , Justin Timberlake, Elton John
A32: FALSE | B32: =Data!B26 -> Student25 | C32: =IF(Teacher2Pretest!C32="","",Teacher2Pretest!E32) ->  | G32: =IF(D32>=P8,B32,"") ->  | H32: **Justin Bieber, Taylor Swift, Beyonce Knowles, Madonna, **Kelly Clarkson, Aretha Franklin, Lady Gaga, Bruno Mars, Dolly Parton, Tony Bennett, Pat Benatar | I32: =IF(D32>=P9,IF(D32<P8,B32,""),"") ->  | J32: , Billy Joel, **Axl Rose, Paul McCartney | K32: =IF(D32>=P10,IF(D32<P9,B32,""),"") ->  | L32: , Bon Jovi, Tim McGraw, **Bob Dylan, Eric Clapton, **Mick Jagger | M32: =IF(D32<P10,IF(D32="","",B32),"") ->  | N32: , Justin Timberlake, Elton John
A33: FALSE | B33: =Data!B27 -> Student26 | C33: =IF(Teacher2Pretest!C33="","",Teacher2Pretest!E33) ->  | G33: =IF(D33>=P8,B33,"") ->  | H33: **Justin Bieber, Taylor Swift, Beyonce Knowles, Madonna, **Kelly Clarkson, Aretha Franklin, Lady Gaga, Bruno Mars, Dolly Parton, Tony Bennett, Pat Benatar | I33: =IF(D33>=P9,IF(D33<P8,B33,""),"") ->  | J33: , Billy Joel, **Axl Rose, Paul McCartney | K33: =IF(D33>=P10,IF(D33<P9,B33,""),"") ->  | L33: , Bon Jovi, Tim McGraw, **Bob Dylan, Eric Clapton, **Mick Jagger | M33: =IF(D33<P10,IF(D33="","",B33),"") ->  | N33: , Justin Timberlake, Elton John
A34: FALSE | B34: =Data!B28 -> Student27 | C34: =IF(Teacher2Pretest!C34="","",Teacher2Pretest!E34) ->  | G34: =IF(D34>=P8,B34,"") ->  | H34: **Justin Bieber, Taylor Swift, Beyonce Knowles, Madonna, **Kelly Clarkson, Aretha Franklin, Lady Gaga, Bruno Mars, Dolly Parton, Tony Bennett, Pat Benatar | I34: =IF(D34>=P9,IF(D34<P8,B34,""),"") ->  | J34: , Billy Joel, **Axl Rose, Paul McCartney | K34: =IF(D34>=P10,IF(D34<P9,B34,""),"") ->  | L34: , Bon Jovi, Tim McGraw, **Bob Dylan, Eric Clapton, **Mick Jagger | M34: =IF(D34<P10,IF(D34="","",B34),"") ->  | N34: , Justin Timberlake, Elton John
A35: FALSE | B35: =Data!B29 -> Student28 | C35: =IF(Teacher2Pretest!C35="","",Teacher2Pretest!E35) ->  | G35: =IF(D35>=P8,B35,"") ->  | H35: **Justin Bieber, Taylor Swift, Beyonce Knowles, Madonna, **Kelly Clarkson, Aretha Franklin, Lady Gaga, Bruno Mars, Dolly Parton, Tony Bennett, Pat Benatar | I35: =IF(D35>=P9,IF(D35<P8,B35,""),"") ->  | J35: , Billy Joel, **Axl Rose, Paul McCartney | K35: =IF(D35>=P10,IF(D35<P9,B35,""),"") ->  | L35: , Bon Jovi, Tim McGraw, **Bob Dylan, Eric Clapton, **Mick Jagger | M35: =IF(D35<P10,IF(D35="","",B35),"") ->  | N35: , Justin Timberlake, Elton John
A36: FALSE | B36: =Data!B30 -> Student29 | C36: =IF(Teacher2Pretest!C36="","",Teacher2Pretest!E36) ->  | G36: =IF(D36>=P8,B36,"") ->  | H36: **Justin Bieber, Taylor Swift, Beyonce Knowles, Madonna, **Kelly Clarkson, Aretha Franklin, Lady Gaga, Bruno Mars, Dolly Parton, Tony Bennett, Pat Benatar | I36: =IF(D36>=P9,IF(D36<P8,B36,""),"") ->  | J36: , Billy Joel, **Axl Rose, Paul McCartney | K36: =IF(D36>=P10,IF(D36<P9,B36,""),"") ->  | L36: , Bon Jovi, Tim McGraw, **Bob Dylan, Eric Clapton, **Mick Jagger | M36: =IF(D36<P10,IF(D36="","",B36),"") ->  | N36: , Justin Timberlake, Elton John
A37: FALSE | B37: =Data!B31 -> Student30 | C37: =IF(Teacher2Pretest!C37="","",Teacher2Pretest!E37) ->  | G37: =IF(D37>=P8,B37,"") ->  | H37: **Justin Bieber, Taylor Swift, Beyonce Knowles, Madonna, **Kelly Clarkson, Aretha Franklin, Lady Gaga, Bruno Mars, Dolly Parton, Tony Bennett, Pat Benatar | I37: =IF(D37>=P9,IF(D37<P8,B37,""),"") ->  | J37: , Billy Joel, **Axl Rose, Paul McCartney | K37: =IF(D37>=P10,IF(D37<P9,B37,""),"") ->  | L37: , Bon Jovi, Tim McGraw, **Bob Dylan, Eric Clapton, **Mick Jagger | M37: =IF(D37<P10,IF(D37="","",B37),"") ->  | N37: , Justin Timberlake, Elton John
A38: FALSE
B39: TOTAL | D39: =SUM(D8:D37) -> 85 | E39: =SUM(E8:E37) -> 126 | F39: =D39/E39 -> 0.6746031746

Sheet Teacher3Post
B1: =IF(Data!N6="Other",Data!N7,Data!N6) -> Grade 4 | E1: =Data!C1 -> Gibson
B2: Meeting Date: | E2: =Data!O8 -> 3/20/14
B3: Assessment: | E3: =Teacher1Pretest!D3 -> Main Idea- R.I.4.2
B5: Student Name | C5: Pretest % | D5: Post-test Points | E5: Possible | F5: Score - %
E7: =Teacher1Post!P7 -> 6 | G7: Proficient | I7: Close | K7: Far | M7: Intervention | P7: =Data!O10 -> 6 | Q7: Points Possible on Post-Test
A8: =IF(ISBLANK(D8),"FALSE",IF(LEFT(B8,2)="**",IF(D8>=$P$8,$P$8,IF(D8>=$P$9,$P$9,IF(D8>=$P$10,$P$10,$P$11))))) -> 5 | B8: =Data!C2 -> **Albert Einstein | C8: =IF(Teacher3Pretest!C8="","",Teacher3Pretest!E8) -> 0.6666666667 | D8: 5 | E8: =IF(D8="","",$E$7) -> 6 | F8: =IF(E8="","",D8/$E$7) -> 0.8333333333 | G8: =IF(D8>=P8,B8,"") -> **Albert Einstein | H8: =G8 -> **Albert Einstein | I8: =IF(D8>=P9,IF(D8<P8,B8,""),"") ->  | J8: =I8 ->  | K8: =IF(D8>=P10,IF(D8<P9,B8,""),"") ->  | L8: =K8 ->  | M8: =IF(D8<P10,IF(D8="","",B8),"") ->  | N8: =M8 ->  | P8: =Data!O11 -> 5 | Q8: Proficient
A9: =IF(ISBLANK(D9),"FALSE",IF(LEFT(B9,2)="**",IF(D9>=$P$8,$P$8,IF(D9>=$P$9,$P$9,IF(D9>=$P$10,$P$10,$P$11))))) -> FALSE | B9: =Data!C3 -> Alfred Nobel | C9: =IF(Teacher3Pretest!C9="","",Teacher3Pretest!E9) -> 0.1666666667 | D9: 4 | E9: =IF(D9="","",$E$7) -> 6 | F9: =IF(E9="","",D9/$E$7) -> 0.6666666667 | G9: =IF(D9>=P8,B9,"") ->  | H9: =H8&IF(G9="","",", ")&G9 -> **Albert Einstein | I9: =IF(D9>=P9,IF(D9<P8,B9,""),"") -> Alfred Nobel | J9: =J8&IF(I9="","",", ")&I9 -> , Alfred Nobel | K9: =IF(D9>=P10,IF(D9<P9,B9,""),"") ->  | L9: =L8&IF(K9="","",", ")&K9 ->  | M9: =IF(D9<P10,IF(D9="","",B9),"") ->  | N9: =N8&IF(M9="","",", ")&M9 ->  | P9: =Data!O12 -> 4 | Q9: Close to Proficient
A10: FALSE | B10: =Data!C4 -> Benjamin Franklin | C10: =IF(Teacher3Pretest!C10="","",Teacher3Pretest!E10) -> 0.6666666667 | D10: 3 | E10: 6 | F10: 0.5 | G10: =IF(D10>=P8,B10,"") ->  | H10: =H9&IF(G10="","",", ")&G10 -> **Albert Einstein | I10: =IF(D10>=P9,IF(D10<P8,B10,""),"") ->  | J10: =J9&IF(I10="","",", ")&I10 -> , Alfred Nobel | K10: =IF(D10>=P10,IF(D10<P9,B10,""),"") -> Benjamin Franklin | L10: =L9&IF(K10="","",", ")&K10 -> , Benjamin Franklin | M10: =IF(D10<P10,IF(D10="","",B10),"") ->  | N10: =N9&IF(M10="","",", ")&M10 ->  | P10: =Data!O13 -> 3 | Q10: Far to Go But Likely to Become Proficient
A11: FALSE | B11: =Data!C5 -> Carl Sagan* | C11: =IF(Teacher3Pretest!C11="","",Teacher3Pretest!E11) -> 0.8333333333 | D11: 5 | E11: 6 | F11: 0.8333333333 | G11: =IF(D11>=P8,B11,"") -> Carl Sagan* | H11: **Albert Einstein, Carl Sagan* | I11: =IF(D11>=P9,IF(D11<P8,B11,""),"") ->  | J11: , Alfred Nobel | K11: =IF(D11>=P10,IF(D11<P9,B11,""),"") ->  | L11: , Benjamin Franklin | M11: =IF(D11<P10,IF(D11="","",B11),"") ->  | P11: =Data!O14 -> 1 | Q11: Intervention (Far to Go But Not Likely to Become Proficient)
A12: FALSE | B12: =Data!C6 -> Charles Darwin | C12: =IF(Teacher3Pretest!C12="","",Teacher3Pretest!E12) -> 0.3333333333 | D12: 4 | E12: 6 | F12: 0.6666666667 | G12: =IF(D12>=P8,B12,"") ->  | H12: **Albert Einstein, Carl Sagan* | I12: =IF(D12>=P9,IF(D12<P8,B12,""),"") -> Charles Darwin | J12: , Alfred Nobel, Charles Darwin | K12: =IF(D12>=P10,IF(D12<P9,B12,""),"") ->  | L12: , Benjamin Franklin | M12: =IF(D12<P10,IF(D12="","",B12),"") -> 
A13: FALSE | B13: =Data!C7 -> Henry Ford | C13: =IF(Teacher3Pretest!C13="","",Teacher3Pretest!E13) -> 0.5 | D13: 5 | E13: 6 | F13: 0.8333333333 | G13: =IF(D13>=P8,B13,"") -> Henry Ford | H13: **Albert Einstein, Carl Sagan*, Henry Ford | I13: =IF(D13>=P9,IF(D13<P8,B13,""),"") ->  | J13: , Alfred Nobel, Charles Darwin | K13: =IF(D13>=P10,IF(D13<P9,B13,""),"") ->  | L13: , Benjamin Franklin | M13: =IF(D13<P10,IF(D13="","",B13),"") -> 
A14: 1 | B14: =Data!C8 -> **Isaac Newton | C14: =IF(Teacher3Pretest!C14="","",Teacher3Pretest!E14) -> 0.3333333333 | D14: 2 | E14: 6 | F14: 0.3333333333 | G14: =IF(D14>=P8,B14,"") ->  | H14: **Albert Einstein, Carl Sagan*, Henry Ford | I14: =IF(D14>=P9,IF(D14<P8,B14,""),"") ->  | J14: , Alfred Nobel, Charles Darwin | K14: =IF(D14>=P10,IF(D14<P9,B14,""),"") ->  | L14: , Benjamin Franklin | M14: =IF(D14<P10,IF(D14="","",B14),"") -> **Isaac Newton | N14: , **Isaac Newton
A15: FALSE | B15: =Data!C9 -> Ivan Pavlov | C15: =IF(Teacher3Pretest!C15="","",Teacher3Pretest!E15) -> 0.3333333333 | D15: 5 | E15: 6 | F15: 0.8333333333 | G15: =IF(D15>=P8,B15,"") -> Ivan Pavlov | H15: **Albert Einstein, Carl Sagan*, Henry Ford, Ivan Pavlov | I15: =IF(D15>=P9,IF(D15<P8,B15,""),"") ->  | J15: , Alfred Nobel, Charles Darwin | K15: =IF(D15>=P10,IF(D15<P9,B15,""),"") ->  | L15: , Benjamin Franklin | M15: =IF(D15<P10,IF(D15="","",B15),"") ->  | N15: , **Isaac Newton
A16: FALSE | B16: =Data!C10 -> Jane Goodall | C16: =IF(Teacher3Pretest!C16="","",Teacher3Pretest!E16) -> 0.3333333333 | D16: 3 | E16: 6 | F16: 0.5 | G16: =IF(D16>=P8,B16,"") ->  | H16: **Albert Einstein, Carl Sagan*, Henry Ford, Ivan Pavlov | I16: =IF(D16>=P9,IF(D16<P8,B16,""),"") ->  | J16: , Alfred Nobel, Charles Darwin | K16: =IF(D16>=P10,IF(D16<P9,B16,""),"") -> Jane Goodall | L16: , Benjamin Franklin, Jane Goodall | M16: =IF(D16<P10,IF(D16="","",B16),"") ->  | N16: , **Isaac Newton
A17: FALSE | B17: =Data!C11 -> Jean Piaget | C17: =IF(Teacher3Pretest!C17="","",Teacher3Pretest!E17) -> 0.3333333333 | D17: 2 | E17: 6 | F17: 0.3333333333 | G17: =IF(D17>=P8,B17,"") ->  | H17: **Albert Einstein, Carl Sagan*, Henry Ford, Ivan Pavlov | I17: =IF(D17>=P9,IF(D17<P8,B17,""),"") ->  | J17: , Alfred Nobel, Charles Darwin | K17: =IF(D17>=P10,IF(D17<P9,B17,""),"") ->  | L17: , Benjamin Franklin, Jane Goodall | M17: =IF(D17<P10,IF(D17="","",B17),"") -> Jean Piaget | N17: , **Isaac Newton, Jean Piaget
A18: 5 | B18: =Data!C12 -> **Jonas Salk | C18: =IF(Teacher3Pretest!C18="","",Teacher3Pretest!E18) -> 0.1666666667 | D18: 5 | E18: 6 | F18: 0.8333333333 | G18: =IF(D18>=P8,B18,"") -> **Jonas Salk | H18: **Albert Einstein, Carl Sagan*, Henry Ford, Ivan Pavlov, **Jonas Salk | I18: =IF(D18>=P9,IF(D18<P8,B18,""),"") ->  | J18: , Alfred Nobel, Charles Darwin | K18: =IF(D18>=P10,IF(D18<P9,B18,""),"") ->  | L18: , Benjamin Franklin, Jane Goodall | M18: =IF(D18<P10,IF(D18="","",B18),"") ->  | N18: , **Isaac Newton, Jean Piaget
A19: 5 | B19: =Data!C13 -> **Marie Curie | C19: =IF(Teacher3Pretest!C19="","",Teacher3Pretest!E19) -> 0.8333333333 | D19: 5 | E19: 6 | F19: 0.8333333333 | G19: =IF(D19>=P8,B19,"") -> **Marie Curie | H19: **Albert Einstein, Carl Sagan*, Henry Ford, Ivan Pavlov, **Jonas Salk, **Marie Curie | I19: =IF(D19>=P9,IF(D19<P8,B19,""),"") ->  | J19: , Alfred Nobel, Charles Darwin | K19: =IF(D19>=P10,IF(D19<P9,B19,""),"") ->  | L19: , Benjamin Franklin, Jane Goodall | M19: =IF(D19<P10,IF(D19="","",B19),"") ->  | N19: , **Isaac Newton, Jean Piaget
A20: FALSE | B20: =Data!C14 -> Sigmund Freud | C20: =IF(Teacher3Pretest!C20="","",Teacher3Pretest!E20) -> 1 | D20: 6 | E20: 6 | F20: 1 | G20: =IF(D20>=P8,B20,"") -> Sigmund Freud | H20: **Albert Einstein, Carl Sagan*, Henry Ford, Ivan Pavlov, **Jonas Salk, **Marie Curie, Sigmund Freud | I20: =IF(D20>=P9,IF(D20<P8,B20,""),"") ->  | J20: , Alfred Nobel, Charles Darwin | K20: =IF(D20>=P10,IF(D20<P9,B20,""),"") ->  | L20: , Benjamin Franklin, Jane Goodall | M20: =IF(D20<P10,IF(D20="","",B20),"") ->  | N20: , **Isaac Newton, Jean Piaget
A21: FALSE | B21: =Data!C15 -> Stephen Hawking | C21: =IF(Teacher3Pretest!C21="","",Teacher3Pretest!E21) -> 0.8333333333 | D21: 6 | E21: 6 | F21: 1 | G21: =IF(D21>=P8,B21,"") -> Stephen Hawking | H21: **Albert Einstein, Carl Sagan*, Henry Ford, Ivan Pavlov, **Jonas Salk, **Marie Curie, Sigmund Freud, Stephen Hawking | I21: =IF(D21>=P9,IF(D21<P8,B21,""),"") ->  | J21: , Alfred Nobel, Charles Darwin | K21: =IF(D21>=P10,IF(D21<P9,B21,""),"") ->  | L21: , Benjamin Franklin, Jane Goodall | M21: =IF(D21<P10,IF(D21="","",B21),"") ->  | N21: , **Isaac Newton, Jean Piaget
A22: FALSE | B22: =Data!C16 -> Thomas Edison | C22: =IF(Teacher3Pretest!C22="","",Teacher3Pretest!E22) -> 0.3333333333 | D22: 6 | E22: 6 | F22: 1 | G22: =IF(D22>=P8,B22,"") -> Thomas Edison | H22: **Albert Einstein, Carl Sagan*, Henry Ford, Ivan Pavlov, **Jonas Salk, **Marie Curie, Sigmund Freud, Stephen Hawking, Thomas Edison | I22: =IF(D22>=P9,IF(D22<P8,B22,""),"") ->  | J22: , Alfred Nobel, Charles Darwin | K22: =IF(D22>=P10,IF(D22<P9,B22,""),"") ->  | L22: , Benjamin Franklin, Jane Goodall | M22: =IF(D22<P10,IF(D22="","",B22),"") ->  | N22: , **Isaac Newton, Jean Piaget
A23: FALSE | B23: =Data!C17 -> John Dewey | C23: =IF(Teacher3Pretest!C23="","",Teacher3Pretest!E23) -> 0.6666666667 | D23: 4 | E23: 6 | F23: 0.6666666667 | G23: =IF(D23>=P8,B23,"") ->  | H23: **Albert Einstein, Carl Sagan*, Henry Ford, Ivan Pavlov, **Jonas Salk, **Marie Curie, Sigmund Freud, Stephen Hawking, Thomas Edison | I23: =IF(D23>=P9,IF(D23<P8,B23,""),"") -> John Dewey | J23: , Alfred Nobel, Charles Darwin, John Dewey | K23: =IF(D23>=P10,IF(D23<P9,B23,""),"") ->  | L23: , Benjamin Franklin, Jane Goodall | M23: =IF(D23<P10,IF(D23="","",B23),"") ->  | N23: , **Isaac Newton, Jean Piaget
A24: 4 | B24: =Data!C18 -> **B.F. Skinner | C24: =IF(Teacher3Pretest!C24="","",Teacher3Pretest!E24) -> 0.6666666667 | D24: 4 | E24: 6 | F24: 0.6666666667 | G24: =IF(D24>=P8,B24,"") ->  | H24: **Albert Einstein, Carl Sagan*, Henry Ford, Ivan Pavlov, **Jonas Salk, **Marie Curie, Sigmund Freud, Stephen Hawking, Thomas Edison | I24: =IF(D24>=P9,IF(D24<P8,B24,""),"") -> **B.F. Skinner | J24: , Alfred Nobel, Charles Darwin, John Dewey, **B.F. Skinner | K24: =IF(D24>=P10,IF(D24<P9,B24,""),"") ->  | L24: , Benjamin Franklin, Jane Goodall | M24: =IF(D24<P10,IF(D24="","",B24),"") ->  | N24: , **Isaac Newton, Jean Piaget
A25: FALSE | B25: =Data!C19 -> Howard Gardner | C25: =IF(Teacher3Pretest!C25="","",Teacher3Pretest!E25) -> 0.8333333333 | D25: 5 | E25: 6 | F25: 0.8333333333 | G25: =IF(D25>=P8,B25,"") -> Howard Gardner | H25: **Albert Einstein, Carl Sagan*, Henry Ford, Ivan Pavlov, **Jonas Salk, **Marie Curie, Sigmund Freud, Stephen Hawking, Thomas Edison, Howard Gardner | I25: =IF(D25>=P9,IF(D25<P8,B25,""),"") ->  | J25: , Alfred Nobel, Charles Darwin, John Dewey, **B.F. Skinner | K25: =IF(D25>=P10,IF(D25<P9,B25,""),"") ->  | L25: , Benjamin Franklin, Jane Goodall | M25: =IF(D25<P10,IF(D25="","",B25),"") ->  | N25: , **Isaac Newton, Jean Piaget
A26: FALSE | B26: =Data!C20 -> Lev Vygotsky | C26: =IF(Teacher3Pretest!C26="","",Teacher3Pretest!E26) -> 0.6666666667 | D26: 5 | E26: 6 | F26: 0.8333333333 | G26: =IF(D26>=P8,B26,"") -> Lev Vygotsky | H26: **Albert Einstein, Carl Sagan*, Henry Ford, Ivan Pavlov, **Jonas Salk, **Marie Curie, Sigmund Freud, Stephen Hawking, Thomas Edison, Howard Gardner, Lev Vygotsky | I26: =IF(D26>=P9,IF(D26<P8,B26,""),"") ->  | J26: , Alfred Nobel, Charles Darwin, John Dewey, **B.F. Skinner | K26: =IF(D26>=P10,IF(D26<P9,B26,""),"") ->  | L26: , Benjamin Franklin, Jane Goodall | M26: =IF(D26<P10,IF(D26="","",B26),"") ->  | N26: , **Isaac Newton, Jean Piaget
A27: FALSE | B27: =Data!C21 -> Maria Montessori | C27: =IF(Teacher3Pretest!C27="","",Teacher3Pretest!E27) -> 0.5 | D27: 5 | E27: 6 | F27: 0.8333333333 | G27: =IF(D27>=P8,B27,"") -> Maria Montessori | H27: **Albert Einstein, Carl Sagan*, Henry Ford, Ivan Pavlov, **Jonas Salk, **Marie Curie, Sigmund Freud, Stephen Hawking, Thomas Edison, Howard Gardner, Lev Vygotsky, Maria Montessori | I27: =IF(D27>=P9,IF(D27<P8,B27,""),"") ->  | J27: , Alfred Nobel, Charles Darwin, John Dewey, **B.F. Skinner | K27: =IF(D27>=P10,IF(D27<P9,B27,""),"") ->  | L27: , Benjamin Franklin, Jane Goodall | M27: =IF(D27<P10,IF(D27="","",B27),"") ->  | N27: , **Isaac Newton, Jean Piaget
A28: FALSE | B28: =Data!C22 -> Student21 | C28: =IF(Teacher3Pretest!C28="","",Teacher3Pretest!E28) ->  | G28: =IF(D28>=P8,B28,"") ->  | H28: **Albert Einstein, Carl Sagan*, Henry Ford, Ivan Pavlov, **Jonas Salk, **Marie Curie, Sigmund Freud, Stephen Hawking, Thomas Edison, Howard Gardner, Lev Vygotsky, Maria Montessori | I28: =IF(D28>=P9,IF(D28<P8,B28,""),"") ->  | J28: , Alfred Nobel, Charles Darwin, John Dewey, **B.F. Skinner | K28: =IF(D28>=P10,IF(D28<P9,B28,""),"") ->  | L28: , Benjamin Franklin, Jane Goodall | M28: =IF(D28<P10,IF(D28="","",B28),"") ->  | N28: , **Isaac Newton, Jean Piaget
A29: FALSE | B29: =Data!C23 -> Student22 | C29: =IF(Teacher3Pretest!C29="","",Teacher3Pretest!E29) ->  | G29: =IF(D29>=P8,B29,"") ->  | H29: **Albert Einstein, Carl Sagan*, Henry Ford, Ivan Pavlov, **Jonas Salk, **Marie Curie, Sigmund Freud, Stephen Hawking, Thomas Edison, Howard Gardner, Lev Vygotsky, Maria Montessori | I29: =IF(D29>=P9,IF(D29<P8,B29,""),"") ->  | J29: , Alfred Nobel, Charles Darwin, John Dewey, **B.F. Skinner | K29: =IF(D29>=P10,IF(D29<P9,B29,""),"") ->  | L29: , Benjamin Franklin, Jane Goodall | M29: =IF(D29<P10,IF(D29="","",B29),"") ->  | N29: , **Isaac Newton, Jean Piaget
A30: FALSE | B30: =Data!C24 -> Student23 | C30: =IF(Teacher3Pretest!C30="","",Teacher3Pretest!E30) ->  | G30: =IF(D30>=P8,B30,"") ->  | H30: **Albert Einstein, Carl Sagan*, Henry Ford, Ivan Pavlov, **Jonas Salk, **Marie Curie, Sigmund Freud, Stephen Hawking, Thomas Edison, Howard Gardner, Lev Vygotsky, Maria Montessori | I30: =IF(D30>=P9,IF(D30<P8,B30,""),"") ->  | J30: , Alfred Nobel, Charles Darwin, John Dewey, **B.F. Skinner | K30: =IF(D30>=P10,IF(D30<P9,B30,""),"") ->  | L30: , Benjamin Franklin, Jane Goodall | M30: =IF(D30<P10,IF(D30="","",B30),"") ->  | N30: , **Isaac Newton, Jean Piaget
A31: FALSE | B31: =Data!C25 -> Student24 | C31: =IF(Teacher3Pretest!C31="","",Teacher3Pretest!E31) ->  | G31: =IF(D31>=P8,B31,"") ->  | H31: **Albert Einstein, Carl Sagan*, Henry Ford, Ivan Pavlov, **Jonas Salk, **Marie Curie, Sigmund Freud, Stephen Hawking, Thomas Edison, Howard Gardner, Lev Vygotsky, Maria Montessori | I31: =IF(D31>=P9,IF(D31<P8,B31,""),"") ->  | J31: , Alfred Nobel, Charles Darwin, John Dewey, **B.F. Skinner | K31: =IF(D31>=P10,IF(D31<P9,B31,""),"") ->  | L31: , Benjamin Franklin, Jane Goodall | M31: =IF(D31<P10,IF(D31="","",B31),"") ->  | N31: , **Isaac Newton, Jean Piaget
A32: FALSE | B32: =Data!C26 -> Student25 | C32: =IF(Teacher3Pretest!C32="","",Teacher3Pretest!E32) ->  | G32: =IF(D32>=P8,B32,"") ->  | H32: **Albert Einstein, Carl Sagan*, Henry Ford, Ivan Pavlov, **Jonas Salk, **Marie Curie, Sigmund Freud, Stephen Hawking, Thomas Edison, Howard Gardner, Lev Vygotsky, Maria Montessori | I32: =IF(D32>=P9,IF(D32<P8,B32,""),"") ->  | J32: , Alfred Nobel, Charles Darwin, John Dewey, **B.F. Skinner | K32: =IF(D32>=P10,IF(D32<P9,B32,""),"") ->  | L32: , Benjamin Franklin, Jane Goodall | M32: =IF(D32<P10,IF(D32="","",B32),"") ->  | N32: , **Isaac Newton, Jean Piaget
A33: FALSE | B33: =Data!C27 -> Student26 | C33: =IF(Teacher3Pretest!C33="","",Teacher3Pretest!E33) ->  | G33: =IF(D33>=P8,B33,"") ->  | H33: **Albert Einstein, Carl Sagan*, Henry Ford, Ivan Pavlov, **Jonas Salk, **Marie Curie, Sigmund Freud, Stephen Hawking, Thomas Edison, Howard Gardner, Lev Vygotsky, Maria Montessori | I33: =IF(D33>=P9,IF(D33<P8,B33,""),"") ->  | J33: , Alfred Nobel, Charles Darwin, John Dewey, **B.F. Skinner | K33: =IF(D33>=P10,IF(D33<P9,B33,""),"") ->  | L33: , Benjamin Franklin, Jane Goodall | M33: =IF(D33<P10,IF(D33="","",B33),"") ->  | N33: , **Isaac Newton, Jean Piaget
A34: FALSE | B34: =Data!C28 -> Student27 | C34: =IF(Teacher3Pretest!C34="","",Teacher3Pretest!E34) ->  | G34: =IF(D34>=P8,B34,"") ->  | H34: **Albert Einstein, Carl Sagan*, Henry Ford, Ivan Pavlov, **Jonas Salk, **Marie Curie, Sigmund Freud, Stephen Hawking, Thomas Edison, Howard Gardner, Lev Vygotsky, Maria Montessori | I34: =IF(D34>=P9,IF(D34<P8,B34,""),"") ->  | J34: , Alfred Nobel, Charles Darwin, John Dewey, **B.F. Skinner | K34: =IF(D34>=P10,IF(D34<P9,B34,""),"") ->  | L34: , Benjamin Franklin, Jane Goodall | M34: =IF(D34<P10,IF(D34="","",B34),"") ->  | N34: , **Isaac Newton, Jean Piaget
A35: FALSE | B35: =Data!C29 -> Student28 | C35: =IF(Teacher3Pretest!C35="","",Teacher3Pretest!E35) ->  | G35: =IF(D35>=P8,B35,"") ->  | H35: **Albert Einstein, Carl Sagan*, Henry Ford, Ivan Pavlov, **Jonas Salk, **Marie Curie, Sigmund Freud, Stephen Hawking, Thomas Edison, Howard Gardner, Lev Vygotsky, Maria Montessori | I35: =IF(D35>=P9,IF(D35<P8,B35,""),"") ->  | J35: , Alfred Nobel, Charles Darwin, John Dewey, **B.F. Skinner | K35: =IF(D35>=P10,IF(D35<P9,B35,""),"") ->  | L35: , Benjamin Franklin, Jane Goodall | M35: =IF(D35<P10,IF(D35="","",B35),"") ->  | N35: , **Isaac Newton, Jean Piaget
A36: FALSE | B36: =Data!C30 -> Student29 | C36: =IF(Teacher3Pretest!C36="","",Teacher3Pretest!E36) ->  | G36: =IF(D36>=P8,B36,"") ->  | H36: **Albert Einstein, Carl Sagan*, Henry Ford, Ivan Pavlov, **Jonas Salk, **Marie Curie, Sigmund Freud, Stephen Hawking, Thomas Edison, Howard Gardner, Lev Vygotsky, Maria Montessori | I36: =IF(D36>=P9,IF(D36<P8,B36,""),"") ->  | J36: , Alfred Nobel, Charles Darwin, John Dewey, **B.F. Skinner | K36: =IF(D36>=P10,IF(D36<P9,B36,""),"") ->  | L36: , Benjamin Franklin, Jane Goodall | M36: =IF(D36<P10,IF(D36="","",B36),"") ->  | N36: , **Isaac Newton, Jean Piaget
A37: FALSE | B37: =Data!C31 -> Student30 | C37: =IF(Teacher3Pretest!C37="","",Teacher3Pretest!E37) ->  | G37: =IF(D37>=P8,B37,"") ->  | H37: **Albert Einstein, Carl Sagan*, Henry Ford, Ivan Pavlov, **Jonas Salk, **Marie Curie, Sigmund Freud, Stephen Hawking, Thomas Edison, Howard Gardner, Lev Vygotsky, Maria Montessori | I37: =IF(D37>=P9,IF(D37<P8,B37,""),"") ->  | J37: , Alfred Nobel, Charles Darwin, John Dewey, **B.F. Skinner | K37: =IF(D37>=P10,IF(D37<P9,B37,""),"") ->  | L37: , Benjamin Franklin, Jane Goodall | M37: =IF(D37<P10,IF(D37="","",B37),"") ->  | N37: , **Isaac Newton, Jean Piaget
A38: FALSE
B39: TOTAL | D39: =SUM(D8:D37) -> 89 | E39: =SUM(E8:E37) -> 120 | F39: =D39/E39 -> 0.7416666667

Sheet Teacher4Post
B1: =IF(Data!N6="Other",Data!N7,Data!N6) -> Grade 4 | E1: =Data!D1 -> Smith
B2: Meeting Date: | E2: =Data!O8 -> 3/20/14
B3: Assessment: | E3: =Teacher1Pretest!D3 -> Main Idea- R.I.4.2
B5: Student Name | C5: Pretest % | D5: Post-test Points | E5: Possible | F5: Score - %
E7: =Teacher1Post!P7 -> 6 | G7: Proficient | I7: Close | K7: Far | M7: Intervention | P7: =Data!O10 -> 6 | Q7: Points Possible on Post-Test
A8: =IF(ISBLANK(D8),"FALSE",IF(LEFT(B8,2)="**",IF(D8>=$P$8,$P$8,IF(D8>=$P$9,$P$9,IF(D8>=$P$10,$P$10,$P$11))))) -> FALSE | B8: =Data!D2 -> Michael Jordan | C8: =IF(Teacher4Pretest!C8="","",Teacher4Pretest!E8) -> 0.6666666667 | D8: 5 | E8: =IF(D8="","",$E$7) -> 6 | F8: =IF(E8="","",D8/$E$7) -> 0.8333333333 | G8: =IF(D8>=P8,B8,"") -> Michael Jordan | H8: =G8 -> Michael Jordan | I8: =IF(D8>=P9,IF(D8<P8,B8,""),"") ->  | J8: =I8 ->  | K8: =IF(D8>=P10,IF(D8<P9,B8,""),"") ->  | L8: =K8 ->  | M8: =IF(D8<P10,IF(D8="","",B8),"") ->  | N8: =M8 ->  | P8: =Data!O11 -> 5 | Q8: Proficient
A9: =IF(ISBLANK(D9),"FALSE",IF(LEFT(B9,2)="**",IF(D9>=$P$8,$P$8,IF(D9>=$P$9,$P$9,IF(D9>=$P$10,$P$10,$P$11))))) -> FALSE | B9: =Data!D3 -> Muhammad Ali | C9: =IF(Teacher4Pretest!C9="","",Teacher4Pretest!E9) -> 0.6666666667 | D9: 5 | E9: =IF(D9="","",$E$7) -> 6 | F9: =IF(E9="","",D9/$E$7) -> 0.8333333333 | G9: =IF(D9>=P8,B9,"") -> Muhammad Ali | H9: =H8&IF(G9="","",", ")&G9 -> Michael Jordan, Muhammad Ali | I9: =IF(D9>=P9,IF(D9<P8,B9,""),"") ->  | J9: =J8&IF(I9="","",", ")&I9 ->  | K9: =IF(D9>=P10,IF(D9<P9,B9,""),"") ->  | L9: =L8&IF(K9="","",", ")&K9 ->  | M9: =IF(D9<P10,IF(D9="","",B9),"") ->  | N9: =N8&IF(M9="","",", ")&M9 ->  | P9: =Data!O12 -> 4 | Q9: Close to Proficient
A10: FALSE | B10: =Data!D4 -> Roger Federer | C10: =IF(Teacher4Pretest!C10="","",Teacher4Pretest!E10) -> 0.1666666667 | D10: 4 | E10: 6 | F10: 0.6666666667 | G10: =IF(D10>=P8,B10,"") ->  | H10: =H9&IF(G10="","",", ")&G10 -> Michael Jordan, Muhammad Ali | I10: =IF(D10>=P9,IF(D10<P8,B10,""),"") -> Roger Federer | J10: =J9&IF(I10="","",", ")&I10 -> , Roger Federer | K10: =IF(D10>=P10,IF(D10<P9,B10,""),"") ->  | L10: =L9&IF(K10="","",", ")&K10 ->  | M10: =IF(D10<P10,IF(D10="","",B10),"") ->  | N10: =N9&IF(M10="","",", ")&M10 ->  | P10: =Data!O13 -> 3 | Q10: Far to Go But Likely to Become Proficient
A11: 1 | B11: =Data!D5 -> **Michael Phelps | C11: =IF(Teacher4Pretest!C11="","",Teacher4Pretest!E11) -> 0.8333333333 | D11: 2 | E11: 6 | F11: 0.3333333333 | G11: =IF(D11>=P8,B11,"") ->  | H11: Michael Jordan, Muhammad Ali | I11: =IF(D11>=P9,IF(D11<P8,B11,""),"") ->  | J11: , Roger Federer | K11: =IF(D11>=P10,IF(D11<P9,B11,""),"") ->  | M11: =IF(D11<P10,IF(D11="","",B11),"") -> **Michael Phelps | N11: , **Michael Phelps | P11: =Data!O14 -> 1 | Q11: Intervention (Far to Go But Not Likely to Become Proficient)
A12: FALSE | B12: =Data!D6 -> Wayne Gretzky | C12: =IF(Teacher4Pretest!C12="","",Teacher4Pretest!E12) -> 0.1666666667 | D12: 4 | E12: 6 | F12: 0.6666666667 | G12: =IF(D12>=P8,B12,"") ->  | H12: Michael Jordan, Muhammad Ali | I12: =IF(D12>=P9,IF(D12<P8,B12,""),"") -> Wayne Gretzky | J12: , Roger Federer, Wayne Gretzky | K12: =IF(D12>=P10,IF(D12<P9,B12,""),"") ->  | M12: =IF(D12<P10,IF(D12="","",B12),"") ->  | N12: , **Michael Phelps
A13: 4 | B13: =Data!D7 -> **Jim Thorpe | C13: =IF(Teacher4Pretest!C13="","",Teacher4Pretest!E13) -> 0.3333333333 | D13: 4 | E13: 6 | F13: 0.6666666667 | G13: =IF(D13>=P8,B13,"") ->  | H13: Michael Jordan, Muhammad Ali | I13: =IF(D13>=P9,IF(D13<P8,B13,""),"") -> **Jim Thorpe | J13: , Roger Federer, Wayne Gretzky, **Jim Thorpe | K13: =IF(D13>=P10,IF(D13<P9,B13,""),"") ->  | M13: =IF(D13<P10,IF(D13="","",B13),"") ->  | N13: , **Michael Phelps
A14: FALSE | B14: =Data!D8 -> Tiger Woods | C14: =IF(Teacher4Pretest!C14="","",Teacher4Pretest!E14) -> 0.3333333333 | D14: 2 | E14: 6 | F14: 0.3333333333 | G14: =IF(D14>=P8,B14,"") ->  | H14: Michael Jordan, Muhammad Ali | I14: =IF(D14>=P9,IF(D14<P8,B14,""),"") ->  | J14: , Roger Federer, Wayne Gretzky, **Jim Thorpe | K14: =IF(D14>=P10,IF(D14<P9,B14,""),"") ->  | M14: =IF(D14<P10,IF(D14="","",B14),"") -> Tiger Woods | N14: , **Michael Phelps, Tiger Woods
A15: FALSE | B15: =Data!D9 -> Serena Williams | C15: =IF(Teacher4Pretest!C15="","",Teacher4Pretest!E15) -> 0.3333333333 | D15: 5 | E15: 6 | F15: 0.8333333333 | G15: =IF(D15>=P8,B15,"") -> Serena Williams | H15: Michael Jordan, Muhammad Ali, Serena Williams | I15: =IF(D15>=P9,IF(D15<P8,B15,""),"") ->  | J15: , Roger Federer, Wayne Gretzky, **Jim Thorpe | K15: =IF(D15>=P10,IF(D15<P9,B15,""),"") ->  | M15: =IF(D15<P10,IF(D15="","",B15),"") ->  | N15: , **Michael Phelps, Tiger Woods
A16: 5 | B16: =Data!D10 -> **Joe Montana | C16: =IF(Teacher4Pretest!C16="","",Teacher4Pretest!E16) -> 0.1666666667 | D16: 5 | E16: 6 | F16: 0.8333333333 | G16: =IF(D16>=P8,B16,"") -> **Joe Montana | H16: Michael Jordan, Muhammad Ali, Serena Williams, **Joe Montana | I16: =IF(D16>=P9,IF(D16<P8,B16,""),"") ->  | J16: , Roger Federer, Wayne Gretzky, **Jim Thorpe | K16: =IF(D16>=P10,IF(D16<P9,B16,""),"") ->  | M16: =IF(D16<P10,IF(D16="","",B16),"") ->  | N16: , **Michael Phelps, Tiger Woods
A17: FALSE | B17: =Data!D11 -> Jeff Gordon | C17: =IF(Teacher4Pretest!C17="","",Teacher4Pretest!E17) -> 0.6666666667 | D17: 4 | E17: 6 | F17: 0.6666666667 | G17: =IF(D17>=P8,B17,"") ->  | H17: Michael Jordan, Muhammad Ali, Serena Williams, **Joe Montana | I17: =IF(D17>=P9,IF(D17<P8,B17,""),"") -> Jeff Gordon | J17: , Roger Federer, Wayne Gretzky, **Jim Thorpe, Jeff Gordon | K17: =IF(D17>=P10,IF(D17<P9,B17,""),"") ->  | M17: =IF(D17<P10,IF(D17="","",B17),"") ->  | N17: , **Michael Phelps, Tiger Woods
A18: FALSE | B18: =Data!D12 -> Peyton Manning | C18: =IF(Teacher4Pretest!C18="","",Teacher4Pretest!E18) -> 0.3333333333 | D18: 4 | E18: 6 | F18: 0.6666666667 | G18: =IF(D18>=P8,B18,"") ->  | H18: Michael Jordan, Muhammad Ali, Serena Williams, **Joe Montana | I18: =IF(D18>=P9,IF(D18<P8,B18,""),"") -> Peyton Manning | J18: , Roger Federer, Wayne Gretzky, **Jim Thorpe, Jeff Gordon, Peyton Manning | K18: =IF(D18>=P10,IF(D18<P9,B18,""),"") ->  | M18: =IF(D18<P10,IF(D18="","",B18),"") ->  | N18: , **Michael Phelps, Tiger Woods
A19: FALSE | B19: =Data!D13 -> Shaun White | C19: =IF(Teacher4Pretest!C19="","",Teacher4Pretest!E19) -> 0.8333333333 | D19: 5 | E19: 6 | F19: 0.8333333333 | G19: =IF(D19>=P8,B19,"") -> Shaun White | H19: Michael Jordan, Muhammad Ali, Serena Williams, **Joe Montana, Shaun White | I19: =IF(D19>=P9,IF(D19<P8,B19,""),"") ->  | J19: , Roger Federer, Wayne Gretzky, **Jim Thorpe, Jeff Gordon, Peyton Manning | K19: =IF(D19>=P10,IF(D19<P9,B19,""),"") ->  | M19: =IF(D19<P10,IF(D19="","",B19),"") ->  | N19: , **Michael Phelps, Tiger Woods
A20: FALSE | B20: =Data!D14 -> Danica Patrick | C20: =IF(Teacher4Pretest!C20="","",Teacher4Pretest!E20) -> 0.8333333333 | D20: 6 | E20: 6 | F20: 1 | G20: =IF(D20>=P8,B20,"") -> Danica Patrick | H20: Michael Jordan, Muhammad Ali, Serena Williams, **Joe Montana, Shaun White, Danica Patrick | I20: =IF(D20>=P9,IF(D20<P8,B20,""),"") ->  | J20: , Roger Federer, Wayne Gretzky, **Jim Thorpe, Jeff Gordon, Peyton Manning | K20: =IF(D20>=P10,IF(D20<P9,B20,""),"") ->  | M20: =IF(D20<P10,IF(D20="","",B20),"") ->  | N20: , **Michael Phelps, Tiger Woods
A21: 5 | B21: =Data!D15 -> **Tony Hawk | C21: =IF(Teacher4Pretest!C21="","",Teacher4Pretest!E21) -> 0.5 | D21: 5 | E21: 6 | F21: 0.8333333333 | G21: =IF(D21>=P8,B21,"") -> **Tony Hawk | H21: Michael Jordan, Muhammad Ali, Serena Williams, **Joe Montana, Shaun White, Danica Patrick, **Tony Hawk | I21: =IF(D21>=P9,IF(D21<P8,B21,""),"") ->  | J21: , Roger Federer, Wayne Gretzky, **Jim Thorpe, Jeff Gordon, Peyton Manning | K21: =IF(D21>=P10,IF(D21<P9,B21,""),"") ->  | M21: =IF(D21<P10,IF(D21="","",B21),"") ->  | N21: , **Michael Phelps, Tiger Woods
A22: FALSE | B22: =Data!D16 -> LeBron James | C22: =IF(Teacher4Pretest!C22="","",Teacher4Pretest!E22) -> 0.8333333333 | D22: 6 | E22: 6 | F22: 1 | G22: =IF(D22>=P8,B22,"") -> LeBron James | H22: Michael Jordan, Muhammad Ali, Serena Williams, **Joe Montana, Shaun White, Danica Patrick, **Tony Hawk, LeBron James | I22: =IF(D22>=P9,IF(D22<P8,B22,""),"") ->  | J22: , Roger Federer, Wayne Gretzky, **Jim Thorpe, Jeff Gordon, Peyton Manning | K22: =IF(D22>=P10,IF(D22<P9,B22,""),"") ->  | M22: =IF(D22<P10,IF(D22="","",B22),"") ->  | N22: , **Michael Phelps, Tiger Woods
A23: FALSE | B23: =Data!D17 -> Gordie Howe | C23: =IF(Teacher4Pretest!C23="","",Teacher4Pretest!E23) -> 0.8333333333 | D23: 2 | E23: 6 | F23: 0.3333333333 | G23: =IF(D23>=P8,B23,"") ->  | H23: Michael Jordan, Muhammad Ali, Serena Williams, **Joe Montana, Shaun White, Danica Patrick, **Tony Hawk, LeBron James | I23: =IF(D23>=P9,IF(D23<P8,B23,""),"") ->  | J23: , Roger Federer, Wayne Gretzky, **Jim Thorpe, Jeff Gordon, Peyton Manning | K23: =IF(D23>=P10,IF(D23<P9,B23,""),"") ->  | M23: =IF(D23<P10,IF(D23="","",B23),"") -> Gordie Howe | N23: , **Michael Phelps, Tiger Woods, Gordie Howe
A24: 5 | B24: =Data!D18 -> **George Forman | C24: =IF(Teacher4Pretest!C24="","",Teacher4Pretest!E24) -> 0.5 | D24: 6 | E24: 6 | F24: 1 | G24: =IF(D24>=P8,B24,"") -> **George Forman | H24: Michael Jordan, Muhammad Ali, Serena Williams, **Joe Montana, Shaun White, Danica Patrick, **Tony Hawk, LeBron James, **George Forman | I24: =IF(D24>=P9,IF(D24<P8,B24,""),"") ->  | J24: , Roger Federer, Wayne Gretzky, **Jim Thorpe, Jeff Gordon, Peyton Manning | K24: =IF(D24>=P10,IF(D24<P9,B24,""),"") ->  | M24: =IF(D24<P10,IF(D24="","",B24),"") ->  | N24: , **Michael Phelps, Tiger Woods, Gordie Howe
A25: FALSE | B25: =Data!D19 -> Martina Navratilova | C25: =IF(Teacher4Pretest!C25="","",Teacher4Pretest!E25) -> 0.8333333333 | D25: 5 | E25: 6 | F25: 0.8333333333 | G25: =IF(D25>=P8,B25,"") -> Martina Navratilova | H25: Michael Jordan, Muhammad Ali, Serena Williams, **Joe Montana, Shaun White, Danica Patrick, **Tony Hawk, LeBron James, **George Forman, Martina Navratilova | I25: =IF(D25>=P9,IF(D25<P8,B25,""),"") ->  | J25: , Roger Federer, Wayne Gretzky, **Jim Thorpe, Jeff Gordon, Peyton Manning | K25: =IF(D25>=P10,IF(D25<P9,B25,""),"") ->  | M25: =IF(D25<P10,IF(D25="","",B25),"") ->  | N25: , **Michael Phelps, Tiger Woods, Gordie Howe
A26: FALSE | B26: =Data!D20 -> Yadier Molina | C26: =IF(Teacher4Pretest!C26="","",Teacher4Pretest!E26) -> 1 | D26: 4 | E26: 6 | F26: 0.6666666667 | G26: =IF(D26>=P8,B26,"") ->  | H26: Michael Jordan, Muhammad Ali, Serena Williams, **Joe Montana, Shaun White, Danica Patrick, **Tony Hawk, LeBron James, **George Forman, Martina Navratilova | I26: =IF(D26>=P9,IF(D26<P8,B26,""),"") -> Yadier Molina | J26: , Roger Federer, Wayne Gretzky, **Jim Thorpe, Jeff Gordon, Peyton Manning, Yadier Molina | K26: =IF(D26>=P10,IF(D26<P9,B26,""),"") ->  | M26: =IF(D26<P10,IF(D26="","",B26),"") ->  | N26: , **Michael Phelps, Tiger Woods, Gordie Howe
A27: FALSE | B27: =Data!D21 -> Student20 | C27: =IF(Teacher4Pretest!C27="","",Teacher4Pretest!E27) ->  | G27: =IF(D27>=P8,B27,"") ->  | H27: Michael Jordan, Muhammad Ali, Serena Williams, **Joe Montana, Shaun White, Danica Patrick, **Tony Hawk, LeBron James, **George Forman, Martina Navratilova | I27: =IF(D27>=P9,IF(D27<P8,B27,""),"") ->  | J27: , Roger Federer, Wayne Gretzky, **Jim Thorpe, Jeff Gordon, Peyton Manning, Yadier Molina | K27: =IF(D27>=P10,IF(D27<P9,B27,""),"") ->  | M27: =IF(D27<P10,IF(D27="","",B27),"") ->  | N27: , **Michael Phelps, Tiger Woods, Gordie Howe
A28: FALSE | B28: =Data!D22 -> Student21 | C28: =IF(Teacher4Pretest!C28="","",Teacher4Pretest!E28) ->  | G28: =IF(D28>=P8,B28,"") ->  | H28: Michael Jordan, Muhammad Ali, Serena Williams, **Joe Montana, Shaun White, Danica Patrick, **Tony Hawk, LeBron James, **George Forman, Martina Navratilova | I28: =IF(D28>=P9,IF(D28<P8,B28,""),"") ->  | J28: , Roger Federer, Wayne Gretzky, **Jim Thorpe, Jeff Gordon, Peyton Manning, Yadier Molina | K28: =IF(D28>=P10,IF(D28<P9,B28,""),"") ->  | M28: =IF(D28<P10,IF(D28="","",B28),"") ->  | N28: , **Michael Phelps, Tiger Woods, Gordie Howe
A29: FALSE | B29: =Data!D23 -> Student22 | C29: =IF(Teacher4Pretest!C29="","",Teacher4Pretest!E29) ->  | G29: =IF(D29>=P8,B29,"") ->  | H29: Michael Jordan, Muhammad Ali, Serena Williams, **Joe Montana, Shaun White, Danica Patrick, **Tony Hawk, LeBron James, **George Forman, Martina Navratilova | I29: =IF(D29>=P9,IF(D29<P8,B29,""),"") ->  | J29: , Roger Federer, Wayne Gretzky, **Jim Thorpe, Jeff Gordon, Peyton Manning, Yadier Molina | K29: =IF(D29>=P10,IF(D29<P9,B29,""),"") ->  | M29: =IF(D29<P10,IF(D29="","",B29),"") ->  | N29: , **Michael Phelps, Tiger Woods, Gordie Howe
A30: FALSE | B30: =Data!D24 -> Student23 | C30: =IF(Teacher4Pretest!C30="","",Teacher4Pretest!E30) ->  | G30: =IF(D30>=P8,B30,"") ->  | H30: Michael Jordan, Muhammad Ali, Serena Williams, **Joe Montana, Shaun White, Danica Patrick, **Tony Hawk, LeBron James, **George Forman, Martina Navratilova | I30: =IF(D30>=P9,IF(D30<P8,B30,""),"") ->  | J30: , Roger Federer, Wayne Gretzky, **Jim Thorpe, Jeff Gordon, Peyton Manning, Yadier Molina | K30: =IF(D30>=P10,IF(D30<P9,B30,""),"") ->  | M30: =IF(D30<P10,IF(D30="","",B30),"") ->  | N30: , **Michael Phelps, Tiger Woods, Gordie Howe
A31: FALSE | B31: =Data!D25 -> Student24 | C31: =IF(Teacher4Pretest!C31="","",Teacher4Pretest!E31) ->  | G31: =IF(D31>=P8,B31,"") ->  | H31: Michael Jordan, Muhammad Ali, Serena Williams, **Joe Montana, Shaun White, Danica Patrick, **Tony Hawk, LeBron James, **George Forman, Martina Navratilova | I31: =IF(D31>=P9,IF(D31<P8,B31,""),"") ->  | J31: , Roger Federer, Wayne Gretzky, **Jim Thorpe, Jeff Gordon, Peyton Manning, Yadier Molina | K31: =IF(D31>=P10,IF(D31<P9,B31,""),"") ->  | M31: =IF(D31<P10,IF(D31="","",B31),"") ->  | N31: , **Michael Phelps, Tiger Woods, Gordie Howe
A32: FALSE | B32: =Data!D26 -> Student25 | C32: =IF(Teacher4Pretest!C32="","",Teacher4Pretest!E32) ->  | G32: =IF(D32>=P8,B32,"") ->  | H32: Michael Jordan, Muhammad Ali, Serena Williams, **Joe Montana, Shaun White, Danica Patrick, **Tony Hawk, LeBron James, **George Forman, Martina Navratilova | I32: =IF(D32>=P9,IF(D32<P8,B32,""),"") ->  | J32: , Roger Federer, Wayne Gretzky, **Jim Thorpe, Jeff Gordon, Peyton Manning, Yadier Molina | K32: =IF(D32>=P10,IF(D32<P9,B32,""),"") ->  | M32: =IF(D32<P10,IF(D32="","",B32),"") ->  | N32: , **Michael Phelps, Tiger Woods, Gordie Howe
A33: FALSE | B33: =Data!D27 -> Student26 | C33: =IF(Teacher4Pretest!C33="","",Teacher4Pretest!E33) ->  | G33: =IF(D33>=P8,B33,"") ->  | H33: Michael Jordan, Muhammad Ali, Serena Williams, **Joe Montana, Shaun White, Danica Patrick, **Tony Hawk, LeBron James, **George Forman, Martina Navratilova | I33: =IF(D33>=P9,IF(D33<P8,B33,""),"") ->  | J33: , Roger Federer, Wayne Gretzky, **Jim Thorpe, Jeff Gordon, Peyton Manning, Yadier Molina | K33: =IF(D33>=P10,IF(D33<P9,B33,""),"") ->  | M33: =IF(D33<P10,IF(D33="","",B33),"") ->  | N33: , **Michael Phelps, Tiger Woods, Gordie Howe
A34: FALSE | B34: =Data!D28 -> Student27 | C34: =IF(Teacher4Pretest!C34="","",Teacher4Pretest!E34) ->  | G34: =IF(D34>=P8,B34,"") ->  | H34: Michael Jordan, Muhammad Ali, Serena Williams, **Joe Montana, Shaun White, Danica Patrick, **Tony Hawk, LeBron James, **George Forman, Martina Navratilova | I34: =IF(D34>=P9,IF(D34<P8,B34,""),"") ->  | J34: , Roger Federer, Wayne Gretzky, **Jim Thorpe, Jeff Gordon, Peyton Manning, Yadier Molina | K34: =IF(D34>=P10,IF(D34<P9,B34,""),"") ->  | M34: =IF(D34<P10,IF(D34="","",B34),"") ->  | N34: , **Michael Phelps, Tiger Woods, Gordie Howe
A35: FALSE | B35: =Data!D29 -> Student28 | C35: =IF(Teacher4Pretest!C35="","",Teacher4Pretest!E35) ->  | G35: =IF(D35>=P8,B35,"") ->  | H35: Michael Jordan, Muhammad Ali, Serena Williams, **Joe Montana, Shaun White, Danica Patrick, **Tony Hawk, LeBron James, **George Forman, Martina Navratilova | I35: =IF(D35>=P9,IF(D35<P8,B35,""),"") ->  | J35: , Roger Federer, Wayne Gretzky, **Jim Thorpe, Jeff Gordon, Peyton Manning, Yadier Molina | K35: =IF(D35>=P10,IF(D35<P9,B35,""),"") ->  | M35: =IF(D35<P10,IF(D35="","",B35),"") ->  | N35: , **Michael Phelps, Tiger Woods, Gordie Howe
A36: FALSE | B36: =Data!D30 -> Student29 | C36: =IF(Teacher4Pretest!C36="","",Teacher4Pretest!E36) ->  | G36: =IF(D36>=P8,B36,"") ->  | H36: Michael Jordan, Muhammad Ali, Serena Williams, **Joe Montana, Shaun White, Danica Patrick, **Tony Hawk, LeBron James, **George Forman, Martina Navratilova | I36: =IF(D36>=P9,IF(D36<P8,B36,""),"") ->  | J36: , Roger Federer, Wayne Gretzky, **Jim Thorpe, Jeff Gordon, Peyton Manning, Yadier Molina | K36: =IF(D36>=P10,IF(D36<P9,B36,""),"") ->  | M36: =IF(D36<P10,IF(D36="","",B36),"") ->  | N36: , **Michael Phelps, Tiger Woods, Gordie Howe
A37: FALSE | B37: =Data!D31 -> Student30 | C37: =IF(Teacher4Pretest!C37="","",Teacher4Pretest!E37) ->  | G37: =IF(D37>=P8,B37,"") ->  | H37: Michael Jordan, Muhammad Ali, Serena Williams, **Joe Montana, Shaun White, Danica Patrick, **Tony Hawk, LeBron James, **George Forman, Martina Navratilova | I37: =IF(D37>=P9,IF(D37<P8,B37,""),"") ->  | J37: , Roger Federer, Wayne Gretzky, **Jim Thorpe, Jeff Gordon, Peyton Manning, Yadier Molina | K37: =IF(D37>=P10,IF(D37<P9,B37,""),"") ->  | M37: =IF(D37<P10,IF(D37="","",B37),"") ->  | N37: , **Michael Phelps, Tiger Woods, Gordie Howe
A38: FALSE
B39: TOTAL | D39: =SUM(D8:D37) -> 83 | E39: =SUM(E8:E37) -> 114 | F39: =D39/E39 -> 0.7280701754

Sheet Teacher5Post
B1: =IF(Data!N6="Other",Data!N7,Data!N6) -> Grade 4 | E1: =Data!F1 -> Milburn
B2: Meeting Date: | E2: =Data!O8 -> 3/20/14
B3: Assessment: | E3: =Teacher1Pretest!D3 -> Main Idea- R.I.4.2
B5: Student Name | C5: Pretest % | D5: Post-test Points | E5: Possible | F5: Score - %
E7: =Teacher1Post!P7 -> 6 | G7: Proficient | I7: Close | K7: Far | M7: Intervention | P7: =Data!O10 -> 6 | Q7: Points Possible on Post-Test
A8: =IF(ISBLANK(D8),"FALSE",IF(LEFT(B8,2)="**",IF(D8>=$P$8,$P$8,IF(D8>=$P$9,$P$9,IF(D8>=$P$10,$P$10,$P$11))))) -> FALSE | B8: =Data!F2 -> Dave Sanders | C8: =IF(Teacher5Pretest!C8="","",Teacher5Pretest!E8) -> 0.5 | D8: 5 | E8: =IF(D8="","",$E$7) -> 6 | F8: =IF(E8="","",D8/$E$7) -> 0.8333333333 | G8: =IF(D8>=P8,B8,"") -> Dave Sanders | H8: =G8 -> Dave Sanders | I8: =IF(D8>=P9,IF(D8<P8,B8,""),"") ->  | J8: =I8 ->  | K8: =IF(D8>=P10,IF(D8<P9,B8,""),"") ->  | L8: =K8 ->  | M8: =IF(D8<P10,IF(D8="","",B8),"") ->  | N8: =M8 ->  | P8: =Data!O11 -> 5 | Q8: Proficient
A9: =IF(ISBLANK(D9),"FALSE",IF(LEFT(B9,2)="**",IF(D9>=$P$8,$P$8,IF(D9>=$P$9,$P$9,IF(D9>=$P$10,$P$10,$P$11))))) -> FALSE | B9: =Data!F3 -> Carolyn Neal | C9: =IF(Teacher5Pretest!C9="","",Teacher5Pretest!E9) -> 0.5 | D9: 5 | E9: =IF(D9="","",$E$7) -> 6 | F9: =IF(E9="","",D9/$E$7) -> 0.8333333333 | G9: =IF(D9>=P8,B9,"") -> Carolyn Neal | H9: =H8&IF(G9="","",", ")&G9 -> Dave Sanders, Carolyn Neal | I9: =IF(D9>=P9,IF(D9<P8,B9,""),"") ->  | J9: =J8&IF(I9="","",", ")&I9 ->  | K9: =IF(D9>=P10,IF(D9<P9,B9,""),"") ->  | L9: =L8&IF(K9="","",", ")&K9 ->  | M9: =IF(D9<P10,IF(D9="","",B9),"") ->  | N9: =N8&IF(M9="","",", ")&M9 ->  | P9: =Data!O12 -> 4 | Q9: Close to Proficient
A10: FALSE | B10: =Data!F4 -> Bertha Richardson | C10: =IF(Teacher5Pretest!C10="","",Teacher5Pretest!E10) -> 0.6666666667 | D10: 6 | E10: 6 | F10: 1 | G10: =IF(D10>=P8,B10,"") -> Bertha Richardson | H10: =H9&IF(G10="","",", ")&G10 -> Dave Sanders, Carolyn Neal, Bertha Richardson | I10: =IF(D10>=P9,IF(D10<P8,B10,""),"") ->  | J10: =J9&IF(I10="","",", ")&I10 ->  | K10: =IF(D10>=P10,IF(D10<P9,B10,""),"") ->  | L10: =L9&IF(K10="","",", ")&K10 ->  | M10: =IF(D10<P10,IF(D10="","",B10),"") ->  | N10: =N9&IF(M10="","",", ")&M10 ->  | P10: =Data!O13 -> 3 | Q10: Far to Go But Likely to Become Proficient
A11: FALSE | B11: =Data!F5 -> Bill Scheffler | C11: =IF(Teacher5Pretest!C11="","",Teacher5Pretest!E11) -> 0.6666666667 | D11: 2 | E11: 6 | F11: 0.3333333333 | G11: =IF(D11>=P8,B11,"") ->  | H11: Dave Sanders, Carolyn Neal, Bertha Richardson | I11: =IF(D11>=P9,IF(D11<P8,B11,""),"") ->  | K11: =IF(D11>=P10,IF(D11<P9,B11,""),"") ->  | M11: =IF(D11<P10,IF(D11="","",B11),"") -> Bill Scheffler | N11: , Bill Scheffler | P11: =Data!O14 -> 1 | Q11: Intervention (Far to Go But Not Likely to Become Proficient)
A12: FALSE | B12: =Data!F6 -> Chris Montgomery | C12: =IF(Teacher5Pretest!C12="","",Teacher5Pretest!E12) -> 0.8333333333 | D12: 6 | E12: 6 | F12: 1 | G12: =IF(D12>=P8,B12,"") -> Chris Montgomery | H12: Dave Sanders, Carolyn Neal, Bertha Richardson, Chris Montgomery | I12: =IF(D12>=P9,IF(D12<P8,B12,""),"") ->  | K12: =IF(D12>=P10,IF(D12<P9,B12,""),"") ->  | M12: =IF(D12<P10,IF(D12="","",B12),"") ->  | N12: , Bill Scheffler
A13: FALSE | B13: =Data!F7 -> Darlene Jones | C13: =IF(Teacher5Pretest!C13="","",Teacher5Pretest!E13) -> 0.3333333333 | D13: 5 | E13: 6 | F13: 0.8333333333 | G13: =IF(D13>=P8,B13,"") -> Darlene Jones | H13: Dave Sanders, Carolyn Neal, Bertha Richardson, Chris Montgomery, Darlene Jones | I13: =IF(D13>=P9,IF(D13<P8,B13,""),"") ->  | K13: =IF(D13>=P10,IF(D13<P9,B13,""),"") ->  | M13: =IF(D13<P10,IF(D13="","",B13),"") ->  | N13: , Bill Scheffler
A14: FALSE | B14: =Data!F8 -> Don Rugraff | C14: =IF(Teacher5Pretest!C14="","",Teacher5Pretest!E14) -> 0.8333333333 | D14: 4 | E14: 6 | F14: 0.6666666667 | G14: =IF(D14>=P8,B14,"") ->  | H14: Dave Sanders, Carolyn Neal, Bertha Richardson, Chris Montgomery, Darlene Jones | I14: =IF(D14>=P9,IF(D14<P8,B14,""),"") -> Don Rugraff | J14: , Don Rugraff | K14: =IF(D14>=P10,IF(D14<P9,B14,""),"") ->  | M14: =IF(D14<P10,IF(D14="","",B14),"") ->  | N14: , Bill Scheffler
A15: FALSE | B15: =Data!F9 -> Dexter Schraer | C15: =IF(Teacher5Pretest!C15="","",Teacher5Pretest!E15) -> 0.5 | D15: 5 | E15: 6 | F15: 0.8333333333 | G15: =IF(D15>=P8,B15,"") -> Dexter Schraer | H15: Dave Sanders, Carolyn Neal, Bertha Richardson, Chris Montgomery, Darlene Jones, Dexter Schraer | I15: =IF(D15>=P9,IF(D15<P8,B15,""),"") ->  | J15: , Don Rugraff | K15: =IF(D15>=P10,IF(D15<P9,B15,""),"") ->  | M15: =IF(D15<P10,IF(D15="","",B15),"") ->  | N15: , Bill Scheffler
A16: FALSE | B16: =Data!F10 -> Janice Putman | C16: =IF(Teacher5Pretest!C16="","",Teacher5Pretest!E16) -> 0.1666666667 | D16: 5 | E16: 6 | F16: 0.8333333333 | G16: =IF(D16>=P8,B16,"") -> Janice Putman | H16: Dave Sanders, Carolyn Neal, Bertha Richardson, Chris Montgomery, Darlene Jones, Dexter Schraer, Janice Putman | I16: =IF(D16>=P9,IF(D16<P8,B16,""),"") ->  | J16: , Don Rugraff | K16: =IF(D16>=P10,IF(D16<P9,B16,""),"") ->  | M16: =IF(D16<P10,IF(D16="","",B16),"") ->  | N16: , Bill Scheffler
A17: FALSE | B17: =Data!F11 -> Julie Sperry | C17: =IF(Teacher5Pretest!C17="","",Teacher5Pretest!E17) -> 0.5 | D17: 6 | E17: 6 | F17: 1 | G17: =IF(D17>=P8,B17,"") -> Julie Sperry | H17: Dave Sanders, Carolyn Neal, Bertha Richardson, Chris Montgomery, Darlene Jones, Dexter Schraer, Janice Putman, Julie Sperry | I17: =IF(D17>=P9,IF(D17<P8,B17,""),"") ->  | J17: , Don Rugraff | K17: =IF(D17>=P10,IF(D17<P9,B17,""),"") ->  | M17: =IF(D17<P10,IF(D17="","",B17),"") ->  | N17: , Bill Scheffler
A18: FALSE | B18: =Data!F12 -> Jeanne Rothermel | C18: =IF(Teacher5Pretest!C18="","",Teacher5Pretest!E18) -> 0.1666666667 | D18: 4 | E18: 6 | F18: 0.6666666667 | G18: =IF(D18>=P8,B18,"") ->  | H18: Dave Sanders, Carolyn Neal, Bertha Richardson, Chris Montgomery, Darlene Jones, Dexter Schraer, Janice Putman, Julie Sperry | I18: =IF(D18>=P9,IF(D18<P8,B18,""),"") -> Jeanne Rothermel | J18: , Don Rugraff, Jeanne Rothermel | K18: =IF(D18>=P10,IF(D18<P9,B18,""),"") ->  | M18: =IF(D18<P10,IF(D18="","",B18),"") ->  | N18: , Bill Scheffler
A19: FALSE | B19: =Data!F13 -> Rose Coleman | C19: =IF(Teacher5Pretest!C19="","",Teacher5Pretest!E19) -> 0.6666666667 | D19: 5 | E19: 6 | F19: 0.8333333333 | G19: =IF(D19>=P8,B19,"") -> Rose Coleman | H19: Dave Sanders, Carolyn Neal, Bertha Richardson, Chris Montgomery, Darlene Jones, Dexter Schraer, Janice Putman, Julie Sperry, Rose Coleman | I19: =IF(D19>=P9,IF(D19<P8,B19,""),"") ->  | J19: , Don Rugraff, Jeanne Rothermel | K19: =IF(D19>=P10,IF(D19<P9,B19,""),"") ->  | M19: =IF(D19<P10,IF(D19="","",B19),"") ->  | N19: , Bill Scheffler
A20: FALSE | B20: =Data!F14 -> Randy Speer | C20: =IF(Teacher5Pretest!C20="","",Teacher5Pretest!E20) -> 0.3333333333 | D20: 3 | E20: 6 | F20: 0.5 | G20: =IF(D20>=P8,B20,"") ->  | H20: Dave Sanders, Carolyn Neal, Bertha Richardson, Chris Montgomery, Darlene Jones, Dexter Schraer, Janice Putman, Julie Sperry, Rose Coleman | I20: =IF(D20>=P9,IF(D20<P8,B20,""),"") ->  | J20: , Don Rugraff, Jeanne Rothermel | K20: =IF(D20>=P10,IF(D20<P9,B20,""),"") -> Randy Speer | L20: , Randy Speer | M20: =IF(D20<P10,IF(D20="","",B20),"") ->  | N20: , Bill Scheffler
A21: 5 | B21: =Data!F15 -> **Sam McCauley | C21: =IF(Teacher5Pretest!C21="","",Teacher5Pretest!E21) -> 0.5 | D21: 5 | E21: 6 | F21: 0.8333333333 | G21: =IF(D21>=P8,B21,"") -> **Sam McCauley | H21: Dave Sanders, Carolyn Neal, Bertha Richardson, Chris Montgomery, Darlene Jones, Dexter Schraer, Janice Putman, Julie Sperry, Rose Coleman, **Sam McCauley | I21: =IF(D21>=P9,IF(D21<P8,B21,""),"") ->  | J21: , Don Rugraff, Jeanne Rothermel | K21: =IF(D21>=P10,IF(D21<P9,B21,""),"") ->  | L21: , Randy Speer | M21: =IF(D21<P10,IF(D21="","",B21),"") ->  | N21: , Bill Scheffler
A22: FALSE | B22: =Data!F16 -> Tricia Buchanan | C22: =IF(Teacher5Pretest!C22="","",Teacher5Pretest!E22) -> 0.6666666667 | D22: 6 | E22: 6 | F22: 1 | G22: =IF(D22>=P8,B22,"") -> Tricia Buchanan | H22: Dave Sanders, Carolyn Neal, Bertha Richardson, Chris Montgomery, Darlene Jones, Dexter Schraer, Janice Putman, Julie Sperry, Rose Coleman, **Sam McCauley, Tricia Buchanan | I22: =IF(D22>=P9,IF(D22<P8,B22,""),"") ->  | J22: , Don Rugraff, Jeanne Rothermel | K22: =IF(D22>=P10,IF(D22<P9,B22,""),"") ->  | L22: , Randy Speer | M22: =IF(D22<P10,IF(D22="","",B22),"") ->  | N22: , Bill Scheffler
A23: 4 | B23: =Data!F17 -> **Beth Tobin | C23: =IF(Teacher5Pretest!C23="","",Teacher5Pretest!E23) -> 0.3333333333 | D23: 4 | E23: 6 | F23: 0.6666666667 | G23: =IF(D23>=P8,B23,"") ->  | H23: Dave Sanders, Carolyn Neal, Bertha Richardson, Chris Montgomery, Darlene Jones, Dexter Schraer, Janice Putman, Julie Sperry, Rose Coleman, **Sam McCauley, Tricia Buchanan | I23: =IF(D23>=P9,IF(D23<P8,B23,""),"") -> **Beth Tobin | J23: , Don Rugraff, Jeanne Rothermel, **Beth Tobin | K23: =IF(D23>=P10,IF(D23<P9,B23,""),"") ->  | L23: , Randy Speer | M23: =IF(D23<P10,IF(D23="","",B23),"") ->  | N23: , Bill Scheffler
A24: FALSE | B24: =Data!F18 -> Student17 | C24: =IF(Teacher5Pretest!C24="","",Teacher5Pretest!E24) ->  | G24: =IF(D24>=P8,B24,"") ->  | H24: Dave Sanders, Carolyn Neal, Bertha Richardson, Chris Montgomery, Darlene Jones, Dexter Schraer, Janice Putman, Julie Sperry, Rose Coleman, **Sam McCauley, Tricia Buchanan | I24: =IF(D24>=P9,IF(D24<P8,B24,""),"") ->  | J24: , Don Rugraff, Jeanne Rothermel, **Beth Tobin | K24: =IF(D24>=P10,IF(D24<P9,B24,""),"") ->  | L24: , Randy Speer | M24: =IF(D24<P10,IF(D24="","",B24),"") ->  | N24: , Bill Scheffler
A25: FALSE | B25: =Data!F19 -> Student18 | C25: =IF(Teacher5Pretest!C25="","",Teacher5Pretest!E25) ->  | G25: =IF(D25>=P8,B25,"") ->  | H25: Dave Sanders, Carolyn Neal, Bertha Richardson, Chris Montgomery, Darlene Jones, Dexter Schraer, Janice Putman, Julie Sperry, Rose Coleman, **Sam McCauley, Tricia Buchanan | I25: =IF(D25>=P9,IF(D25<P8,B25,""),"") ->  | J25: , Don Rugraff, Jeanne Rothermel, **Beth Tobin | K25: =IF(D25>=P10,IF(D25<P9,B25,""),"") ->  | L25: , Randy Speer | M25: =IF(D25<P10,IF(D25="","",B25),"") ->  | N25: , Bill Scheffler
A26: FALSE | B26: =Data!F20 -> Student19 | C26: =IF(Teacher5Pretest!C26="","",Teacher5Pretest!E26) ->  | G26: =IF(D26>=P8,B26,"") ->  | H26: Dave Sanders, Carolyn Neal, Bertha Richardson, Chris Montgomery, Darlene Jones, Dexter Schraer, Janice Putman, Julie Sperry, Rose Coleman, **Sam McCauley, Tricia Buchanan | I26: =IF(D26>=P9,IF(D26<P8,B26,""),"") ->  | J26: , Don Rugraff, Jeanne Rothermel, **Beth Tobin | K26: =IF(D26>=P10,IF(D26<P9,B26,""),"") ->  | L26: , Randy Speer | M26: =IF(D26<P10,IF(D26="","",B26),"") ->  | N26: , Bill Scheffler
A27: FALSE | B27: =Data!F21 -> Student20 | C27: =IF(Teacher5Pretest!C27="","",Teacher5Pretest!E27) ->  | G27: =IF(D27>=P8,B27,"") ->  | H27: Dave Sanders, Carolyn Neal, Bertha Richardson, Chris Montgomery, Darlene Jones, Dexter Schraer, Janice Putman, Julie Sperry, Rose Coleman, **Sam McCauley, Tricia Buchanan | I27: =IF(D27>=P9,IF(D27<P8,B27,""),"") ->  | J27: , Don Rugraff, Jeanne Rothermel, **Beth Tobin | K27: =IF(D27>=P10,IF(D27<P9,B27,""),"") ->  | L27: , Randy Speer | M27: =IF(D27<P10,IF(D27="","",B27),"") ->  | N27: , Bill Scheffler
A28: FALSE | B28: =Data!F22 -> Student21 | C28: =IF(Teacher5Pretest!C28="","",Teacher5Pretest!E28) ->  | G28: =IF(D28>=P8,B28,"") ->  | H28: Dave Sanders, Carolyn Neal, Bertha Richardson, Chris Montgomery, Darlene Jones, Dexter Schraer, Janice Putman, Julie Sperry, Rose Coleman, **Sam McCauley, Tricia Buchanan | I28: =IF(D28>=P9,IF(D28<P8,B28,""),"") ->  | J28: , Don Rugraff, Jeanne Rothermel, **Beth Tobin | K28: =IF(D28>=P10,IF(D28<P9,B28,""),"") ->  | L28: , Randy Speer | M28: =IF(D28<P10,IF(D28="","",B28),"") ->  | N28: , Bill Scheffler
A29: FALSE | B29: =Data!F23 -> Student22 | C29: =IF(Teacher5Pretest!C29="","",Teacher5Pretest!E29) ->  | G29: =IF(D29>=P8,B29,"") ->  | H29: Dave Sanders, Carolyn Neal, Bertha Richardson, Chris Montgomery, Darlene Jones, Dexter Schraer, Janice Putman, Julie Sperry, Rose Coleman, **Sam McCauley, Tricia Buchanan | I29: =IF(D29>=P9,IF(D29<P8,B29,""),"") ->  | J29: , Don Rugraff, Jeanne Rothermel, **Beth Tobin | K29: =IF(D29>=P10,IF(D29<P9,B29,""),"") ->  | L29: , Randy Speer | M29: =IF(D29<P10,IF(D29="","",B29),"") ->  | N29: , Bill Scheffler
A30: FALSE | B30: =Data!F24 -> Student23 | C30: =IF(Teacher5Pretest!C30="","",Teacher5Pretest!E30) ->  | G30: =IF(D30>=P8,B30,"") ->  | H30: Dave Sanders, Carolyn Neal, Bertha Richardson, Chris Montgomery, Darlene Jones, Dexter Schraer, Janice Putman, Julie Sperry, Rose Coleman, **Sam McCauley, Tricia Buchanan | I30: =IF(D30>=P9,IF(D30<P8,B30,""),"") ->  | J30: , Don Rugraff, Jeanne Rothermel, **Beth Tobin | K30: =IF(D30>=P10,IF(D30<P9,B30,""),"") ->  | L30: , Randy Speer | M30: =IF(D30<P10,IF(D30="","",B30),"") ->  | N30: , Bill Scheffler
A31: FALSE | B31: =Data!F25 -> Student24 | C31: =IF(Teacher5Pretest!C31="","",Teacher5Pretest!E31) ->  | G31: =IF(D31>=P8,B31,"") ->  | H31: Dave Sanders, Carolyn Neal, Bertha Richardson, Chris Montgomery, Darlene Jones, Dexter Schraer, Janice Putman, Julie Sperry, Rose Coleman, **Sam McCauley, Tricia Buchanan | I31: =IF(D31>=P9,IF(D31<P8,B31,""),"") ->  | J31: , Don Rugraff, Jeanne Rothermel, **Beth Tobin | K31: =IF(D31>=P10,IF(D31<P9,B31,""),"") ->  | L31: , Randy Speer | M31: =IF(D31<P10,IF(D31="","",B31),"") ->  | N31: , Bill Scheffler
A32: FALSE | B32: =Data!F26 -> Student25 | C32: =IF(Teacher5Pretest!C32="","",Teacher5Pretest!E32) ->  | G32: =IF(D32>=P8,B32,"") ->  | H32: Dave Sanders, Carolyn Neal, Bertha Richardson, Chris Montgomery, Darlene Jones, Dexter Schraer, Janice Putman, Julie Sperry, Rose Coleman, **Sam McCauley, Tricia Buchanan | I32: =IF(D32>=P9,IF(D32<P8,B32,""),"") ->  | J32: , Don Rugraff, Jeanne Rothermel, **Beth Tobin | K32: =IF(D32>=P10,IF(D32<P9,B32,""),"") ->  | L32: , Randy Speer | M32: =IF(D32<P10,IF(D32="","",B32),"") ->  | N32: , Bill Scheffler
A33: FALSE | B33: =Data!F27 -> Student26 | C33: =IF(Teacher5Pretest!C33="","",Teacher5Pretest!E33) ->  | G33: =IF(D33>=P8,B33,"") ->  | H33: Dave Sanders, Carolyn Neal, Bertha Richardson, Chris Montgomery, Darlene Jones, Dexter Schraer, Janice Putman, Julie Sperry, Rose Coleman, **Sam McCauley, Tricia Buchanan | I33: =IF(D33>=P9,IF(D33<P8,B33,""),"") ->  | J33: , Don Rugraff, Jeanne Rothermel, **Beth Tobin | K33: =IF(D33>=P10,IF(D33<P9,B33,""),"") ->  | L33: , Randy Speer | M33: =IF(D33<P10,IF(D33="","",B33),"") ->  | N33: , Bill Scheffler
A34: FALSE | B34: =Data!F28 -> Student27 | C34: =IF(Teacher5Pretest!C34="","",Teacher5Pretest!E34) ->  | G34: =IF(D34>=P8,B34,"") ->  | H34: Dave Sanders, Carolyn Neal, Bertha Richardson, Chris Montgomery, Darlene Jones, Dexter Schraer, Janice Putman, Julie Sperry, Rose Coleman, **Sam McCauley, Tricia Buchanan | I34: =IF(D34>=P9,IF(D34<P8,B34,""),"") ->  | J34: , Don Rugraff, Jeanne Rothermel, **Beth Tobin | K34: =IF(D34>=P10,IF(D34<P9,B34,""),"") ->  | L34: , Randy Speer | M34: =IF(D34<P10,IF(D34="","",B34),"") ->  | N34: , Bill Scheffler
A35: FALSE | B35: =Data!F29 -> Student28 | C35: =IF(Teacher5Pretest!C35="","",Teacher5Pretest!E35) ->  | G35: =IF(D35>=P8,B35,"") ->  | H35: Dave Sanders, Carolyn Neal, Bertha Richardson, Chris Montgomery, Darlene Jones, Dexter Schraer, Janice Putman, Julie Sperry, Rose Coleman, **Sam McCauley, Tricia Buchanan | I35: =IF(D35>=P9,IF(D35<P8,B35,""),"") ->  | J35: , Don Rugraff, Jeanne Rothermel, **Beth Tobin | K35: =IF(D35>=P10,IF(D35<P9,B35,""),"") ->  | L35: , Randy Speer | M35: =IF(D35<P10,IF(D35="","",B35),"") ->  | N35: , Bill Scheffler
A36: FALSE | B36: =Data!F30 -> Student29 | C36: =IF(Teacher5Pretest!C36="","",Teacher5Pretest!E36) ->  | G36: =IF(D36>=P8,B36,"") ->  | H36: Dave Sanders, Carolyn Neal, Bertha Richardson, Chris Montgomery, Darlene Jones, Dexter Schraer, Janice Putman, Julie Sperry, Rose Coleman, **Sam McCauley, Tricia Buchanan | I36: =IF(D36>=P9,IF(D36<P8,B36,""),"") ->  | J36: , Don Rugraff, Jeanne Rothermel, **Beth Tobin | K36: =IF(D36>=P10,IF(D36<P9,B36,""),"") ->  | L36: , Randy Speer | M36: =IF(D36<P10,IF(D36="","",B36),"") ->  | N36: , Bill Scheffler
A37: FALSE | B37: =Data!F31 -> Student30 | C37: =IF(Teacher5Pretest!C37="","",Teacher5Pretest!E37) ->  | G37: =IF(D37>=P8,B37,"") ->  | H37: Dave Sanders, Carolyn Neal, Bertha Richardson, Chris Montgomery, Darlene Jones, Dexter Schraer, Janice Putman, Julie Sperry, Rose Coleman, **Sam McCauley, Tricia Buchanan | I37: =IF(D37>=P9,IF(D37<P8,B37,""),"") ->  | J37: , Don Rugraff, Jeanne Rothermel, **Beth Tobin | K37: =IF(D37>=P10,IF(D37<P9,B37,""),"") ->  | L37: , Randy Speer | M37: =IF(D37<P10,IF(D37="","",B37),"") ->  | N37: , Bill Scheffler
A38: FALSE
B39: TOTAL | D39: =SUM(D8:D37) -> 76 | E39: =SUM(E8:E37) -> 96 | F39: =D39/E39 -> 0.7916666667

Sheet Teacher6Post
B1: =IF(Data!N6="Other",Data!N7,Data!N6) -> Grade 4 | E1: =Data!G1 -> Teacher6
B2: Meeting Date: | E2: =Data!O8 -> 3/20/14
B3: Assessment: | E3: =Teacher1Pretest!D3 -> Main Idea- R.I.4.2
B5: Student Name | C5: Pretest % | D5: Post-test Points | E5: Possible | F5: Score - %
E7: =Teacher1Post!P7 -> 6 | G7: Proficient | I7: Close | K7: Far | M7: Intervention | P7: =Data!O10 -> 6 | Q7: Points Possible on Post-Test
A8: =IF(ISBLANK(D8),"FALSE",IF(LEFT(B8,2)="**",IF(D8>=$P$8,$P$8,IF(D8>=$P$9,$P$9,IF(D8>=$P$10,$P$10,$P$11))))) -> FALSE | B8: =Data!G2 -> Student1 | C8: =IF(Teacher6Pretest!C8="","",Teacher6Pretest!E8) ->  | E8: =IF(D8="","",$E$7) ->  | F8: =IF(E8="","",D8/$E$7) ->  | G8: =IF(D8>=P8,B8,"") ->  | H8: =G8 ->  | I8: =IF(D8>=P9,IF(D8<P8,B8,""),"") ->  | J8: =I8 ->  | K8: =IF(D8>=P10,IF(D8<P9,B8,""),"") ->  | L8: =K8 ->  | M8: =IF(D8<P10,IF(D8="","",B8),"") ->  | N8: =M8 ->  | P8: =Data!O11 -> 5 | Q8: Proficient
A9: =IF(ISBLANK(D9),"FALSE",IF(LEFT(B9,2)="**",IF(D9>=$P$8,$P$8,IF(D9>=$P$9,$P$9,IF(D9>=$P$10,$P$10,$P$11))))) -> FALSE | B9: =Data!G3 -> Student2 | C9: =IF(Teacher6Pretest!C9="","",Teacher6Pretest!E9) ->  | E9: =IF(D9="","",$E$7) ->  | F9: =IF(E9="","",D9/$E$7) ->  | G9: =IF(D9>=P8,B9,"") ->  | H9: =H8&IF(G9="","",", ")&G9 ->  | I9: =IF(D9>=P9,IF(D9<P8,B9,""),"") ->  | J9: =J8&IF(I9="","",", ")&I9 ->  | K9: =IF(D9>=P10,IF(D9<P9,B9,""),"") ->  | L9: =L8&IF(K9="","",", ")&K9 ->  | M9: =IF(D9<P10,IF(D9="","",B9),"") ->  | N9: =N8&IF(M9="","",", ")&M9 ->  | P9: =Data!O12 -> 4 | Q9: Close to Proficient
A10: FALSE | B10: =Data!G4 -> Student3 | C10: =IF(Teacher6Pretest!C10="","",Teacher6Pretest!E10) ->  | G10: =IF(D10>=P8,B10,"") ->  | H10: =H9&IF(G10="","",", ")&G10 ->  | I10: =IF(D10>=P9,IF(D10<P8,B10,""),"") ->  | J10: =J9&IF(I10="","",", ")&I10 ->  | K10: =IF(D10>=P10,IF(D10<P9,B10,""),"") ->  | L10: =L9&IF(K10="","",", ")&K10 ->  | M10: =IF(D10<P10,IF(D10="","",B10),"") ->  | N10: =N9&IF(M10="","",", ")&M10 ->  | P10: =Data!O13 -> 3 | Q10: Far to Go But Likely to Become Proficient
A11: FALSE | B11: =Data!G5 -> Student4 | C11: =IF(Teacher6Pretest!C11="","",Teacher6Pretest!E11) ->  | G11: =IF(D11>=P8,B11,"") ->  | I11: =IF(D11>=P9,IF(D11<P8,B11,""),"") ->  | K11: =IF(D11>=P10,IF(D11<P9,B11,""),"") ->  | M11: =IF(D11<P10,IF(D11="","",B11),"") ->  | P11: =Data!O14 -> 1 | Q11: Intervention (Far to Go But Not Likely to Become Proficient)
A12: FALSE | B12: =Data!G6 -> Student5 | C12: =IF(Teacher6Pretest!C12="","",Teacher6Pretest!E12) ->  | G12: =IF(D12>=P8,B12,"") ->  | I12: =IF(D12>=P9,IF(D12<P8,B12,""),"") ->  | K12: =IF(D12>=P10,IF(D12<P9,B12,""),"") ->  | M12: =IF(D12<P10,IF(D12="","",B12),"") -> 
A13: FALSE | B13: =Data!G7 -> Student6 | C13: =IF(Teacher6Pretest!C13="","",Teacher6Pretest!E13) ->  | G13: =IF(D13>=P8,B13,"") ->  | I13: =IF(D13>=P9,IF(D13<P8,B13,""),"") ->  | K13: =IF(D13>=P10,IF(D13<P9,B13,""),"") ->  | M13: =IF(D13<P10,IF(D13="","",B13),"") -> 
A14: FALSE | B14: =Data!G8 -> Student7 | C14: =IF(Teacher6Pretest!C14="","",Teacher6Pretest!E14) ->  | G14: =IF(D14>=P8,B14,"") ->  | I14: =IF(D14>=P9,IF(D14<P8,B14,""),"") ->  | K14: =IF(D14>=P10,IF(D14<P9,B14,""),"") ->  | M14: =IF(D14<P10,IF(D14="","",B14),"") -> 
A15: FALSE | B15: =Data!G9 -> Student8 | C15: =IF(Teacher6Pretest!C15="","",Teacher6Pretest!E15) ->  | G15: =IF(D15>=P8,B15,"") ->  | I15: =IF(D15>=P9,IF(D15<P8,B15,""),"") ->  | K15: =IF(D15>=P10,IF(D15<P9,B15,""),"") ->  | M15: =IF(D15<P10,IF(D15="","",B15),"") -> 
A16: FALSE | B16: =Data!G10 -> Student9 | C16: =IF(Teacher6Pretest!C16="","",Teacher6Pretest!E16) ->  | G16: =IF(D16>=P8,B16,"") ->  | I16: =IF(D16>=P9,IF(D16<P8,B16,""),"") ->  | K16: =IF(D16>=P10,IF(D16<P9,B16,""),"") ->  | M16: =IF(D16<P10,IF(D16="","",B16),"") -> 
A17: FALSE | B17: =Data!G11 -> Student10 | C17: =IF(Teacher6Pretest!C17="","",Teacher6Pretest!E17) ->  | G17: =IF(D17>=P8,B17,"") ->  | I17: =IF(D17>=P9,IF(D17<P8,B17,""),"") ->  | K17: =IF(D17>=P10,IF(D17<P9,B17,""),"") ->  | M17: =IF(D17<P10,IF(D17="","",B17),"") -> 
A18: FALSE | B18: =Data!G12 -> Student11 | C18: =IF(Teacher6Pretest!C18="","",Teacher6Pretest!E18) ->  | G18: =IF(D18>=P8,B18,"") ->  | I18: =IF(D18>=P9,IF(D18<P8,B18,""),"") ->  | K18: =IF(D18>=P10,IF(D18<P9,B18,""),"") ->  | M18: =IF(D18<P10,IF(D18="","",B18),"") -> 
A19: FALSE | B19: =Data!G13 -> Student12 | C19: =IF(Teacher6Pretest!C19="","",Teacher6Pretest!E19) ->  | G19: =IF(D19>=P8,B19,"") ->  | I19: =IF(D19>=P9,IF(D19<P8,B19,""),"") ->  | K19: =IF(D19>=P10,IF(D19<P9,B19,""),"") ->  | M19: =IF(D19<P10,IF(D19="","",B19),"") -> 
A20: FALSE | B20: =Data!G14 -> Student13 | C20: =IF(Teacher6Pretest!C20="","",Teacher6Pretest!E20) ->  | G20: =IF(D20>=P8,B20,"") ->  | I20: =IF(D20>=P9,IF(D20<P8,B20,""),"") ->  | K20: =IF(D20>=P10,IF(D20<P9,B20,""),"") ->  | M20: =IF(D20<P10,IF(D20="","",B20),"") -> 
A21: FALSE | B21: =Data!G15 -> Student14 | C21: =IF(Teacher6Pretest!C21="","",Teacher6Pretest!E21) ->  | G21: =IF(D21>=P8,B21,"") ->  | I21: =IF(D21>=P9,IF(D21<P8,B21,""),"") ->  | K21: =IF(D21>=P10,IF(D21<P9,B21,""),"") ->  | M21: =IF(D21<P10,IF(D21="","",B21),"") -> 
A22: FALSE | B22: =Data!G16 -> Student15 | C22: =IF(Teacher6Pretest!C22="","",Teacher6Pretest!E22) ->  | G22: =IF(D22>=P8,B22,"") ->  | I22: =IF(D22>=P9,IF(D22<P8,B22,""),"") ->  | K22: =IF(D22>=P10,IF(D22<P9,B22,""),"") ->  | M22: =IF(D22<P10,IF(D22="","",B22),"") -> 
A23: FALSE | B23: =Data!G17 -> Student16 | C23: =IF(Teacher6Pretest!C23="","",Teacher6Pretest!E23) ->  | G23: =IF(D23>=P8,B23,"") ->  | I23: =IF(D23>=P9,IF(D23<P8,B23,""),"") ->  | K23: =IF(D23>=P10,IF(D23<P9,B23,""),"") ->  | M23: =IF(D23<P10,IF(D23="","",B23),"") -> 
A24: FALSE | B24: =Data!G18 -> Student17 | C24: =IF(Teacher6Pretest!C24="","",Teacher6Pretest!E24) ->  | G24: =IF(D24>=P8,B24,"") ->  | I24: =IF(D24>=P9,IF(D24<P8,B24,""),"") ->  | K24: =IF(D24>=P10,IF(D24<P9,B24,""),"") ->  | M24: =IF(D24<P10,IF(D24="","",B24),"") -> 
A25: FALSE | B25: =Data!G19 -> Student18 | C25: =IF(Teacher6Pretest!C25="","",Teacher6Pretest!E25) ->  | G25: =IF(D25>=P8,B25,"") ->  | I25: =IF(D25>=P9,IF(D25<P8,B25,""),"") ->  | K25: =IF(D25>=P10,IF(D25<P9,B25,""),"") ->  | M25: =IF(D25<P10,IF(D25="","",B25),"") -> 
A26: FALSE | B26: =Data!G20 -> Student19 | C26: =IF(Teacher6Pretest!C26="","",Teacher6Pretest!E26) ->  | G26: =IF(D26>=P8,B26,"") ->  | I26: =IF(D26>=P9,IF(D26<P8,B26,""),"") ->  | K26: =IF(D26>=P10,IF(D26<P9,B26,""),"") ->  | M26: =IF(D26<P10,IF(D26="","",B26),"") -> 
A27: FALSE | B27: =Data!G21 -> Student20 | C27: =IF(Teacher6Pretest!C27="","",Teacher6Pretest!E27) ->  | G27: =IF(D27>=P8,B27,"") ->  | I27: =IF(D27>=P9,IF(D27<P8,B27,""),"") ->  | K27: =IF(D27>=P10,IF(D27<P9,B27,""),"") ->  | M27: =IF(D27<P10,IF(D27="","",B27),"") -> 
A28: FALSE | B28: =Data!G22 -> Student21 | C28: =IF(Teacher6Pretest!C28="","",Teacher6Pretest!E28) ->  | G28: =IF(D28>=P8,B28,"") ->  | I28: =IF(D28>=P9,IF(D28<P8,B28,""),"") ->  | K28: =IF(D28>=P10,IF(D28<P9,B28,""),"") ->  | M28: =IF(D28<P10,IF(D28="","",B28),"") -> 
A29: FALSE | B29: =Data!G23 -> Student22 | C29: =IF(Teacher6Pretest!C29="","",Teacher6Pretest!E29) ->  | G29: =IF(D29>=P8,B29,"") ->  | I29: =IF(D29>=P9,IF(D29<P8,B29,""),"") ->  | K29: =IF(D29>=P10,IF(D29<P9,B29,""),"") ->  | M29: =IF(D29<P10,IF(D29="","",B29),"") -> 
A30: FALSE | B30: =Data!G24 -> Student23 | C30: =IF(Teacher6Pretest!C30="","",Teacher6Pretest!E30) ->  | G30: =IF(D30>=P8,B30,"") ->  | I30: =IF(D30>=P9,IF(D30<P8,B30,""),"") ->  | K30: =IF(D30>=P10,IF(D30<P9,B30,""),"") ->  | M30: =IF(D30<P10,IF(D30="","",B30),"") -> 
A31: FALSE | B31: =Data!G25 -> Student24 | C31: =IF(Teacher6Pretest!C31="","",Teacher6Pretest!E31) ->  | G31: =IF(D31>=P8,B31,"") ->  | I31: =IF(D31>=P9,IF(D31<P8,B31,""),"") ->  | K31: =IF(D31>=P10,IF(D31<P9,B31,""),"") ->  | M31: =IF(D31<P10,IF(D31="","",B31),"") -> 
A32: FALSE | B32: =Data!G26 -> Student25 | C32: =IF(Teacher6Pretest!C32="","",Teacher6Pretest!E32) ->  | G32: =IF(D32>=P8,B32,"") ->  | I32: =IF(D32>=P9,IF(D32<P8,B32,""),"") ->  | K32: =IF(D32>=P10,IF(D32<P9,B32,""),"") ->  | M32: =IF(D32<P10,IF(D32="","",B32),"") -> 
A33: FALSE | B33: =Data!G27 -> Student26 | C33: =IF(Teacher6Pretest!C33="","",Teacher6Pretest!E33) ->  | G33: =IF(D33>=P8,B33,"") ->  | I33: =IF(D33>=P9,IF(D33<P8,B33,""),"") ->  | K33: =IF(D33>=P10,IF(D33<P9,B33,""),"") ->  | M33: =IF(D33<P10,IF(D33="","",B33),"") -> 
A34: FALSE | B34: =Data!G28 -> Student27 | C34: =IF(Teacher6Pretest!C34="","",Teacher6Pretest!E34) ->  | G34: =IF(D34>=P8,B34,"") ->  | I34: =IF(D34>=P9,IF(D34<P8,B34,""),"") ->  | K34: =IF(D34>=P10,IF(D34<P9,B34,""),"") ->  | M34: =IF(D34<P10,IF(D34="","",B34),"") -> 
A35: FALSE | B35: =Data!G29 -> Student28 | C35: =IF(Teacher6Pretest!C35="","",Teacher6Pretest!E35) ->  | G35: =IF(D35>=P8,B35,"") ->  | I35: =IF(D35>=P9,IF(D35<P8,B35,""),"") ->  | K35: =IF(D35>=P10,IF(D35<P9,B35,""),"") ->  | M35: =IF(D35<P10,IF(D35="","",B35),"") -> 
A36: FALSE | B36: =Data!G30 -> Student29 | C36: =IF(Teacher6Pretest!C36="","",Teacher6Pretest!E36) ->  | G36: =IF(D36>=P8,B36,"") ->  | I36: =IF(D36>=P9,IF(D36<P8,B36,""),"") ->  | K36: =IF(D36>=P10,IF(D36<P9,B36,""),"") ->  | M36: =IF(D36<P10,IF(D36="","",B36),"") -> 
A37: FALSE | B37: =Data!G31 -> Student30 | C37: =IF(Teacher6Pretest!C37="","",Teacher6Pretest!E37) ->  | G37: =IF(D37>=P8,B37,"") ->  | I37: =IF(D37>=P9,IF(D37<P8,B37,""),"") ->  | K37: =IF(D37>=P10,IF(D37<P9,B37,""),"") ->  | M37: =IF(D37<P10,IF(D37="","",B37),"") -> 
A38: FALSE
B39: TOTAL | D39: =SUM(D9:D37) -> 0 | E39: =SUM(E8:E37) -> 0 | F39: =D39/E39 -> 

Sheet SummaryPost
A1: Teacher | B1: # Students | D1: # Proficient | E1: % Proficient | F1: Proficient Students | H1: # Close to | I1: % Close to | J1: Students Close to Proficiency | L1: # Far to Go | M1: % Far to Go | N1: Students Far to Go But Likely to Become Proficient | P1: # Intervention | Q1: % Intervention | R1: Intervention Students (Far to Go and Not Likely to Become Proficient)
A2: =Data!A1 -> March | B2: =COUNT(Teacher1Post!D8:D37) -> 19 | D2: =COUNTIF(Teacher1Post!D8:D37,">="&Teacher1Post!P8) -> 11 | E2: =D2/B2 -> 0.5789473684 | F2: =IF(Teacher1Post!P7="","",IF(Teacher1Post!P8="","",IF(LEFT(Teacher1Post!H37,1)=",",RIGHT(Teacher1Post!H37,LEN(Teacher1Post!H37)-1),Teacher1Post!H37))) -> Judy Blome, Betsy Byars, Jean Fritz, Patricia MacLachlan, **Barbara Park, Jack Prelutsky, Louis Sachar, Shel Silverstein, Seymour Simon, **Jerry Spinelli, Jane Yolen | H2: =COUNTIF(Teacher1Post!D8:D37,">="&Teacher1Post!P9)-COUNTIF(Teacher1Post!D8:D37,">="&Teacher1Post!P8) -> 4 | I2: =H2/B2 -> 0.2105263158 | J2: =IF(Teacher1Post!P7="","",IF(Teacher1Post!P8="","",IF(Teacher1Post!P9="","",IF(LEFT(Teacher1Post!J37,1)=",",RIGHT(Teacher1Post!J37, LEN(Teacher1Post!J37)-1),Teacher1Post!J37)))) -> Pam Conrad, **Gary Paulsen, Cynthia Rylant, R.L. Stine | L2: =COUNTIF(Teacher1Post!D8:D37,">="&Teacher1Post!P10)-COUNTIF(Teacher1Post!D8:D37,">="&Teacher1Post!P9) -> 2 | M2: =L2/B2 -> 0.1052631579 | N2: =IF(Teacher1Post!P7="","",IF(Teacher1Post!P8="","",IF(Teacher1Post!P9="","",IF(Teacher1Post!P10="","",IF(LEFT(Teacher1Post!L37,1)=",",RIGHT(Teacher1Post!L37, LEN(Teacher1Post!L37)-1),Teacher1Post!L37))))) -> Lewis Carroll, Lois Lowry | P2: =COUNTIF(Teacher1Post!D8:D37,"<"&Teacher1Post!P10) -> 2 | Q2: =P2/B2 -> 0.1052631579 | R2: =IF(LEFT(Teacher1Post!N37,1)=",",RIGHT(Teacher1Post!N37, LEN(Teacher1Post!N37)-1),Teacher1Post!N37) -> C.S. Lewis, J.K. Rowling
A3: =Data!B1 -> Jones | B3: =COUNT(Teacher2Post!D8:D37) -> 21 | D3: =COUNTIF(Teacher2Post!D8:D37,">="&Teacher2Post!P8) -> 11 | E3: 0.5238095238 | F3: =IF(Teacher1Post!P7="","",IF(Teacher1Post!P8="","",IF(LEFT(Teacher2Post!H37,1)=",",RIGHT(Teacher2Post!H37,LEN(Teacher2Post!H37)-1),Teacher2Post!H37))) -> **Justin Bieber, Taylor Swift, Beyonce Knowles, Madonna, **Kelly Clarkson, Aretha Franklin, Lady Gaga, Bruno Mars, Dolly Parton, Tony Bennett, Pat Benatar | H3: =COUNTIF(Teacher2Post!D8:D37,">="&Teacher2Post!P9)-COUNTIF(Teacher2Post!D8:D37,">="&Teacher2Post!P8) -> 3 | I3: 0.1428571429 | J3: =IF(Teacher1Post!P7="","",IF(Teacher1Post!P8="","",IF(Teacher1Post!P8="","",IF(LEFT(Teacher2Post!J37,1)=",",RIGHT(Teacher2Post!J37, LEN(Teacher2Post!J37)-1),Teacher2Post!J37)))) -> Billy Joel, **Axl Rose, Paul McCartney | L3: =COUNTIF(Teacher2Post!D8:D37,">="&Teacher2Post!P10)-COUNTIF(Teacher2Post!D8:D37,">="&Teacher2Post!P9) -> 5 | M3: 0.2380952381 | N3: =IF(Teacher1Post!P7="","",IF(Teacher1Post!P8="","",IF(Teacher1Post!P9="","",IF(Teacher1Post!P10="","",IF(LEFT(Teacher2Post!L37,1)=",",RIGHT(Teacher2Post!L37, LEN(Teacher2Post!L37)-1),Teacher2Post!L37))))) -> Bon Jovi, Tim McGraw, **Bob Dylan, Eric Clapton, **Mick Jagger | P3: =COUNTIF(Teacher2Post!D8:D37,"<"&Teacher2Post!P10) -> 2 | Q3: 0.09523809524 | R3: =IF(LEFT(Teacher2Post!N37,1)=",",RIGHT(Teacher2Post!N37, LEN(Teacher2Post!N37)-1),Teacher2Post!N37) -> Justin Timberlake, Elton John
A4: =Data!C1 -> Gibson | B4: =COUNT(Teacher3Post!D8:D37) -> 20 | D4: =COUNTIF(Teacher3Post!D8:D37,">="&Teacher3Post!P8) -> 12 | E4: 0.6 | F4: =IF(Teacher1Post!P7="","",IF(Teacher1Post!P8="","",IF(LEFT(Teacher3Post!H37,1)=",",RIGHT(Teacher3Post!H37,LEN(Teacher3Post!H37)-1),Teacher3Post!H37))) -> **Albert Einstein, Carl Sagan*, Henry Ford, Ivan Pavlov, **Jonas Salk, **Marie Curie, Sigmund Freud, Stephen Hawking, Thomas Edison, Howard Gardner, Lev Vygotsky, Maria Montessori | H4: =COUNTIF(Teacher3Post!D8:D37,">="&Teacher3Post!P9)-COUNTIF(Teacher3Post!D8:D37,">="&Teacher3Post!P8) -> 4 | I4: 0.2 | J4: =IF(Teacher1Post!P7="","",IF(Teacher1Post!P8="","",IF(Teacher1Post!P9="","",IF(LEFT(Teacher3Post!J37,1)=",",RIGHT(Teacher3Post!J37, LEN(Teacher3Post!J37)-1),Teacher3Post!J37)))) -> Alfred Nobel, Charles Darwin, John Dewey, **B.F. Skinner | L4: =COUNTIF(Teacher3Post!D8:D37,">="&Teacher3Post!P10)-COUNTIF(Teacher3Post!D8:D37,">="&Teacher3Post!P9) -> 2 | M4: 0.1 | N4: =IF(Teacher1Post!P7="","",IF(Teacher1Post!P8="","",IF(Teacher1Post!P9="","",IF(Teacher1Post!P10="","",IF(LEFT(Teacher3Post!L37,1)=",",RIGHT(Teacher3Post!L37, LEN(Teacher3Post!L37)-1),Teacher3Post!L37))))) -> Benjamin Franklin, Jane Goodall | P4: =COUNTIF(Teacher3Post!D8:D37,"<"&Teacher3Post!P10) -> 2 | Q4: 0.1 | R4: =IF(LEFT(Teacher3Post!N37,1)=",",RIGHT(Teacher3Post!N37, LEN(Teacher3Post!N37)-1),Teacher3Post!N37) -> **Isaac Newton, Jean Piaget
A5: =Data!D1 -> Smith | B5: =COUNT(Teacher4Post!D8:D37) -> 19 | D5: =COUNTIF(Teacher4Post!D8:D37,">="&Teacher4Post!P8) -> 10 | E5: 0.5263157895 | F5: =IF(Teacher1Post!P7="","",IF(Teacher1Post!P8="","",IF(LEFT(Teacher4Post!H37,1)=",",RIGHT(Teacher4Post!H37,LEN(Teacher4Post!H37)-1),Teacher4Post!H37))) -> Michael Jordan, Muhammad Ali, Serena Williams, **Joe Montana, Shaun White, Danica Patrick, **Tony Hawk, LeBron James, **George Forman, Martina Navratilova | H5: =COUNTIF(Teacher4Post!D8:D37,">="&Teacher4Post!P9)-COUNTIF(Teacher4Post!D8:D37,">="&Teacher4Post!P8) -> 6 | I5: 0.3157894737 | J5: =IF(Teacher1Post!P7="","",IF(Teacher1Post!P8="","",IF(Teacher1Post!P9="","",IF(LEFT(Teacher4Post!J37,1)=",",RIGHT(Teacher4Post!J37, LEN(Teacher4Post!J37)-1),Teacher4Post!J37)))) -> Roger Federer, Wayne Gretzky, **Jim Thorpe, Jeff Gordon, Peyton Manning, Yadier Molina | L5: =COUNTIF(Teacher4Post!D8:D37,">="&Teacher4Post!P10)-COUNTIF(Teacher4Post!D8:D37,">="&Teacher4Post!P9) -> 0 | M5: 0 | N5: =IF(Teacher1Post!P7="","",IF(Teacher1Post!P8="","",IF(Teacher1Post!P9="","",IF(Teacher1Post!P10="","",IF(LEFT(Teacher4Post!L37,1)=",",RIGHT(Teacher4Post!L37, LEN(Teacher4Post!L37)-1),Teacher4Post!L37))))) ->  | P5: =COUNTIF(Teacher4Post!D8:D37,"<"&Teacher4Post!P10) -> 3 | Q5: 0.1578947368 | R5: =IF(LEFT(Teacher4Post!N37,1)=",",RIGHT(Teacher4Post!N37, LEN(Teacher4Post!N37)-1),Teacher4Post!N37) -> **Michael Phelps, Tiger Woods, Gordie Howe
A6: =Data!E1 -> Do Not Use | B6: =COUNT('Do Not Use'!B8:B37) -> 0 | D6: =COUNTIF('Do Not Use'!B8:B37,">="&'Do Not Use'!N8) -> 0 | F6: =IF(Teacher1Post!P7="","",IF(Teacher1Post!P8="","",IF(LEFT('Do Not Use'!F37,1)=",",RIGHT('Do Not Use'!F37,LEN('Do Not Use'!F37)-1),'Do Not Use'!F37))) ->  | H6: =COUNTIF('Do Not Use'!B8:B37,">="&'Do Not Use'!N9)-COUNTIF('Do Not Use'!B8:B37,">="&'Do Not Use'!N8) -> 0 | J6: =IF(Teacher1Post!P7="","",IF(Teacher1Post!P8="","",IF(Teacher1Post!P9="","",IF(LEFT('Do Not Use'!H37,1)=",",RIGHT('Do Not Use'!H37, LEN('Do Not Use'!H37)-1),'Do Not Use'!H37)))) ->  | L6: =COUNTIF('Do Not Use'!B8:B37,">="&'Do Not Use'!N10)-COUNTIF('Do Not Use'!B8:B37,">="&'Do Not Use'!N9) -> 0 | N6: =IF(Teacher1Post!P7="","",IF(Teacher1Post!P8="","",IF(Teacher1Post!P9="","",IF(Teacher1Post!P10="","",IF(LEFT('Do Not Use'!J37,1)=",",RIGHT('Do Not Use'!J37, LEN('Do Not Use'!J37)-1),'Do Not Use'!J37))))) ->  | P6: =COUNTIF('Do Not Use'!B8:B37,"<"&'Do Not Use'!N10) -> 0 | R6: =IF(LEFT('Do Not Use'!L37,1)=",",RIGHT('Do Not Use'!L37, LEN('Do Not Use'!L37)-1),'Do Not Use'!L37) -> 
A7: =Data!F1 -> Milburn | B7: =COUNT(Teacher5Post!D8:D37) -> 16 | D7: =COUNTIF(Teacher5Post!D8:D37,">="&Teacher5Post!P8) -> 11 | E7: 0.6875 | F7: =IF(Teacher1Post!P7="","",IF(Teacher1Post!P8="","",IF(LEFT(Teacher5Post!H37,1)=",",RIGHT(Teacher5Post!H37,LEN(Teacher5Post!H37)-1),Teacher5Post!H37))) -> Dave Sanders, Carolyn Neal, Bertha Richardson, Chris Montgomery, Darlene Jones, Dexter Schraer, Janice Putman, Julie Sperry, Rose Coleman, **Sam McCauley, Tricia Buchanan | H7: =COUNTIF(Teacher5Post!D8:D37,">="&Teacher5Post!P9)-COUNTIF(Teacher5Post!D8:D37,">="&Teacher5Post!P8) -> 3 | I7: 0.1875 | J7: =IF(Teacher1Post!P7="","",IF(Teacher1Post!P8="","",IF(Teacher1Post!P9="","",IF(LEFT(Teacher5Post!J37,1)=",",RIGHT(Teacher5Post!J37, LEN(Teacher5Post!J37)-1),Teacher5Post!J37)))) -> Don Rugraff, Jeanne Rothermel, **Beth Tobin | L7: =COUNTIF(Teacher5Post!D8:D37,">="&Teacher5Post!P10)-COUNTIF(Teacher5Post!D8:D37,">="&Teacher5Post!P9) -> 1 | M7: 0.0625 | N7: =IF(Teacher1Post!P7="","",IF(Teacher1Post!P8="","",IF(Teacher1Post!P9="","",IF(Teacher1Post!P10="","",IF(LEFT(Teacher5Post!L37,1)=",",RIGHT(Teacher5Post!L37, LEN(Teacher5Post!L37)-1),Teacher5Post!L37))))) -> Randy Speer | P7: =COUNTIF(Teacher5Post!D8:D37,"<"&Teacher5Post!P10) -> 1 | Q7: 0.0625 | R7: =IF(LEFT(Teacher5Post!N37,1)=",",RIGHT(Teacher5Post!N37, LEN(Teacher5Post!N37)-1),Teacher5Post!N37) -> Bill Scheffler
A8: =Data!G1 -> Teacher6 | B8: =COUNT(Teacher6Post!D8:D37) -> 0 | D8: =COUNTIF(Teacher6Post!D8:D37,">="&Teacher6Post!P8) -> 0 | F8: =IF(Teacher1Post!P7="","",IF(Teacher1Post!P8="","",IF(LEFT(Teacher6Post!H37,1)=",",RIGHT(Teacher6Post!H37,LEN(Teacher6Post!H37)-1),Teacher6Post!H37))) ->  | H8: =COUNTIF(Teacher6Post!D8:D37,">="&Teacher6Post!P9)-COUNTIF(Teacher6Post!D8:D37,">="&Teacher6Post!P8) -> 0 | J8: =IF(Teacher1Post!P7="","",IF(Teacher1Post!P8="","",IF(Teacher1Post!P9="","",IF(LEFT(Teacher6Post!J37,1)=",",RIGHT(Teacher6Post!J37, LEN(Teacher6Post!J37)-1),Teacher6Post!J37)))) ->  | L8: =COUNTIF(Teacher6Post!D8:D37,">="&Teacher6Post!P10)-COUNTIF(Teacher6Post!D8:D37,">="&Teacher6Post!P9) -> 0 | N8: =IF(Teacher1Post!P7="","",IF(Teacher1Post!P8="","",IF(Teacher1Post!P9="","",IF(Teacher1Post!P10="","",IF(LEFT(Teacher6Post!L37,1)=",",RIGHT(Teacher6Post!L37, LEN(Teacher6Post!L37)-1),Teacher6Post!L37))))) ->  | P8: =COUNTIF(Teacher6Post!D8:D37,"<"&Teacher6Post!P10) -> 0 | R8: =IF(LEFT(Teacher6Post!N37,1)=",",RIGHT(Teacher6Post!N37, LEN(Teacher6Post!N37)-1),Teacher6Post!N37) -> 
A10: TOTAL | B10: =SUM(B2:B8) -> 95 | D10: =SUM(D2:D8) -> 55 | E10: =D10/B10 -> 0.5789473684 | H10: =SUM(H2:H8) -> 20 | I10: =H10/B10 -> 0.2105263158 | L10: =SUM(L2:L8) -> 10 | M10: =L10/B10 -> 0.1052631579 | P10: =SUM(P2:P8) -> 10 | Q10: =P10/B10 -> 0.1052631579
A12: =IF(Data!N15="YES","SMART Goal","") -> SMART Goal | C12: =IF(Data!N15="YES",(D10+H10+L10)/B10,"") -> 0.8947368421
